{"text_format":"1","workbook":"xlsx","n_sheets":3,"sheets":["Input","Reference","PPMP"],"not_rendered":{"charts":0,"images":4,"macros":1,"external_links":0,"defined_names":15,"comments":0,"pivot_tables":0},"unopened":[],"bounds":{"document_bytes":16777216,"sheet_cells":100000,"rows_first":2000,"rows_last":500,"rows_between":2000,"halvings":0,"cell_chars":16384,"cell_head_chars":4096},"cells_cut":0,"cells_raw":0,"read":"whole","date_system":"1900"}

{"sheet":"Input","index":0,"n_rows":10004,"n_cols":23,"rows_kept":2250,"cut":true,"hidden":false,"merged":[[2,2,2,6],[0,7,0,13],[1,7,1,13],[2,7,2,13],[0,19,0,22],[1,19,1,22],[1,14,1,18],[0,14,0,18],[2,14,2,18],[2,19,2,22],[1,2,1,6],[0,2,0,6],[4,22,5,22],[4,20,5,20],[4,21,5,21],[4,0,5,0],[4,1,5,1],[4,2,5,2],[4,3,4,18],[4,19,5,19]],"bounds":{"rows_first":1000,"rows_last":250,"rows_between":1000,"halvings":1}}
["PREPARED BY:",null,"SECTION / UNIT:",null,null,null,null,null,null,null,null,null,null,null,"DIVISION CHIEF / SECTION HEAD:"]
["POSITION / DESIGNATION:",null,"NAME OF UNIT HEAD:",null,null,null,null,null,null,null,null,null,null,null,"POSITION / DESIGNATION:"]
["CALENDAR YEAR:",null,"POSITION / DESIGNATION:",null,null,null,null,null,null,null,null,null,null,null,"BUDGET FOR OFFICE SUPPLIES:"]
["TOTAL AMOUNT",{"$f":"ROUND(SUM(W7:W10004),2)","v":0}]
["CATEGORY","ITEM AND SPECIFICATION","UNIT","QUANTITY REQUIREMENT",null,null,null,null,null,null,null,null,null,null,null,null,null,null,null,"TOTAL QUANTITY","UNIT PRICE","MARKED UP PRICE","TOTAL AMOUNT"]
[null,null,null,"JAN","FEB","MAR","Q1","APR","MAY","JUNE","Q2","JUL","AUG","SEPT","Q3","OCT","NOV","DEC","Q4"]
[null,null,{"$f":"IF($B7<>\"\",VLOOKUP($B7,Tbl_Reference,2,0),\"\")","v":""},null,null,null,{"$f":"SUM(D7:F7)","v":0},null,null,null,{"$f":"SUM(H7:J7)","v":0},null,null,null,{"$f":"SUM(L7:N7)","v":0},null,null,null,{"$f":"SUM(P7:R7)","v":0},{"$f":"G7+K7+O7+S7","v":0},{"$f":"IF($B7<>\"\",VLOOKUP($B7,Tbl_Reference,3,0),\"\")","v":""},{"$f":"IF($B7<>\"\",VLOOKUP($B7,Tbl_Reference,4,0),\"\")","v":""},{"$f":"IF(B7<>\"\",IF(V7<>0,ROUND(T7*V7,2),ROUND(T7*U7,2)),\"\")","v":""}]
[null,null,"",null,null,null,{"$f":"SUM(D8:F8)","v":0},null,null,null,{"$f":"SUM(H8:J8)","v":0},null,null,null,{"$f":"SUM(L8:N8)","v":0},null,null,null,{"$f":"SUM(P8:R8)","v":0},{"$f":"G8+K8+O8+S8","v":0},"","",""]
[null,null,"",null,null,null,0,null,null,null,0,null,null,null,0,null,null,null,0,0,"","",""]
[null,null,"",null,null,null,0,null,null,null,0,null,null,null,0,null,null,null,0,0,"","",""]
[null,null,"",null,null,null,0,null,null,null,0,null,null,null,0,null,null,null,0,0,"","",""]
[null,null,"",null,null,null,0,null,null,null,0,null,null,null,0,null,null,null,0,0,"","",""]
[null,null,"",null,null,null,0,null,null,null,0,null,null,null,0,null,null,null,0,0,"","",""]
[null,null,"",null,null,null,0,null,null,null,0,null,null,null,0,null,null,null,0,0,"","",""]
[null,null,"",null,null,null,0,null,null,null,0,null,null,null,0,null,null,null,0,0,"","",""]
[null,null,"",null,null,null,0,null,null,null,0,null,null,null,0,null,null,null,0,0,"","",""]
[null,null,"",null,null,null,0,null,null,null,0,null,null,null,0,null,null,null,0,0,"","",""]
[null,null,"",null,null,null,0,null,null,null,0,null,null,null,0,null,null,null,0,0,"","",""]
[null,null,"",null,null,null,0,null,null,null,0,null,null,null,0,null,null,null,0,0,"","",""]
[null,null,"",null,null,null,0,null,null,null,0,null,null,null,0,null,null,null,0,0,"","",""]
[null,null,"",null,null,null,0,null,null,null,0,null,null,null,0,null,null,null,0,0,"","",""]
[null,null,"",null,null,null,0,null,null,null,0,null,null,null,0,null,null,null,0,0,"","",""]
[null,null,"",null,null,null,0,null,null,null,0,null,null,null,0,null,null,null,0,0,"","",""]
[null,null,"",null,null,null,0,null,null,null,0,null,null,null,0,null,null,null,0,0,"","",""]
[null,null,"",null,null,null,0,null,null,null,0,null,null,null,0,null,null,null,0,0,"","",""]
[null,null,"",null,null,null,0,null,null,null,0,null,null,null,0,null,null,null,0,0,"","",""]
[null,null,"",null,null,null,0,null,null,null,0,null,null,null,0,null,null,null,0,0,"","",""]
[null,null,"",null,null,null,0,null,null,null,0,null,null,null,0,null,null,null,0,0,"","",""]
[null,null,"",null,null,null,0,null,null,null,0,null,null,null,0,null,null,null,0,0,"","",""]
[null,null,"",null,null,null,0,null,null,null,0,null,null,null,0,null,null,null,0,0,"","",""]
[null,null,"",null,null,null,0,null,null,null,0,null,null,null,0,null,null,null,0,0,"","",""]
[null,null,"",null,null,null,0,null,null,null,0,null,null,null,0,null,null,null,0,0,"","",""]
[null,null,"",null,null,null,0,null,null,null,0,null,null,null,0,null,null,null,0,0,"","",""]
[null,null,"",null,null,null,0,null,null,null,0,null,null,null,0,null,null,null,0,0,"","",""]
[null,null,"",null,null,null,0,null,null,null,0,null,null,null,0,null,null,null,0,0,"","",""]
[null,null,"",null,null,null,0,null,null,null,0,null,null,null,0,null,null,null,0,0,"","",""]
[null,null,"",null,null,null,0,null,null,null,0,null,null,null,0,null,null,null,0,0,"","",""]
[null,null,"",null,null,null,0,null,null,null,0,null,null,null,0,null,null,null,0,0,"","",""]
[null,null,"",null,null,null,0,null,null,null,0,null,null,null,0,null,null,null,0,0,"","",""]
[null,null,"",null,null,null,0,null,null,null,0,null,null,null,0,null,null,null,0,0,"","",""]
[null,null,"",null,null,null,0,null,null,null,0,null,null,null,0,null,null,null,0,0,"","",""]
[null,null,"",null,null,null,0,null,null,null,0,null,null,null,0,null,null,null,0,0,"","",""]
[null,null,"",null,null,null,0,null,null,null,0,null,null,null,0,null,null,null,0,0,"","",""]
[null,null,"",null,null,null,0,null,null,null,0,null,null,null,0,null,null,null,0,0,"","",""]
[null,null,"",null,null,null,0,null,null,null,0,null,null,null,0,null,null,null,0,0,"","",""]
[null,null,"",null,null,null,0,null,null,null,0,null,null,null,0,null,null,null,0,0,"","",""]
[null,null,"",null,null,null,0,null,null,null,0,null,null,null,0,null,null,null,0,0,"","",""]
[null,null,"",null,null,null,0,null,null,null,0,null,null,null,0,null,null,null,0,0,"","",""]
[null,null,"",null,null,null,0,null,null,null,0,null,null,null,0,null,null,null,0,0,"","",""]
[null,null,"",null,null,null,0,null,null,null,0,null,null,null,0,null,null,null,0,0,"","",""]
[null,null,"",null,null,null,0,null,null,null,0,null,null,null,0,null,null,null,0,0,"","",""]
[null,null,"",null,null,null,0,null,null,null,0,null,null,null,0,null,null,null,0,0,"","",""]
[null,null,"",null,null,null,0,null,null,null,0,null,null,null,0,null,null,null,0,0,"","",""]
[null,null,"",null,null,null,0,null,null,null,0,null,null,null,0,null,null,null,0,0,"","",""]
[null,null,"",null,null,null,0,null,null,null,0,null,null,null,0,null,null,null,0,0,"","",""]
[null,null,"",null,null,null,0,null,null,null,0,null,null,null,0,null,null,null,0,0,"","",""]
[null,null,"",null,null,null,0,null,null,null,0,null,null,null,0,null,null,null,0,0,"","",""]
[null,null,"",null,null,null,0,null,null,null,0,null,null,null,0,null,null,null,0,0,"","",""]
[null,null,"",null,null,null,0,null,null,null,0,null,null,null,0,null,null,null,0,0,"","",""]
[null,null,"",null,null,null,0,null,null,null,0,null,null,null,0,null,null,null,0,0,"","",""]
[null,null,"",null,null,null,0,null,null,null,0,null,null,null,0,null,null,null,0,0,"","",""]
[null,null,"",null,null,null,0,null,null,null,0,null,null,null,0,null,null,null,0,0,"","",""]
[null,null,"",null,null,null,0,null,null,null,0,null,null,null,0,null,null,null,0,0,"","",""]
[null,null,"",null,null,null,0,null,null,null,0,null,null,null,0,null,null,null,0,0,"","",""]
[null,null,"",null,null,null,0,null,null,null,0,null,null,null,0,null,null,null,0,0,"","",""]
[null,null,"",null,null,null,0,null,null,null,0,null,null,null,0,null,null,null,0,0,"","",""]
[null,null,"",null,null,null,0,null,null,null,0,null,null,null,0,null,null,null,0,0,"","",""]
[null,null,"",null,null,null,0,null,null,null,0,null,null,null,0,null,null,null,0,0,"","",""]
[null,null,"",null,null,null,0,null,null,null,0,null,null,null,0,null,null,null,0,0,"","",""]
[null,null,"",null,null,null,0,null,null,null,0,null,null,null,0,null,null,null,0,0,"","",""]
[null,null,{"$f":"IF($B71<>\"\",VLOOKUP($B71,Tbl_Reference,2,0),\"\")","v":""},null,null,null,0,null,null,null,0,null,null,null,0,null,null,null,0,0,{"$f":"IF($B71<>\"\",VLOOKUP($B71,Tbl_Reference,3,0),\"\")","v":""},{"$f":"IF($B71<>\"\",VLOOKUP($B71,Tbl_Reference,4,0),\"\")","v":""},""]
[null,null,"",null,null,null,{"$f":"SUM(D72:F72)","v":0},null,null,null,{"$f":"SUM(H72:J72)","v":0},null,null,null,{"$f":"SUM(L72:N72)","v":0},null,null,null,{"$f":"SUM(P72:R72)","v":0},{"$f":"G72+K72+O72+S72","v":0},"","",{"$f":"IF(B72<>\"\",IF(V72<>0,ROUND(T72*V72,2),ROUND(T72*U72,2)),\"\")","v":""}]
[null,null,"",null,null,null,0,null,null,null,0,null,null,null,0,null,null,null,0,0,"","",""]
[null,null,"",null,null,null,0,null,null,null,0,null,null,null,0,null,null,null,0,0,"","",""]
[null,null,"",null,null,null,0,null,null,null,0,null,null,null,0,null,null,null,0,0,"","",""]
[null,null,"",null,null,null,0,null,null,null,0,null,null,null,0,null,null,null,0,0,"","",""]
[null,null,"",null,null,null,0,null,null,null,0,null,null,null,0,null,null,null,0,0,"","",""]
[null,null,"",null,null,null,0,null,null,null,0,null,null,null,0,null,null,null,0,0,"","",""]
[null,null,"",null,null,null,0,null,null,null,0,null,null,null,0,null,null,null,0,0,"","",""]
[null,null,"",null,null,null,0,null,null,null,0,null,null,null,0,null,null,null,0,0,"","",""]
[null,null,"",null,null,null,0,null,null,null,0,null,null,null,0,null,null,null,0,0,"","",""]
[null,null,"",null,null,null,0,null,null,null,0,null,null,null,0,null,null,null,0,0,"","",""]
[null,null,"",null,null,null,0,null,null,null,0,null,null,null,0,null,null,null,0,0,"","",""]
[null,null,"",null,null,null,0,null,null,null,0,null,null,null,0,null,null,null,0,0,"","",""]
[null,null,"",null,null,null,0,null,null,null,0,null,null,null,0,null,null,null,0,0,"","",""]
[null,null,"",null,null,null,0,null,null,null,0,null,null,null,0,null,null,null,0,0,"","",""]
[null,null,"",null,null,null,0,null,null,null,0,null,null,null,0,null,null,null,0,0,"","",""]
[null,null,"",null,null,null,0,null,null,null,0,null,null,null,0,null,null,null,0,0,"","",""]
[null,null,"",null,null,null,0,null,null,null,0,null,null,null,0,null,null,null,0,0,"","",""]
[null,null,"",null,null,null,0,null,null,null,0,null,null,null,0,null,null,null,0,0,"","",""]
[null,null,"",null,null,null,0,null,null,null,0,null,null,null,0,null,null,null,0,0,"","",""]
[null,null,"",null,null,null,0,null,null,null,0,null,null,null,0,null,null,null,0,0,"","",""]
[null,null,"",null,null,null,0,null,null,null,0,null,null,null,0,null,null,null,0,0,"","",""]
[null,null,"",null,null,null,0,null,null,null,0,null,null,null,0,null,null,null,0,0,"","",""]
[null,null,"",null,null,null,0,null,null,null,0,null,null,null,0,null,null,null,0,0,"","",""]
[null,null,"",null,null,null,0,null,null,null,0,null,null,null,0,null,null,null,0,0,"","",""]
[null,null,"",null,null,null,0,null,null,null,0,null,null,null,0,null,null,null,0,0,"","",""]
[null,null,"",null,null,null,0,null,null,null,0,null,null,null,0,null,null,null,0,0,"","",""]
[null,null,"",null,null,null,0,null,null,null,0,null,null,null,0,null,null,null,0,0,"","",""]
[null,null,"",null,null,null,0,null,null,null,0,null,null,null,0,null,null,null,0,0,"","",""]
[null,null,"",null,null,null,0,null,null,null,0,null,null,null,0,null,null,null,0,0,"","",""]
[null,null,"",null,null,null,0,null,null,null,0,null,null,null,0,null,null,null,0,0,"","",""]
[null,null,"",null,null,null,0,null,null,null,0,null,null,null,0,null,null,null,0,0,"","",""]
[null,null,"",null,null,null,0,null,null,null,0,null,null,null,0,null,null,null,0,0,"","",""]
[null,null,"",null,null,null,0,null,null,null,0,null,null,null,0,null,null,null,0,0,"","",""]
[null,null,"",null,null,null,0,null,null,null,0,null,null,null,0,null,null,null,0,0,"","",""]
[null,null,"",null,null,null,0,null,null,null,0,null,null,null,0,null,null,null,0,0,"","",""]
[null,null,"",null,null,null,0,null,null,null,0,null,null,null,0,null,null,null,0,0,"","",""]
[null,null,"",null,null,null,0,null,null,null,0,null,null,null,0,null,null,null,0,0,"","",""]
[null,null,"",null,null,null,0,null,null,null,0,null,null,null,0,null,null,null,0,0,"","",""]
[null,null,"",null,null,null,0,null,null,null,0,null,null,null,0,null,null,null,0,0,"","",""]
[null,null,"",null,null,null,0,null,null,null,0,null,null,null,0,null,null,null,0,0,"","",""]
[null,null,"",null,null,null,0,null,null,null,0,null,null,null,0,null,null,null,0,0,"","",""]
[null,null,"",null,null,null,0,null,null,null,0,null,null,null,0,null,null,null,0,0,"","",""]
[null,null,"",null,null,null,0,null,null,null,0,null,null,null,0,null,null,null,0,0,"","",""]
[null,null,"",null,null,null,0,null,null,null,0,null,null,null,0,null,null,null,0,0,"","",""]
[null,null,"",null,null,null,0,null,null,null,0,null,null,null,0,null,null,null,0,0,"","",""]
[null,null,"",null,null,null,0,null,null,null,0,null,null,null,0,null,null,null,0,0,"","",""]
[null,null,"",null,null,null,0,null,null,null,0,null,null,null,0,null,null,null,0,0,"","",""]
[null,null,"",null,null,null,0,null,null,null,0,null,null,null,0,null,null,null,0,0,"","",""]
[null,null,"",null,null,null,0,null,null,null,0,null,null,null,0,null,null,null,0,0,"","",""]
[null,null,"",null,null,null,0,null,null,null,0,null,null,null,0,null,null,null,0,0,"","",""]
[null,null,"",null,null,null,0,null,null,null,0,null,null,null,0,null,null,null,0,0,"","",""]
[null,null,"",null,null,null,0,null,null,null,0,null,null,null,0,null,null,null,0,0,"","",""]
[null,null,"",null,null,null,0,null,null,null,0,null,null,null,0,null,null,null,0,0,"","",""]
[null,null,"",null,null,null,0,null,null,null,0,null,null,null,0,null,null,null,0,0,"","",""]
[null,null,"",null,null,null,0,null,null,null,0,null,null,null,0,null,null,null,0,0,"","",""]
[null,null,"",null,null,null,0,null,null,null,0,null,null,null,0,null,null,null,0,0,"","",""]
[null,null,"",null,null,null,0,null,null,null,0,null,null,null,0,null,null,null,0,0,"","",""]
[null,null,"",null,null,null,0,null,null,null,0,null,null,null,0,null,null,null,0,0,"","",""]
[null,null,"",null,null,null,0,null,null,null,0,null,null,null,0,null,null,null,0,0,"","",""]
[null,null,"",null,null,null,0,null,null,null,0,null,null,null,0,null,null,null,0,0,"","",""]
[null,null,"",null,null,null,0,null,null,null,0,null,null,null,0,null,null,null,0,0,"","",""]
[null,null,"",null,null,null,0,null,null,null,0,null,null,null,0,null,null,null,0,0,"","",""]
[null,null,{"$f":"IF($B135<>\"\",VLOOKUP($B135,Tbl_Reference,2,0),\"\")","v":""},null,null,null,0,null,null,null,0,null,null,null,0,null,null,null,0,0,{"$f":"IF($B135<>\"\",VLOOKUP($B135,Tbl_Reference,3,0),\"\")","v":""},{"$f":"IF($B135<>\"\",VLOOKUP($B135,Tbl_Reference,4,0),\"\")","v":""},""]
[null,null,"",null,null,null,{"$f":"SUM(D136:F136)","v":0},null,null,null,{"$f":"SUM(H136:J136)","v":0},null,null,null,{"$f":"SUM(L136:N136)","v":0},null,null,null,{"$f":"SUM(P136:R136)","v":0},{"$f":"G136+K136+O136+S136","v":0},"","",{"$f":"IF(B136<>\"\",IF(V136<>0,ROUND(T136*V136,2),ROUND(T136*U136,2)),\"\")","v":""}]
[null,null,"",null,null,null,0,null,null,null,0,null,null,null,0,null,null,null,0,0,"","",""]
[null,null,"",null,null,null,0,null,null,null,0,null,null,null,0,null,null,null,0,0,"","",""]
[null,null,"",null,null,null,0,null,null,null,0,null,null,null,0,null,null,null,0,0,"","",""]
[null,null,"",null,null,null,0,null,null,null,0,null,null,null,0,null,null,null,0,0,"","",""]
[null,null,"",null,null,null,0,null,null,null,0,null,null,null,0,null,null,null,0,0,"","",""]
[null,null,"",null,null,null,0,null,null,null,0,null,null,null,0,null,null,null,0,0,"","",""]
[null,null,"",null,null,null,0,null,null,null,0,null,null,null,0,null,null,null,0,0,"","",""]
[null,null,"",null,null,null,0,null,null,null,0,null,null,null,0,null,null,null,0,0,"","",""]
[null,null,"",null,null,null,0,null,null,null,0,null,null,null,0,null,null,null,0,0,"","",""]
[null,null,"",null,null,null,0,null,null,null,0,null,null,null,0,null,null,null,0,0,"","",""]
[null,null,"",null,null,null,0,null,null,null,0,null,null,null,0,null,null,null,0,0,"","",""]
[null,null,"",null,null,null,0,null,null,null,0,null,null,null,0,null,null,null,0,0,"","",""]
[null,null,"",null,null,null,0,null,null,null,0,null,null,null,0,null,null,null,0,0,"","",""]
[null,null,"",null,null,null,0,null,null,null,0,null,null,null,0,null,null,null,0,0,"","",""]
[null,null,"",null,null,null,0,null,null,null,0,null,null,null,0,null,null,null,0,0,"","",""]
[null,null,"",null,null,null,0,null,null,null,0,null,null,null,0,null,null,null,0,0,"","",""]
[null,null,"",null,null,null,0,null,null,null,0,null,null,null,0,null,null,null,0,0,"","",""]
[null,null,"",null,null,null,0,null,null,null,0,null,null,null,0,null,null,null,0,0,"","",""]
[null,null,"",null,null,null,0,null,null,null,0,null,null,null,0,null,null,null,0,0,"","",""]
[null,null,"",null,null,null,0,null,null,null,0,null,null,null,0,null,null,null,0,0,"","",""]
[null,null,"",null,null,null,0,null,null,null,0,null,null,null,0,null,null,null,0,0,"","",""]
[null,null,"",null,null,null,0,null,null,null,0,null,null,null,0,null,null,null,0,0,"","",""]
[null,null,"",null,null,null,0,null,null,null,0,null,null,null,0,null,null,null,0,0,"","",""]
[null,null,"",null,null,null,0,null,null,null,0,null,null,null,0,null,null,null,0,0,"","",""]
[null,null,"",null,null,null,0,null,null,null,0,null,null,null,0,null,null,null,0,0,"","",""]
[null,null,"",null,null,null,0,null,null,null,0,null,null,null,0,null,null,null,0,0,"","",""]
[null,null,"",null,null,null,0,null,null,null,0,null,null,null,0,null,null,null,0,0,"","",""]
[null,null,"",null,null,null,0,null,null,null,0,null,null,null,0,null,null,null,0,0,"","",""]
[null,null,"",null,null,null,0,null,null,null,0,null,null,null,0,null,null,null,0,0,"","",""]
[null,null,"",null,null,null,0,null,null,null,0,null,null,null,0,null,null,null,0,0,"","",""]
[null,null,"",null,null,null,0,null,null,null,0,null,null,null,0,null,null,null,0,0,"","",""]
[null,null,"",null,null,null,0,null,null,null,0,null,null,null,0,null,null,null,0,0,"","",""]
[null,null,"",null,null,null,0,null,null,null,0,null,null,null,0,null,null,null,0,0,"","",""]
[null,null,"",null,null,null,0,null,null,null,0,null,null,null,0,null,null,null,0,0,"","",""]
[null,null,"",null,null,null,0,null,null,null,0,null,null,null,0,null,null,null,0,0,"","",""]
[null,null,"",null,null,null,0,null,null,null,0,null,null,null,0,null,null,null,0,0,"","",""]
[null,null,"",null,null,null,0,null,null,null,0,null,null,null,0,null,null,null,0,0,"","",""]
[null,null,"",null,null,null,0,null,null,null,0,null,null,null,0,null,null,null,0,0,"","",""]
[null,null,"",null,null,null,0,null,null,null,0,null,null,null,0,null,null,null,0,0,"","",""]
[null,null,"",null,null,null,0,null,null,null,0,null,null,null,0,null,null,null,0,0,"","",""]
[null,null,"",null,null,null,0,null,null,null,0,null,null,null,0,null,null,null,0,0,"","",""]
[null,null,"",null,null,null,0,null,null,null,0,null,null,null,0,null,null,null,0,0,"","",""]
[null,null,"",null,null,null,0,null,null,null,0,null,null,null,0,null,null,null,0,0,"","",""]
[null,null,"",null,null,null,0,null,null,null,0,null,null,null,0,null,null,null,0,0,"","",""]
[null,null,"",null,null,null,0,null,null,null,0,null,null,null,0,null,null,null,0,0,"","",""]
[null,null,"",null,null,null,0,null,null,null,0,null,null,null,0,null,null,null,0,0,"","",""]
[null,null,"",null,null,null,0,null,null,null,0,null,null,null,0,null,null,null,0,0,"","",""]
[null,null,"",null,null,null,0,null,null,null,0,null,null,null,0,null,null,null,0,0,"","",""]
[null,null,"",null,null,null,0,null,null,null,0,null,null,null,0,null,null,null,0,0,"","",""]
[null,null,"",null,null,null,0,null,null,null,0,null,null,null,0,null,null,null,0,0,"","",""]
[null,null,"",null,null,null,0,null,null,null,0,null,null,null,0,null,null,null,0,0,"","",""]
[null,null,"",null,null,null,0,null,null,null,0,null,null,null,0,null,null,null,0,0,"","",""]
[null,null,"",null,null,null,0,null,null,null,0,null,null,null,0,null,null,null,0,0,"","",""]
[null,null,"",null,null,null,0,null,null,null,0,null,null,null,0,null,null,null,0,0,"","",""]
[null,null,"",null,null,null,0,null,null,null,0,null,null,null,0,null,null,null,0,0,"","",""]
[null,null,"",null,null,null,0,null,null,null,0,null,null,null,0,null,null,null,0,0,"","",""]
[null,null,"",null,null,null,0,null,null,null,0,null,null,null,0,null,null,null,0,0,"","",""]
[null,null,"",null,null,null,0,null,null,null,0,null,null,null,0,null,null,null,0,0,"","",""]
[null,null,"",null,null,null,0,null,null,null,0,null,null,null,0,null,null,null,0,0,"","",""]
[null,null,"",null,null,null,0,null,null,null,0,null,null,null,0,null,null,null,0,0,"","",""]
[null,null,"",null,null,null,0,null,null,null,0,null,null,null,0,null,null,null,0,0,"","",""]
[null,null,"",null,null,null,0,null,null,null,0,null,null,null,0,null,null,null,0,0,"","",""]
[null,null,{"$f":"IF($B199<>\"\",VLOOKUP($B199,Tbl_Reference,2,0),\"\")","v":""},null,null,null,0,null,null,null,0,null,null,null,0,null,null,null,0,0,{"$f":"IF($B199<>\"\",VLOOKUP($B199,Tbl_Reference,3,0),\"\")","v":""},{"$f":"IF($B199<>\"\",VLOOKUP($B199,Tbl_Reference,4,0),\"\")","v":""},""]
[null,null,"",null,null,null,{"$f":"SUM(D200:F200)","v":0},null,null,null,{"$f":"SUM(H200:J200)","v":0},null,null,null,{"$f":"SUM(L200:N200)","v":0},null,null,null,{"$f":"SUM(P200:R200)","v":0},{"$f":"G200+K200+O200+S200","v":0},"","",{"$f":"IF(B200<>\"\",IF(V200<>0,ROUND(T200*V200,2),ROUND(T200*U200,2)),\"\")","v":""}]
[null,null,"",null,null,null,0,null,null,null,0,null,null,null,0,null,null,null,0,0,"","",""]
[null,null,"",null,null,null,0,null,null,null,0,null,null,null,0,null,null,null,0,0,"","",""]
[null,null,"",null,null,null,0,null,null,null,0,null,null,null,0,null,null,null,0,0,"","",""]
[null,null,"",null,null,null,0,null,null,null,0,null,null,null,0,null,null,null,0,0,"","",""]
[null,null,"",null,null,null,0,null,null,null,0,null,null,null,0,null,null,null,0,0,"","",""]
[null,null,"",null,null,null,0,null,null,null,0,null,null,null,0,null,null,null,0,0,"","",""]
[null,null,"",null,null,null,0,null,null,null,0,null,null,null,0,null,null,null,0,0,"","",""]
[null,null,"",null,null,null,0,null,null,null,0,null,null,null,0,null,null,null,0,0,"","",""]
[null,null,"",null,null,null,0,null,null,null,0,null,null,null,0,null,null,null,0,0,"","",""]
[null,null,"",null,null,null,0,null,null,null,0,null,null,null,0,null,null,null,0,0,"","",""]
[null,null,"",null,null,null,0,null,null,null,0,null,null,null,0,null,null,null,0,0,"","",""]
[null,null,"",null,null,null,0,null,null,null,0,null,null,null,0,null,null,null,0,0,"","",""]
[null,null,"",null,null,null,0,null,null,null,0,null,null,null,0,null,null,null,0,0,"","",""]
[null,null,"",null,null,null,0,null,null,null,0,null,null,null,0,null,null,null,0,0,"","",""]
[null,null,"",null,null,null,0,null,null,null,0,null,null,null,0,null,null,null,0,0,"","",""]
[null,null,"",null,null,null,0,null,null,null,0,null,null,null,0,null,null,null,0,0,"","",""]
[null,null,"",null,null,null,0,null,null,null,0,null,null,null,0,null,null,null,0,0,"","",""]
[null,null,"",null,null,null,0,null,null,null,0,null,null,null,0,null,null,null,0,0,"","",""]
[null,null,"",null,null,null,0,null,null,null,0,null,null,null,0,null,null,null,0,0,"","",""]
[null,null,"",null,null,null,0,null,null,null,0,null,null,null,0,null,null,null,0,0,"","",""]
[null,null,"",null,null,null,0,null,null,null,0,null,null,null,0,null,null,null,0,0,"","",""]
[null,null,"",null,null,null,0,null,null,null,0,null,null,null,0,null,null,null,0,0,"","",""]
[null,null,"",null,null,null,0,null,null,null,0,null,null,null,0,null,null,null,0,0,"","",""]
[null,null,"",null,null,null,0,null,null,null,0,null,null,null,0,null,null,null,0,0,"","",""]
[null,null,"",null,null,null,0,null,null,null,0,null,null,null,0,null,null,null,0,0,"","",""]
[null,null,"",null,null,null,0,null,null,null,0,null,null,null,0,null,null,null,0,0,"","",""]
[null,null,"",null,null,null,0,null,null,null,0,null,null,null,0,null,null,null,0,0,"","",""]
[null,null,"",null,null,null,0,null,null,null,0,null,null,null,0,null,null,null,0,0,"","",""]
[null,null,"",null,null,null,0,null,null,null,0,null,null,null,0,null,null,null,0,0,"","",""]
[null,null,"",null,null,null,0,null,null,null,0,null,null,null,0,null,null,null,0,0,"","",""]
[null,null,"",null,null,null,0,null,null,null,0,null,null,null,0,null,null,null,0,0,"","",""]
[null,null,"",null,null,null,0,null,null,null,0,null,null,null,0,null,null,null,0,0,"","",""]
[null,null,"",null,null,null,0,null,null,null,0,null,null,null,0,null,null,null,0,0,"","",""]
[null,null,"",null,null,null,0,null,null,null,0,null,null,null,0,null,null,null,0,0,"","",""]
[null,null,"",null,null,null,0,null,null,null,0,null,null,null,0,null,null,null,0,0,"","",""]
[null,null,"",null,null,null,0,null,null,null,0,null,null,null,0,null,null,null,0,0,"","",""]
[null,null,"",null,null,null,0,null,null,null,0,null,null,null,0,null,null,null,0,0,"","",""]
[null,null,"",null,null,null,0,null,null,null,0,null,null,null,0,null,null,null,0,0,"","",""]
[null,null,"",null,null,null,0,null,null,null,0,null,null,null,0,null,null,null,0,0,"","",""]
[null,null,"",null,null,null,0,null,null,null,0,null,null,null,0,null,null,null,0,0,"","",""]
[null,null,"",null,null,null,0,null,null,null,0,null,null,null,0,null,null,null,0,0,"","",""]
[null,null,"",null,null,null,0,null,null,null,0,null,null,null,0,null,null,null,0,0,"","",""]
[null,null,"",null,null,null,0,null,null,null,0,null,null,null,0,null,null,null,0,0,"","",""]
[null,null,"",null,null,null,0,null,null,null,0,null,null,null,0,null,null,null,0,0,"","",""]
[null,null,"",null,null,null,0,null,null,null,0,null,null,null,0,null,null,null,0,0,"","",""]
[null,null,"",null,null,null,0,null,null,null,0,null,null,null,0,null,null,null,0,0,"","",""]
[null,null,"",null,null,null,0,null,null,null,0,null,null,null,0,null,null,null,0,0,"","",""]
[null,null,"",null,null,null,0,null,null,null,0,null,null,null,0,null,null,null,0,0,"","",""]
[null,null,"",null,null,null,0,null,null,null,0,null,null,null,0,null,null,null,0,0,"","",""]
[null,null,"",null,null,null,0,null,null,null,0,null,null,null,0,null,null,null,0,0,"","",""]
[null,null,"",null,null,null,0,null,null,null,0,null,null,null,0,null,null,null,0,0,"","",""]
[null,null,"",null,null,null,0,null,null,null,0,null,null,null,0,null,null,null,0,0,"","",""]
[null,null,"",null,null,null,0,null,null,null,0,null,null,null,0,null,null,null,0,0,"","",""]
[null,null,"",null,null,null,0,null,null,null,0,null,null,null,0,null,null,null,0,0,"","",""]
[null,null,"",null,null,null,0,null,null,null,0,null,null,null,0,null,null,null,0,0,"","",""]
[null,null,"",null,null,null,0,null,null,null,0,null,null,null,0,null,null,null,0,0,"","",""]
[null,null,"",null,null,null,0,null,null,null,0,null,null,null,0,null,null,null,0,0,"","",""]
[null,null,"",null,null,null,0,null,null,null,0,null,null,null,0,null,null,null,0,0,"","",""]
[null,null,"",null,null,null,0,null,null,null,0,null,null,null,0,null,null,null,0,0,"","",""]
[null,null,"",null,null,null,0,null,null,null,0,null,null,null,0,null,null,null,0,0,"","",""]
[null,null,"",null,null,null,0,null,null,null,0,null,null,null,0,null,null,null,0,0,"","",""]
[null,null,"",null,null,null,0,null,null,null,0,null,null,null,0,null,null,null,0,0,"","",""]
[null,null,{"$f":"IF($B263<>\"\",VLOOKUP($B263,Tbl_Reference,2,0),\"\")","v":""},null,null,null,0,null,null,null,0,null,null,null,0,null,null,null,0,0,{"$f":"IF($B263<>\"\",VLOOKUP($B263,Tbl_Reference,3,0),\"\")","v":""},{"$f":"IF($B263<>\"\",VLOOKUP($B263,Tbl_Reference,4,0),\"\")","v":""},""]
[null,null,"",null,null,null,{"$f":"SUM(D264:F264)","v":0},null,null,null,{"$f":"SUM(H264:J264)","v":0},null,null,null,{"$f":"SUM(L264:N264)","v":0},null,null,null,{"$f":"SUM(P264:R264)","v":0},{"$f":"G264+K264+O264+S264","v":0},"","",{"$f":"IF(B264<>\"\",IF(V264<>0,ROUND(T264*V264,2),ROUND(T264*U264,2)),\"\")","v":""}]
[null,null,"",null,null,null,0,null,null,null,0,null,null,null,0,null,null,null,0,0,"","",""]
[null,null,"",null,null,null,0,null,null,null,0,null,null,null,0,null,null,null,0,0,"","",""]
[null,null,"",null,null,null,0,null,null,null,0,null,null,null,0,null,null,null,0,0,"","",""]
[null,null,"",null,null,null,0,null,null,null,0,null,null,null,0,null,null,null,0,0,"","",""]
[null,null,"",null,null,null,0,null,null,null,0,null,null,null,0,null,null,null,0,0,"","",""]
[null,null,"",null,null,null,0,null,null,null,0,null,null,null,0,null,null,null,0,0,"","",""]
[null,null,"",null,null,null,0,null,null,null,0,null,null,null,0,null,null,null,0,0,"","",""]
[null,null,"",null,null,null,0,null,null,null,0,null,null,null,0,null,null,null,0,0,"","",""]
[null,null,"",null,null,null,0,null,null,null,0,null,null,null,0,null,null,null,0,0,"","",""]
[null,null,"",null,null,null,0,null,null,null,0,null,null,null,0,null,null,null,0,0,"","",""]
[null,null,"",null,null,null,0,null,null,null,0,null,null,null,0,null,null,null,0,0,"","",""]
[null,null,"",null,null,null,0,null,null,null,0,null,null,null,0,null,null,null,0,0,"","",""]
[null,null,"",null,null,null,0,null,null,null,0,null,null,null,0,null,null,null,0,0,"","",""]
[null,null,"",null,null,null,0,null,null,null,0,null,null,null,0,null,null,null,0,0,"","",""]
[null,null,"",null,null,null,0,null,null,null,0,null,null,null,0,null,null,null,0,0,"","",""]
[null,null,"",null,null,null,0,null,null,null,0,null,null,null,0,null,null,null,0,0,"","",""]
[null,null,"",null,null,null,0,null,null,null,0,null,null,null,0,null,null,null,0,0,"","",""]
[null,null,"",null,null,null,0,null,null,null,0,null,null,null,0,null,null,null,0,0,"","",""]
[null,null,"",null,null,null,0,null,null,null,0,null,null,null,0,null,null,null,0,0,"","",""]
[null,null,"",null,null,null,0,null,null,null,0,null,null,null,0,null,null,null,0,0,"","",""]
[null,null,"",null,null,null,0,null,null,null,0,null,null,null,0,null,null,null,0,0,"","",""]
[null,null,"",null,null,null,0,null,null,null,0,null,null,null,0,null,null,null,0,0,"","",""]
[null,null,"",null,null,null,0,null,null,null,0,null,null,null,0,null,null,null,0,0,"","",""]
[null,null,"",null,null,null,0,null,null,null,0,null,null,null,0,null,null,null,0,0,"","",""]
[null,null,"",null,null,null,0,null,null,null,0,null,null,null,0,null,null,null,0,0,"","",""]
[null,null,"",null,null,null,0,null,null,null,0,null,null,null,0,null,null,null,0,0,"","",""]
[null,null,"",null,null,null,0,null,null,null,0,null,null,null,0,null,null,null,0,0,"","",""]
[null,null,"",null,null,null,0,null,null,null,0,null,null,null,0,null,null,null,0,0,"","",""]
[null,null,"",null,null,null,0,null,null,null,0,null,null,null,0,null,null,null,0,0,"","",""]
[null,null,"",null,null,null,0,null,null,null,0,null,null,null,0,null,null,null,0,0,"","",""]
[null,null,"",null,null,null,0,null,null,null,0,null,null,null,0,null,null,null,0,0,"","",""]
[null,null,"",null,null,null,0,null,null,null,0,null,null,null,0,null,null,null,0,0,"","",""]
[null,null,"",null,null,null,0,null,null,null,0,null,null,null,0,null,null,null,0,0,"","",""]
[null,null,"",null,null,null,0,null,null,null,0,null,null,null,0,null,null,null,0,0,"","",""]
[null,null,"",null,null,null,0,null,null,null,0,null,null,null,0,null,null,null,0,0,"","",""]
[null,null,"",null,null,null,0,null,null,null,0,null,null,null,0,null,null,null,0,0,"","",""]
[null,null,"",null,null,null,0,null,null,null,0,null,null,null,0,null,null,null,0,0,"","",""]
[null,null,"",null,null,null,0,null,null,null,0,null,null,null,0,null,null,null,0,0,"","",""]
[null,null,"",null,null,null,0,null,null,null,0,null,null,null,0,null,null,null,0,0,"","",""]
[null,null,"",null,null,null,0,null,null,null,0,null,null,null,0,null,null,null,0,0,"","",""]
[null,null,"",null,null,null,0,null,null,null,0,null,null,null,0,null,null,null,0,0,"","",""]
[null,null,"",null,null,null,0,null,null,null,0,null,null,null,0,null,null,null,0,0,"","",""]
[null,null,"",null,null,null,0,null,null,null,0,null,null,null,0,null,null,null,0,0,"","",""]
[null,null,"",null,null,null,0,null,null,null,0,null,null,null,0,null,null,null,0,0,"","",""]
[null,null,"",null,null,null,0,null,null,null,0,null,null,null,0,null,null,null,0,0,"","",""]
[null,null,"",null,null,null,0,null,null,null,0,null,null,null,0,null,null,null,0,0,"","",""]
[null,null,"",null,null,null,0,null,null,null,0,null,null,null,0,null,null,null,0,0,"","",""]
[null,null,"",null,null,null,0,null,null,null,0,null,null,null,0,null,null,null,0,0,"","",""]
[null,null,"",null,null,null,0,null,null,null,0,null,null,null,0,null,null,null,0,0,"","",""]
[null,null,"",null,null,null,0,null,null,null,0,null,null,null,0,null,null,null,0,0,"","",""]
[null,null,"",null,null,null,0,null,null,null,0,null,null,null,0,null,null,null,0,0,"","",""]
[null,null,"",null,null,null,0,null,null,null,0,null,null,null,0,null,null,null,0,0,"","",""]
[null,null,"",null,null,null,0,null,null,null,0,null,null,null,0,null,null,null,0,0,"","",""]
[null,null,"",null,null,null,0,null,null,null,0,null,null,null,0,null,null,null,0,0,"","",""]
[null,null,"",null,null,null,0,null,null,null,0,null,null,null,0,null,null,null,0,0,"","",""]
[null,null,"",null,null,null,0,null,null,null,0,null,null,null,0,null,null,null,0,0,"","",""]
[null,null,"",null,null,null,0,null,null,null,0,null,null,null,0,null,null,null,0,0,"","",""]
[null,null,"",null,null,null,0,null,null,null,0,null,null,null,0,null,null,null,0,0,"","",""]
[null,null,"",null,null,null,0,null,null,null,0,null,null,null,0,null,null,null,0,0,"","",""]
[null,null,"",null,null,null,0,null,null,null,0,null,null,null,0,null,null,null,0,0,"","",""]
[null,null,"",null,null,null,0,null,null,null,0,null,null,null,0,null,null,null,0,0,"","",""]
[null,null,"",null,null,null,0,null,null,null,0,null,null,null,0,null,null,null,0,0,"","",""]
[null,null,{"$f":"IF($B327<>\"\",VLOOKUP($B327,Tbl_Reference,2,0),\"\")","v":""},null,null,null,0,null,null,null,0,null,null,null,0,null,null,null,0,0,{"$f":"IF($B327<>\"\",VLOOKUP($B327,Tbl_Reference,3,0),\"\")","v":""},{"$f":"IF($B327<>\"\",VLOOKUP($B327,Tbl_Reference,4,0),\"\")","v":""},""]
[null,null,"",null,null,null,{"$f":"SUM(D328:F328)","v":0},null,null,null,{"$f":"SUM(H328:J328)","v":0},null,null,null,{"$f":"SUM(L328:N328)","v":0},null,null,null,{"$f":"SUM(P328:R328)","v":0},{"$f":"G328+K328+O328+S328","v":0},"","",{"$f":"IF(B328<>\"\",IF(V328<>0,ROUND(T328*V328,2),ROUND(T328*U328,2)),\"\")","v":""}]
[null,null,"",null,null,null,0,null,null,null,0,null,null,null,0,null,null,null,0,0,"","",""]
[null,null,"",null,null,null,0,null,null,null,0,null,null,null,0,null,null,null,0,0,"","",""]
[null,null,"",null,null,null,0,null,null,null,0,null,null,null,0,null,null,null,0,0,"","",""]
[null,null,"",null,null,null,0,null,null,null,0,null,null,null,0,null,null,null,0,0,"","",""]
[null,null,"",null,null,null,0,null,null,null,0,null,null,null,0,null,null,null,0,0,"","",""]
[null,null,"",null,null,null,0,null,null,null,0,null,null,null,0,null,null,null,0,0,"","",""]
[null,null,"",null,null,null,0,null,null,null,0,null,null,null,0,null,null,null,0,0,"","",""]
[null,null,"",null,null,null,0,null,null,null,0,null,null,null,0,null,null,null,0,0,"","",""]
[null,null,"",null,null,null,0,null,null,null,0,null,null,null,0,null,null,null,0,0,"","",""]
[null,null,"",null,null,null,0,null,null,null,0,null,null,null,0,null,null,null,0,0,"","",""]
[null,null,"",null,null,null,0,null,null,null,0,null,null,null,0,null,null,null,0,0,"","",""]
[null,null,"",null,null,null,0,null,null,null,0,null,null,null,0,null,null,null,0,0,"","",""]
[null,null,"",null,null,null,0,null,null,null,0,null,null,null,0,null,null,null,0,0,"","",""]
[null,null,"",null,null,null,0,null,null,null,0,null,null,null,0,null,null,null,0,0,"","",""]
[null,null,"",null,null,null,0,null,null,null,0,null,null,null,0,null,null,null,0,0,"","",""]
[null,null,"",null,null,null,0,null,null,null,0,null,null,null,0,null,null,null,0,0,"","",""]
[null,null,"",null,null,null,0,null,null,null,0,null,null,null,0,null,null,null,0,0,"","",""]
[null,null,"",null,null,null,0,null,null,null,0,null,null,null,0,null,null,null,0,0,"","",""]
[null,null,"",null,null,null,0,null,null,null,0,null,null,null,0,null,null,null,0,0,"","",""]
[null,null,"",null,null,null,0,null,null,null,0,null,null,null,0,null,null,null,0,0,"","",""]
[null,null,"",null,null,null,0,null,null,null,0,null,null,null,0,null,null,null,0,0,"","",""]
[null,null,"",null,null,null,0,null,null,null,0,null,null,null,0,null,null,null,0,0,"","",""]
[null,null,"",null,null,null,0,null,null,null,0,null,null,null,0,null,null,null,0,0,"","",""]
[null,null,"",null,null,null,0,null,null,null,0,null,null,null,0,null,null,null,0,0,"","",""]
[null,null,"",null,null,null,0,null,null,null,0,null,null,null,0,null,null,null,0,0,"","",""]
[null,null,"",null,null,null,0,null,null,null,0,null,null,null,0,null,null,null,0,0,"","",""]
[null,null,"",null,null,null,0,null,null,null,0,null,null,null,0,null,null,null,0,0,"","",""]
[null,null,"",null,null,null,0,null,null,null,0,null,null,null,0,null,null,null,0,0,"","",""]
[null,null,"",null,null,null,0,null,null,null,0,null,null,null,0,null,null,null,0,0,"","",""]
[null,null,"",null,null,null,0,null,null,null,0,null,null,null,0,null,null,null,0,0,"","",""]
[null,null,"",null,null,null,0,null,null,null,0,null,null,null,0,null,null,null,0,0,"","",""]
[null,null,"",null,null,null,0,null,null,null,0,null,null,null,0,null,null,null,0,0,"","",""]
[null,null,"",null,null,null,0,null,null,null,0,null,null,null,0,null,null,null,0,0,"","",""]
[null,null,"",null,null,null,0,null,null,null,0,null,null,null,0,null,null,null,0,0,"","",""]
[null,null,"",null,null,null,0,null,null,null,0,null,null,null,0,null,null,null,0,0,"","",""]
[null,null,"",null,null,null,0,null,null,null,0,null,null,null,0,null,null,null,0,0,"","",""]
[null,null,"",null,null,null,0,null,null,null,0,null,null,null,0,null,null,null,0,0,"","",""]
[null,null,"",null,null,null,0,null,null,null,0,null,null,null,0,null,null,null,0,0,"","",""]
[null,null,"",null,null,null,0,null,null,null,0,null,null,null,0,null,null,null,0,0,"","",""]
[null,null,"",null,null,null,0,null,null,null,0,null,null,null,0,null,null,null,0,0,"","",""]
[null,null,"",null,null,null,0,null,null,null,0,null,null,null,0,null,null,null,0,0,"","",""]
[null,null,"",null,null,null,0,null,null,null,0,null,null,null,0,null,null,null,0,0,"","",""]
[null,null,"",null,null,null,0,null,null,null,0,null,null,null,0,null,null,null,0,0,"","",""]
[null,null,"",null,null,null,0,null,null,null,0,null,null,null,0,null,null,null,0,0,"","",""]
[null,null,"",null,null,null,0,null,null,null,0,null,null,null,0,null,null,null,0,0,"","",""]
[null,null,"",null,null,null,0,null,null,null,0,null,null,null,0,null,null,null,0,0,"","",""]
[null,null,"",null,null,null,0,null,null,null,0,null,null,null,0,null,null,null,0,0,"","",""]
[null,null,"",null,null,null,0,null,null,null,0,null,null,null,0,null,null,null,0,0,"","",""]
[null,null,"",null,null,null,0,null,null,null,0,null,null,null,0,null,null,null,0,0,"","",""]
[null,null,"",null,null,null,0,null,null,null,0,null,null,null,0,null,null,null,0,0,"","",""]
[null,null,"",null,null,null,0,null,null,null,0,null,null,null,0,null,null,null,0,0,"","",""]
[null,null,"",null,null,null,0,null,null,null,0,null,null,null,0,null,null,null,0,0,"","",""]
[null,null,"",null,null,null,0,null,null,null,0,null,null,null,0,null,null,null,0,0,"","",""]
[null,null,"",null,null,null,0,null,null,null,0,null,null,null,0,null,null,null,0,0,"","",""]
[null,null,"",null,null,null,0,null,null,null,0,null,null,null,0,null,null,null,0,0,"","",""]
[null,null,"",null,null,null,0,null,null,null,0,null,null,null,0,null,null,null,0,0,"","",""]
[null,null,"",null,null,null,0,null,null,null,0,null,null,null,0,null,null,null,0,0,"","",""]
[null,null,"",null,null,null,0,null,null,null,0,null,null,null,0,null,null,null,0,0,"","",""]
[null,null,"",null,null,null,0,null,null,null,0,null,null,null,0,null,null,null,0,0,"","",""]
[null,null,"",null,null,null,0,null,null,null,0,null,null,null,0,null,null,null,0,0,"","",""]
[null,null,"",null,null,null,0,null,null,null,0,null,null,null,0,null,null,null,0,0,"","",""]
[null,null,"",null,null,null,0,null,null,null,0,null,null,null,0,null,null,null,0,0,"","",""]
[null,null,{"$f":"IF($B391<>\"\",VLOOKUP($B391,Tbl_Reference,2,0),\"\")","v":""},null,null,null,0,null,null,null,0,null,null,null,0,null,null,null,0,0,{"$f":"IF($B391<>\"\",VLOOKUP($B391,Tbl_Reference,3,0),\"\")","v":""},{"$f":"IF($B391<>\"\",VLOOKUP($B391,Tbl_Reference,4,0),\"\")","v":""},""]
[null,null,"",null,null,null,{"$f":"SUM(D392:F392)","v":0},null,null,null,{"$f":"SUM(H392:J392)","v":0},null,null,null,{"$f":"SUM(L392:N392)","v":0},null,null,null,{"$f":"SUM(P392:R392)","v":0},{"$f":"G392+K392+O392+S392","v":0},"","",{"$f":"IF(B392<>\"\",IF(V392<>0,ROUND(T392*V392,2),ROUND(T392*U392,2)),\"\")","v":""}]
[null,null,"",null,null,null,0,null,null,null,0,null,null,null,0,null,null,null,0,0,"","",""]
[null,null,"",null,null,null,0,null,null,null,0,null,null,null,0,null,null,null,0,0,"","",""]
[null,null,"",null,null,null,0,null,null,null,0,null,null,null,0,null,null,null,0,0,"","",""]
[null,null,"",null,null,null,0,null,null,null,0,null,null,null,0,null,null,null,0,0,"","",""]
[null,null,"",null,null,null,0,null,null,null,0,null,null,null,0,null,null,null,0,0,"","",""]
[null,null,"",null,null,null,0,null,null,null,0,null,null,null,0,null,null,null,0,0,"","",""]
[null,null,"",null,null,null,0,null,null,null,0,null,null,null,0,null,null,null,0,0,"","",""]
[null,null,"",null,null,null,0,null,null,null,0,null,null,null,0,null,null,null,0,0,"","",""]
[null,null,"",null,null,null,0,null,null,null,0,null,null,null,0,null,null,null,0,0,"","",""]
[null,null,"",null,null,null,0,null,null,null,0,null,null,null,0,null,null,null,0,0,"","",""]
[null,null,"",null,null,null,0,null,null,null,0,null,null,null,0,null,null,null,0,0,"","",""]
[null,null,"",null,null,null,0,null,null,null,0,null,null,null,0,null,null,null,0,0,"","",""]
[null,null,"",null,null,null,0,null,null,null,0,null,null,null,0,null,null,null,0,0,"","",""]
[null,null,"",null,null,null,0,null,null,null,0,null,null,null,0,null,null,null,0,0,"","",""]
[null,null,"",null,null,null,0,null,null,null,0,null,null,null,0,null,null,null,0,0,"","",""]
[null,null,"",null,null,null,0,null,null,null,0,null,null,null,0,null,null,null,0,0,"","",""]
[null,null,"",null,null,null,0,null,null,null,0,null,null,null,0,null,null,null,0,0,"","",""]
[null,null,"",null,null,null,0,null,null,null,0,null,null,null,0,null,null,null,0,0,"","",""]
[null,null,"",null,null,null,0,null,null,null,0,null,null,null,0,null,null,null,0,0,"","",""]
[null,null,"",null,null,null,0,null,null,null,0,null,null,null,0,null,null,null,0,0,"","",""]
[null,null,"",null,null,null,0,null,null,null,0,null,null,null,0,null,null,null,0,0,"","",""]
[null,null,"",null,null,null,0,null,null,null,0,null,null,null,0,null,null,null,0,0,"","",""]
[null,null,"",null,null,null,0,null,null,null,0,null,null,null,0,null,null,null,0,0,"","",""]
[null,null,"",null,null,null,0,null,null,null,0,null,null,null,0,null,null,null,0,0,"","",""]
[null,null,"",null,null,null,0,null,null,null,0,null,null,null,0,null,null,null,0,0,"","",""]
[null,null,"",null,null,null,0,null,null,null,0,null,null,null,0,null,null,null,0,0,"","",""]
[null,null,"",null,null,null,0,null,null,null,0,null,null,null,0,null,null,null,0,0,"","",""]
[null,null,"",null,null,null,0,null,null,null,0,null,null,null,0,null,null,null,0,0,"","",""]
[null,null,"",null,null,null,0,null,null,null,0,null,null,null,0,null,null,null,0,0,"","",""]
[null,null,"",null,null,null,0,null,null,null,0,null,null,null,0,null,null,null,0,0,"","",""]
[null,null,"",null,null,null,0,null,null,null,0,null,null,null,0,null,null,null,0,0,"","",""]
[null,null,"",null,null,null,0,null,null,null,0,null,null,null,0,null,null,null,0,0,"","",""]
[null,null,"",null,null,null,0,null,null,null,0,null,null,null,0,null,null,null,0,0,"","",""]
[null,null,"",null,null,null,0,null,null,null,0,null,null,null,0,null,null,null,0,0,"","",""]
[null,null,"",null,null,null,0,null,null,null,0,null,null,null,0,null,null,null,0,0,"","",""]
[null,null,"",null,null,null,0,null,null,null,0,null,null,null,0,null,null,null,0,0,"","",""]
[null,null,"",null,null,null,0,null,null,null,0,null,null,null,0,null,null,null,0,0,"","",""]
[null,null,"",null,null,null,0,null,null,null,0,null,null,null,0,null,null,null,0,0,"","",""]
[null,null,"",null,null,null,0,null,null,null,0,null,null,null,0,null,null,null,0,0,"","",""]
[null,null,"",null,null,null,0,null,null,null,0,null,null,null,0,null,null,null,0,0,"","",""]
[null,null,"",null,null,null,0,null,null,null,0,null,null,null,0,null,null,null,0,0,"","",""]
[null,null,"",null,null,null,0,null,null,null,0,null,null,null,0,null,null,null,0,0,"","",""]
[null,null,"",null,null,null,0,null,null,null,0,null,null,null,0,null,null,null,0,0,"","",""]
[null,null,"",null,null,null,0,null,null,null,0,null,null,null,0,null,null,null,0,0,"","",""]
[null,null,"",null,null,null,0,null,null,null,0,null,null,null,0,null,null,null,0,0,"","",""]
[null,null,"",null,null,null,0,null,null,null,0,null,null,null,0,null,null,null,0,0,"","",""]
[null,null,"",null,null,null,0,null,null,null,0,null,null,null,0,null,null,null,0,0,"","",""]
[null,null,"",null,null,null,0,null,null,null,0,null,null,null,0,null,null,null,0,0,"","",""]
[null,null,"",null,null,null,0,null,null,null,0,null,null,null,0,null,null,null,0,0,"","",""]
[null,null,"",null,null,null,0,null,null,null,0,null,null,null,0,null,null,null,0,0,"","",""]
[null,null,"",null,null,null,0,null,null,null,0,null,null,null,0,null,null,null,0,0,"","",""]
[null,null,"",null,null,null,0,null,null,null,0,null,null,null,0,null,null,null,0,0,"","",""]
[null,null,"",null,null,null,0,null,null,null,0,null,null,null,0,null,null,null,0,0,"","",""]
[null,null,"",null,null,null,0,null,null,null,0,null,null,null,0,null,null,null,0,0,"","",""]
[null,null,"",null,null,null,0,null,null,null,0,null,null,null,0,null,null,null,0,0,"","",""]
[null,null,"",null,null,null,0,null,null,null,0,null,null,null,0,null,null,null,0,0,"","",""]
[null,null,"",null,null,null,0,null,null,null,0,null,null,null,0,null,null,null,0,0,"","",""]
[null,null,"",null,null,null,0,null,null,null,0,null,null,null,0,null,null,null,0,0,"","",""]
[null,null,"",null,null,null,0,null,null,null,0,null,null,null,0,null,null,null,0,0,"","",""]
[null,null,"",null,null,null,0,null,null,null,0,null,null,null,0,null,null,null,0,0,"","",""]
[null,null,"",null,null,null,0,null,null,null,0,null,null,null,0,null,null,null,0,0,"","",""]
[null,null,"",null,null,null,0,null,null,null,0,null,null,null,0,null,null,null,0,0,"","",""]
[null,null,{"$f":"IF($B455<>\"\",VLOOKUP($B455,Tbl_Reference,2,0),\"\")","v":""},null,null,null,0,null,null,null,0,null,null,null,0,null,null,null,0,0,{"$f":"IF($B455<>\"\",VLOOKUP($B455,Tbl_Reference,3,0),\"\")","v":""},{"$f":"IF($B455<>\"\",VLOOKUP($B455,Tbl_Reference,4,0),\"\")","v":""},""]
[null,null,"",null,null,null,{"$f":"SUM(D456:F456)","v":0},null,null,null,{"$f":"SUM(H456:J456)","v":0},null,null,null,{"$f":"SUM(L456:N456)","v":0},null,null,null,{"$f":"SUM(P456:R456)","v":0},{"$f":"G456+K456+O456+S456","v":0},"","",{"$f":"IF(B456<>\"\",IF(V456<>0,ROUND(T456*V456,2),ROUND(T456*U456,2)),\"\")","v":""}]
[null,null,"",null,null,null,0,null,null,null,0,null,null,null,0,null,null,null,0,0,"","",""]
[null,null,"",null,null,null,0,null,null,null,0,null,null,null,0,null,null,null,0,0,"","",""]
[null,null,"",null,null,null,0,null,null,null,0,null,null,null,0,null,null,null,0,0,"","",""]
[null,null,"",null,null,null,0,null,null,null,0,null,null,null,0,null,null,null,0,0,"","",""]
[null,null,"",null,null,null,0,null,null,null,0,null,null,null,0,null,null,null,0,0,"","",""]
[null,null,"",null,null,null,0,null,null,null,0,null,null,null,0,null,null,null,0,0,"","",""]
[null,null,"",null,null,null,0,null,null,null,0,null,null,null,0,null,null,null,0,0,"","",""]
[null,null,"",null,null,null,0,null,null,null,0,null,null,null,0,null,null,null,0,0,"","",""]
[null,null,"",null,null,null,0,null,null,null,0,null,null,null,0,null,null,null,0,0,"","",""]
[null,null,"",null,null,null,0,null,null,null,0,null,null,null,0,null,null,null,0,0,"","",""]
[null,null,"",null,null,null,0,null,null,null,0,null,null,null,0,null,null,null,0,0,"","",""]
[null,null,"",null,null,null,0,null,null,null,0,null,null,null,0,null,null,null,0,0,"","",""]
[null,null,"",null,null,null,0,null,null,null,0,null,null,null,0,null,null,null,0,0,"","",""]
[null,null,"",null,null,null,0,null,null,null,0,null,null,null,0,null,null,null,0,0,"","",""]
[null,null,"",null,null,null,0,null,null,null,0,null,null,null,0,null,null,null,0,0,"","",""]
[null,null,"",null,null,null,0,null,null,null,0,null,null,null,0,null,null,null,0,0,"","",""]
[null,null,"",null,null,null,0,null,null,null,0,null,null,null,0,null,null,null,0,0,"","",""]
[null,null,"",null,null,null,0,null,null,null,0,null,null,null,0,null,null,null,0,0,"","",""]
[null,null,"",null,null,null,0,null,null,null,0,null,null,null,0,null,null,null,0,0,"","",""]
[null,null,"",null,null,null,0,null,null,null,0,null,null,null,0,null,null,null,0,0,"","",""]
[null,null,"",null,null,null,0,null,null,null,0,null,null,null,0,null,null,null,0,0,"","",""]
[null,null,"",null,null,null,0,null,null,null,0,null,null,null,0,null,null,null,0,0,"","",""]
[null,null,"",null,null,null,0,null,null,null,0,null,null,null,0,null,null,null,0,0,"","",""]
[null,null,"",null,null,null,0,null,null,null,0,null,null,null,0,null,null,null,0,0,"","",""]
[null,null,"",null,null,null,0,null,null,null,0,null,null,null,0,null,null,null,0,0,"","",""]
[null,null,"",null,null,null,0,null,null,null,0,null,null,null,0,null,null,null,0,0,"","",""]
[null,null,"",null,null,null,0,null,null,null,0,null,null,null,0,null,null,null,0,0,"","",""]
[null,null,"",null,null,null,0,null,null,null,0,null,null,null,0,null,null,null,0,0,"","",""]
[null,null,"",null,null,null,0,null,null,null,0,null,null,null,0,null,null,null,0,0,"","",""]
[null,null,"",null,null,null,0,null,null,null,0,null,null,null,0,null,null,null,0,0,"","",""]
[null,null,"",null,null,null,0,null,null,null,0,null,null,null,0,null,null,null,0,0,"","",""]
[null,null,"",null,null,null,0,null,null,null,0,null,null,null,0,null,null,null,0,0,"","",""]
[null,null,"",null,null,null,0,null,null,null,0,null,null,null,0,null,null,null,0,0,"","",""]
[null,null,"",null,null,null,0,null,null,null,0,null,null,null,0,null,null,null,0,0,"","",""]
[null,null,"",null,null,null,0,null,null,null,0,null,null,null,0,null,null,null,0,0,"","",""]
[null,null,"",null,null,null,0,null,null,null,0,null,null,null,0,null,null,null,0,0,"","",""]
[null,null,"",null,null,null,0,null,null,null,0,null,null,null,0,null,null,null,0,0,"","",""]
[null,null,"",null,null,null,0,null,null,null,0,null,null,null,0,null,null,null,0,0,"","",""]
[null,null,"",null,null,null,0,null,null,null,0,null,null,null,0,null,null,null,0,0,"","",""]
[null,null,"",null,null,null,0,null,null,null,0,null,null,null,0,null,null,null,0,0,"","",""]
[null,null,"",null,null,null,0,null,null,null,0,null,null,null,0,null,null,null,0,0,"","",""]
[null,null,"",null,null,null,0,null,null,null,0,null,null,null,0,null,null,null,0,0,"","",""]
[null,null,"",null,null,null,0,null,null,null,0,null,null,null,0,null,null,null,0,0,"","",""]
[null,null,"",null,null,null,0,null,null,null,0,null,null,null,0,null,null,null,0,0,"","",""]
[null,null,"",null,null,null,0,null,null,null,0,null,null,null,0,null,null,null,0,0,"","",""]
[null,null,"",null,null,null,0,null,null,null,0,null,null,null,0,null,null,null,0,0,"","",""]
[null,null,"",null,null,null,0,null,null,null,0,null,null,null,0,null,null,null,0,0,"","",""]
[null,null,"",null,null,null,0,null,null,null,0,null,null,null,0,null,null,null,0,0,"","",""]
[null,null,"",null,null,null,0,null,null,null,0,null,null,null,0,null,null,null,0,0,"","",""]
[null,null,"",null,null,null,0,null,null,null,0,null,null,null,0,null,null,null,0,0,"","",""]
[null,null,"",null,null,null,0,null,null,null,0,null,null,null,0,null,null,null,0,0,"","",""]
[null,null,"",null,null,null,0,null,null,null,0,null,null,null,0,null,null,null,0,0,"","",""]
[null,null,"",null,null,null,0,null,null,null,0,null,null,null,0,null,null,null,0,0,"","",""]
[null,null,"",null,null,null,0,null,null,null,0,null,null,null,0,null,null,null,0,0,"","",""]
[null,null,"",null,null,null,0,null,null,null,0,null,null,null,0,null,null,null,0,0,"","",""]
[null,null,"",null,null,null,0,null,null,null,0,null,null,null,0,null,null,null,0,0,"","",""]
[null,null,"",null,null,null,0,null,null,null,0,null,null,null,0,null,null,null,0,0,"","",""]
[null,null,"",null,null,null,0,null,null,null,0,null,null,null,0,null,null,null,0,0,"","",""]
[null,null,"",null,null,null,0,null,null,null,0,null,null,null,0,null,null,null,0,0,"","",""]
[null,null,"",null,null,null,0,null,null,null,0,null,null,null,0,null,null,null,0,0,"","",""]
[null,null,"",null,null,null,0,null,null,null,0,null,null,null,0,null,null,null,0,0,"","",""]
[null,null,"",null,null,null,0,null,null,null,0,null,null,null,0,null,null,null,0,0,"","",""]
[null,null,{"$f":"IF($B519<>\"\",VLOOKUP($B519,Tbl_Reference,2,0),\"\")","v":""},null,null,null,0,null,null,null,0,null,null,null,0,null,null,null,0,0,{"$f":"IF($B519<>\"\",VLOOKUP($B519,Tbl_Reference,3,0),\"\")","v":""},{"$f":"IF($B519<>\"\",VLOOKUP($B519,Tbl_Reference,4,0),\"\")","v":""},""]
[null,null,"",null,null,null,{"$f":"SUM(D520:F520)","v":0},null,null,null,{"$f":"SUM(H520:J520)","v":0},null,null,null,{"$f":"SUM(L520:N520)","v":0},null,null,null,{"$f":"SUM(P520:R520)","v":0},{"$f":"G520+K520+O520+S520","v":0},"","",{"$f":"IF(B520<>\"\",IF(V520<>0,ROUND(T520*V520,2),ROUND(T520*U520,2)),\"\")","v":""}]
[null,null,"",null,null,null,0,null,null,null,0,null,null,null,0,null,null,null,0,0,"","",""]
[null,null,"",null,null,null,0,null,null,null,0,null,null,null,0,null,null,null,0,0,"","",""]
[null,null,"",null,null,null,0,null,null,null,0,null,null,null,0,null,null,null,0,0,"","",""]
[null,null,"",null,null,null,0,null,null,null,0,null,null,null,0,null,null,null,0,0,"","",""]
[null,null,"",null,null,null,0,null,null,null,0,null,null,null,0,null,null,null,0,0,"","",""]
[null,null,"",null,null,null,0,null,null,null,0,null,null,null,0,null,null,null,0,0,"","",""]
[null,null,"",null,null,null,0,null,null,null,0,null,null,null,0,null,null,null,0,0,"","",""]
[null,null,"",null,null,null,0,null,null,null,0,null,null,null,0,null,null,null,0,0,"","",""]
[null,null,"",null,null,null,0,null,null,null,0,null,null,null,0,null,null,null,0,0,"","",""]
[null,null,"",null,null,null,0,null,null,null,0,null,null,null,0,null,null,null,0,0,"","",""]
[null,null,"",null,null,null,0,null,null,null,0,null,null,null,0,null,null,null,0,0,"","",""]
[null,null,"",null,null,null,0,null,null,null,0,null,null,null,0,null,null,null,0,0,"","",""]
[null,null,"",null,null,null,0,null,null,null,0,null,null,null,0,null,null,null,0,0,"","",""]
[null,null,"",null,null,null,0,null,null,null,0,null,null,null,0,null,null,null,0,0,"","",""]
[null,null,"",null,null,null,0,null,null,null,0,null,null,null,0,null,null,null,0,0,"","",""]
[null,null,"",null,null,null,0,null,null,null,0,null,null,null,0,null,null,null,0,0,"","",""]
[null,null,"",null,null,null,0,null,null,null,0,null,null,null,0,null,null,null,0,0,"","",""]
[null,null,"",null,null,null,0,null,null,null,0,null,null,null,0,null,null,null,0,0,"","",""]
[null,null,"",null,null,null,0,null,null,null,0,null,null,null,0,null,null,null,0,0,"","",""]
[null,null,"",null,null,null,0,null,null,null,0,null,null,null,0,null,null,null,0,0,"","",""]
[null,null,"",null,null,null,0,null,null,null,0,null,null,null,0,null,null,null,0,0,"","",""]
[null,null,"",null,null,null,0,null,null,null,0,null,null,null,0,null,null,null,0,0,"","",""]
[null,null,"",null,null,null,0,null,null,null,0,null,null,null,0,null,null,null,0,0,"","",""]
[null,null,"",null,null,null,0,null,null,null,0,null,null,null,0,null,null,null,0,0,"","",""]
[null,null,"",null,null,null,0,null,null,null,0,null,null,null,0,null,null,null,0,0,"","",""]
[null,null,"",null,null,null,0,null,null,null,0,null,null,null,0,null,null,null,0,0,"","",""]
[null,null,"",null,null,null,0,null,null,null,0,null,null,null,0,null,null,null,0,0,"","",""]
[null,null,"",null,null,null,0,null,null,null,0,null,null,null,0,null,null,null,0,0,"","",""]
[null,null,"",null,null,null,0,null,null,null,0,null,null,null,0,null,null,null,0,0,"","",""]
[null,null,"",null,null,null,0,null,null,null,0,null,null,null,0,null,null,null,0,0,"","",""]
[null,null,"",null,null,null,0,null,null,null,0,null,null,null,0,null,null,null,0,0,"","",""]
[null,null,"",null,null,null,0,null,null,null,0,null,null,null,0,null,null,null,0,0,"","",""]
[null,null,"",null,null,null,0,null,null,null,0,null,null,null,0,null,null,null,0,0,"","",""]
[null,null,"",null,null,null,0,null,null,null,0,null,null,null,0,null,null,null,0,0,"","",""]
[null,null,"",null,null,null,0,null,null,null,0,null,null,null,0,null,null,null,0,0,"","",""]
[null,null,"",null,null,null,0,null,null,null,0,null,null,null,0,null,null,null,0,0,"","",""]
[null,null,"",null,null,null,0,null,null,null,0,null,null,null,0,null,null,null,0,0,"","",""]
[null,null,"",null,null,null,0,null,null,null,0,null,null,null,0,null,null,null,0,0,"","",""]
[null,null,"",null,null,null,0,null,null,null,0,null,null,null,0,null,null,null,0,0,"","",""]
[null,null,"",null,null,null,0,null,null,null,0,null,null,null,0,null,null,null,0,0,"","",""]
[null,null,"",null,null,null,0,null,null,null,0,null,null,null,0,null,null,null,0,0,"","",""]
[null,null,"",null,null,null,0,null,null,null,0,null,null,null,0,null,null,null,0,0,"","",""]
[null,null,"",null,null,null,0,null,null,null,0,null,null,null,0,null,null,null,0,0,"","",""]
[null,null,"",null,null,null,0,null,null,null,0,null,null,null,0,null,null,null,0,0,"","",""]
[null,null,"",null,null,null,0,null,null,null,0,null,null,null,0,null,null,null,0,0,"","",""]
[null,null,"",null,null,null,0,null,null,null,0,null,null,null,0,null,null,null,0,0,"","",""]
[null,null,"",null,null,null,0,null,null,null,0,null,null,null,0,null,null,null,0,0,"","",""]
[null,null,"",null,null,null,0,null,null,null,0,null,null,null,0,null,null,null,0,0,"","",""]
[null,null,"",null,null,null,0,null,null,null,0,null,null,null,0,null,null,null,0,0,"","",""]
[null,null,"",null,null,null,0,null,null,null,0,null,null,null,0,null,null,null,0,0,"","",""]
[null,null,"",null,null,null,0,null,null,null,0,null,null,null,0,null,null,null,0,0,"","",""]
[null,null,"",null,null,null,0,null,null,null,0,null,null,null,0,null,null,null,0,0,"","",""]
[null,null,"",null,null,null,0,null,null,null,0,null,null,null,0,null,null,null,0,0,"","",""]
[null,null,"",null,null,null,0,null,null,null,0,null,null,null,0,null,null,null,0,0,"","",""]
[null,null,"",null,null,null,0,null,null,null,0,null,null,null,0,null,null,null,0,0,"","",""]
[null,null,"",null,null,null,0,null,null,null,0,null,null,null,0,null,null,null,0,0,"","",""]
[null,null,"",null,null,null,0,null,null,null,0,null,null,null,0,null,null,null,0,0,"","",""]
[null,null,"",null,null,null,0,null,null,null,0,null,null,null,0,null,null,null,0,0,"","",""]
[null,null,"",null,null,null,0,null,null,null,0,null,null,null,0,null,null,null,0,0,"","",""]
[null,null,"",null,null,null,0,null,null,null,0,null,null,null,0,null,null,null,0,0,"","",""]
[null,null,"",null,null,null,0,null,null,null,0,null,null,null,0,null,null,null,0,0,"","",""]
[null,null,"",null,null,null,0,null,null,null,0,null,null,null,0,null,null,null,0,0,"","",""]
[null,null,{"$f":"IF($B583<>\"\",VLOOKUP($B583,Tbl_Reference,2,0),\"\")","v":""},null,null,null,0,null,null,null,0,null,null,null,0,null,null,null,0,0,{"$f":"IF($B583<>\"\",VLOOKUP($B583,Tbl_Reference,3,0),\"\")","v":""},{"$f":"IF($B583<>\"\",VLOOKUP($B583,Tbl_Reference,4,0),\"\")","v":""},""]
[null,null,"",null,null,null,{"$f":"SUM(D584:F584)","v":0},null,null,null,{"$f":"SUM(H584:J584)","v":0},null,null,null,{"$f":"SUM(L584:N584)","v":0},null,null,null,{"$f":"SUM(P584:R584)","v":0},{"$f":"G584+K584+O584+S584","v":0},"","",{"$f":"IF(B584<>\"\",IF(V584<>0,ROUND(T584*V584,2),ROUND(T584*U584,2)),\"\")","v":""}]
[null,null,"",null,null,null,0,null,null,null,0,null,null,null,0,null,null,null,0,0,"","",""]
[null,null,"",null,null,null,0,null,null,null,0,null,null,null,0,null,null,null,0,0,"","",""]
[null,null,"",null,null,null,0,null,null,null,0,null,null,null,0,null,null,null,0,0,"","",""]
[null,null,"",null,null,null,0,null,null,null,0,null,null,null,0,null,null,null,0,0,"","",""]
[null,null,"",null,null,null,0,null,null,null,0,null,null,null,0,null,null,null,0,0,"","",""]
[null,null,"",null,null,null,0,null,null,null,0,null,null,null,0,null,null,null,0,0,"","",""]
[null,null,"",null,null,null,0,null,null,null,0,null,null,null,0,null,null,null,0,0,"","",""]
[null,null,"",null,null,null,0,null,null,null,0,null,null,null,0,null,null,null,0,0,"","",""]
[null,null,"",null,null,null,0,null,null,null,0,null,null,null,0,null,null,null,0,0,"","",""]
[null,null,"",null,null,null,0,null,null,null,0,null,null,null,0,null,null,null,0,0,"","",""]
[null,null,"",null,null,null,0,null,null,null,0,null,null,null,0,null,null,null,0,0,"","",""]
[null,null,"",null,null,null,0,null,null,null,0,null,null,null,0,null,null,null,0,0,"","",""]
[null,null,"",null,null,null,0,null,null,null,0,null,null,null,0,null,null,null,0,0,"","",""]
[null,null,"",null,null,null,0,null,null,null,0,null,null,null,0,null,null,null,0,0,"","",""]
[null,null,"",null,null,null,0,null,null,null,0,null,null,null,0,null,null,null,0,0,"","",""]
[null,null,"",null,null,null,0,null,null,null,0,null,null,null,0,null,null,null,0,0,"","",""]
[null,null,"",null,null,null,0,null,null,null,0,null,null,null,0,null,null,null,0,0,"","",""]
[null,null,"",null,null,null,0,null,null,null,0,null,null,null,0,null,null,null,0,0,"","",""]
[null,null,"",null,null,null,0,null,null,null,0,null,null,null,0,null,null,null,0,0,"","",""]
[null,null,"",null,null,null,0,null,null,null,0,null,null,null,0,null,null,null,0,0,"","",""]
[null,null,"",null,null,null,0,null,null,null,0,null,null,null,0,null,null,null,0,0,"","",""]
[null,null,"",null,null,null,0,null,null,null,0,null,null,null,0,null,null,null,0,0,"","",""]
[null,null,"",null,null,null,0,null,null,null,0,null,null,null,0,null,null,null,0,0,"","",""]
[null,null,"",null,null,null,0,null,null,null,0,null,null,null,0,null,null,null,0,0,"","",""]
[null,null,"",null,null,null,0,null,null,null,0,null,null,null,0,null,null,null,0,0,"","",""]
[null,null,"",null,null,null,0,null,null,null,0,null,null,null,0,null,null,null,0,0,"","",""]
[null,null,"",null,null,null,0,null,null,null,0,null,null,null,0,null,null,null,0,0,"","",""]
[null,null,"",null,null,null,0,null,null,null,0,null,null,null,0,null,null,null,0,0,"","",""]
[null,null,"",null,null,null,0,null,null,null,0,null,null,null,0,null,null,null,0,0,"","",""]
[null,null,"",null,null,null,0,null,null,null,0,null,null,null,0,null,null,null,0,0,"","",""]
[null,null,"",null,null,null,0,null,null,null,0,null,null,null,0,null,null,null,0,0,"","",""]
[null,null,"",null,null,null,0,null,null,null,0,null,null,null,0,null,null,null,0,0,"","",""]
[null,null,"",null,null,null,0,null,null,null,0,null,null,null,0,null,null,null,0,0,"","",""]
[null,null,"",null,null,null,0,null,null,null,0,null,null,null,0,null,null,null,0,0,"","",""]
[null,null,"",null,null,null,0,null,null,null,0,null,null,null,0,null,null,null,0,0,"","",""]
[null,null,"",null,null,null,0,null,null,null,0,null,null,null,0,null,null,null,0,0,"","",""]
[null,null,"",null,null,null,0,null,null,null,0,null,null,null,0,null,null,null,0,0,"","",""]
[null,null,"",null,null,null,0,null,null,null,0,null,null,null,0,null,null,null,0,0,"","",""]
[null,null,"",null,null,null,0,null,null,null,0,null,null,null,0,null,null,null,0,0,"","",""]
[null,null,"",null,null,null,0,null,null,null,0,null,null,null,0,null,null,null,0,0,"","",""]
[null,null,"",null,null,null,0,null,null,null,0,null,null,null,0,null,null,null,0,0,"","",""]
[null,null,"",null,null,null,0,null,null,null,0,null,null,null,0,null,null,null,0,0,"","",""]
[null,null,"",null,null,null,0,null,null,null,0,null,null,null,0,null,null,null,0,0,"","",""]
[null,null,"",null,null,null,0,null,null,null,0,null,null,null,0,null,null,null,0,0,"","",""]
[null,null,"",null,null,null,0,null,null,null,0,null,null,null,0,null,null,null,0,0,"","",""]
[null,null,"",null,null,null,0,null,null,null,0,null,null,null,0,null,null,null,0,0,"","",""]
[null,null,"",null,null,null,0,null,null,null,0,null,null,null,0,null,null,null,0,0,"","",""]
[null,null,"",null,null,null,0,null,null,null,0,null,null,null,0,null,null,null,0,0,"","",""]
[null,null,"",null,null,null,0,null,null,null,0,null,null,null,0,null,null,null,0,0,"","",""]
[null,null,"",null,null,null,0,null,null,null,0,null,null,null,0,null,null,null,0,0,"","",""]
[null,null,"",null,null,null,0,null,null,null,0,null,null,null,0,null,null,null,0,0,"","",""]
[null,null,"",null,null,null,0,null,null,null,0,null,null,null,0,null,null,null,0,0,"","",""]
[null,null,"",null,null,null,0,null,null,null,0,null,null,null,0,null,null,null,0,0,"","",""]
[null,null,"",null,null,null,0,null,null,null,0,null,null,null,0,null,null,null,0,0,"","",""]
[null,null,"",null,null,null,0,null,null,null,0,null,null,null,0,null,null,null,0,0,"","",""]
[null,null,"",null,null,null,0,null,null,null,0,null,null,null,0,null,null,null,0,0,"","",""]
[null,null,"",null,null,null,0,null,null,null,0,null,null,null,0,null,null,null,0,0,"","",""]
[null,null,"",null,null,null,0,null,null,null,0,null,null,null,0,null,null,null,0,0,"","",""]
[null,null,"",null,null,null,0,null,null,null,0,null,null,null,0,null,null,null,0,0,"","",""]
[null,null,"",null,null,null,0,null,null,null,0,null,null,null,0,null,null,null,0,0,"","",""]
[null,null,"",null,null,null,0,null,null,null,0,null,null,null,0,null,null,null,0,0,"","",""]
[null,null,"",null,null,null,0,null,null,null,0,null,null,null,0,null,null,null,0,0,"","",""]
[null,null,{"$f":"IF($B647<>\"\",VLOOKUP($B647,Tbl_Reference,2,0),\"\")","v":""},null,null,null,0,null,null,null,0,null,null,null,0,null,null,null,0,0,{"$f":"IF($B647<>\"\",VLOOKUP($B647,Tbl_Reference,3,0),\"\")","v":""},{"$f":"IF($B647<>\"\",VLOOKUP($B647,Tbl_Reference,4,0),\"\")","v":""},""]
[null,null,"",null,null,null,{"$f":"SUM(D648:F648)","v":0},null,null,null,{"$f":"SUM(H648:J648)","v":0},null,null,null,{"$f":"SUM(L648:N648)","v":0},null,null,null,{"$f":"SUM(P648:R648)","v":0},{"$f":"G648+K648+O648+S648","v":0},"","",{"$f":"IF(B648<>\"\",IF(V648<>0,ROUND(T648*V648,2),ROUND(T648*U648,2)),\"\")","v":""}]
[null,null,"",null,null,null,0,null,null,null,0,null,null,null,0,null,null,null,0,0,"","",""]
[null,null,"",null,null,null,0,null,null,null,0,null,null,null,0,null,null,null,0,0,"","",""]
[null,null,"",null,null,null,0,null,null,null,0,null,null,null,0,null,null,null,0,0,"","",""]
[null,null,"",null,null,null,0,null,null,null,0,null,null,null,0,null,null,null,0,0,"","",""]
[null,null,"",null,null,null,0,null,null,null,0,null,null,null,0,null,null,null,0,0,"","",""]
[null,null,"",null,null,null,0,null,null,null,0,null,null,null,0,null,null,null,0,0,"","",""]
[null,null,"",null,null,null,0,null,null,null,0,null,null,null,0,null,null,null,0,0,"","",""]
[null,null,"",null,null,null,0,null,null,null,0,null,null,null,0,null,null,null,0,0,"","",""]
[null,null,"",null,null,null,0,null,null,null,0,null,null,null,0,null,null,null,0,0,"","",""]
[null,null,"",null,null,null,0,null,null,null,0,null,null,null,0,null,null,null,0,0,"","",""]
[null,null,"",null,null,null,0,null,null,null,0,null,null,null,0,null,null,null,0,0,"","",""]
[null,null,"",null,null,null,0,null,null,null,0,null,null,null,0,null,null,null,0,0,"","",""]
[null,null,"",null,null,null,0,null,null,null,0,null,null,null,0,null,null,null,0,0,"","",""]
[null,null,"",null,null,null,0,null,null,null,0,null,null,null,0,null,null,null,0,0,"","",""]
[null,null,"",null,null,null,0,null,null,null,0,null,null,null,0,null,null,null,0,0,"","",""]
[null,null,"",null,null,null,0,null,null,null,0,null,null,null,0,null,null,null,0,0,"","",""]
[null,null,"",null,null,null,0,null,null,null,0,null,null,null,0,null,null,null,0,0,"","",""]
[null,null,"",null,null,null,0,null,null,null,0,null,null,null,0,null,null,null,0,0,"","",""]
[null,null,"",null,null,null,0,null,null,null,0,null,null,null,0,null,null,null,0,0,"","",""]
[null,null,"",null,null,null,0,null,null,null,0,null,null,null,0,null,null,null,0,0,"","",""]
[null,null,"",null,null,null,0,null,null,null,0,null,null,null,0,null,null,null,0,0,"","",""]
[null,null,"",null,null,null,0,null,null,null,0,null,null,null,0,null,null,null,0,0,"","",""]
[null,null,"",null,null,null,0,null,null,null,0,null,null,null,0,null,null,null,0,0,"","",""]
[null,null,"",null,null,null,0,null,null,null,0,null,null,null,0,null,null,null,0,0,"","",""]
[null,null,"",null,null,null,0,null,null,null,0,null,null,null,0,null,null,null,0,0,"","",""]
[null,null,"",null,null,null,0,null,null,null,0,null,null,null,0,null,null,null,0,0,"","",""]
[null,null,"",null,null,null,0,null,null,null,0,null,null,null,0,null,null,null,0,0,"","",""]
[null,null,"",null,null,null,0,null,null,null,0,null,null,null,0,null,null,null,0,0,"","",""]
[null,null,"",null,null,null,0,null,null,null,0,null,null,null,0,null,null,null,0,0,"","",""]
[null,null,"",null,null,null,0,null,null,null,0,null,null,null,0,null,null,null,0,0,"","",""]
[null,null,"",null,null,null,0,null,null,null,0,null,null,null,0,null,null,null,0,0,"","",""]
[null,null,"",null,null,null,0,null,null,null,0,null,null,null,0,null,null,null,0,0,"","",""]
[null,null,"",null,null,null,0,null,null,null,0,null,null,null,0,null,null,null,0,0,"","",""]
[null,null,"",null,null,null,0,null,null,null,0,null,null,null,0,null,null,null,0,0,"","",""]
[null,null,"",null,null,null,0,null,null,null,0,null,null,null,0,null,null,null,0,0,"","",""]
[null,null,"",null,null,null,0,null,null,null,0,null,null,null,0,null,null,null,0,0,"","",""]
[null,null,"",null,null,null,0,null,null,null,0,null,null,null,0,null,null,null,0,0,"","",""]
[null,null,"",null,null,null,0,null,null,null,0,null,null,null,0,null,null,null,0,0,"","",""]
[null,null,"",null,null,null,0,null,null,null,0,null,null,null,0,null,null,null,0,0,"","",""]
[null,null,"",null,null,null,0,null,null,null,0,null,null,null,0,null,null,null,0,0,"","",""]
[null,null,"",null,null,null,0,null,null,null,0,null,null,null,0,null,null,null,0,0,"","",""]
[null,null,"",null,null,null,0,null,null,null,0,null,null,null,0,null,null,null,0,0,"","",""]
[null,null,"",null,null,null,0,null,null,null,0,null,null,null,0,null,null,null,0,0,"","",""]
[null,null,"",null,null,null,0,null,null,null,0,null,null,null,0,null,null,null,0,0,"","",""]
[null,null,"",null,null,null,0,null,null,null,0,null,null,null,0,null,null,null,0,0,"","",""]
[null,null,"",null,null,null,0,null,null,null,0,null,null,null,0,null,null,null,0,0,"","",""]
[null,null,"",null,null,null,0,null,null,null,0,null,null,null,0,null,null,null,0,0,"","",""]
[null,null,"",null,null,null,0,null,null,null,0,null,null,null,0,null,null,null,0,0,"","",""]
[null,null,"",null,null,null,0,null,null,null,0,null,null,null,0,null,null,null,0,0,"","",""]
[null,null,"",null,null,null,0,null,null,null,0,null,null,null,0,null,null,null,0,0,"","",""]
[null,null,"",null,null,null,0,null,null,null,0,null,null,null,0,null,null,null,0,0,"","",""]
[null,null,"",null,null,null,0,null,null,null,0,null,null,null,0,null,null,null,0,0,"","",""]
[null,null,"",null,null,null,0,null,null,null,0,null,null,null,0,null,null,null,0,0,"","",""]
[null,null,"",null,null,null,0,null,null,null,0,null,null,null,0,null,null,null,0,0,"","",""]
[null,null,"",null,null,null,0,null,null,null,0,null,null,null,0,null,null,null,0,0,"","",""]
[null,null,"",null,null,null,0,null,null,null,0,null,null,null,0,null,null,null,0,0,"","",""]
[null,null,"",null,null,null,0,null,null,null,0,null,null,null,0,null,null,null,0,0,"","",""]
[null,null,"",null,null,null,0,null,null,null,0,null,null,null,0,null,null,null,0,0,"","",""]
[null,null,"",null,null,null,0,null,null,null,0,null,null,null,0,null,null,null,0,0,"","",""]
[null,null,"",null,null,null,0,null,null,null,0,null,null,null,0,null,null,null,0,0,"","",""]
[null,null,"",null,null,null,0,null,null,null,0,null,null,null,0,null,null,null,0,0,"","",""]
[null,null,"",null,null,null,0,null,null,null,0,null,null,null,0,null,null,null,0,0,"","",""]
[null,null,{"$f":"IF($B711<>\"\",VLOOKUP($B711,Tbl_Reference,2,0),\"\")","v":""},null,null,null,0,null,null,null,0,null,null,null,0,null,null,null,0,0,{"$f":"IF($B711<>\"\",VLOOKUP($B711,Tbl_Reference,3,0),\"\")","v":""},{"$f":"IF($B711<>\"\",VLOOKUP($B711,Tbl_Reference,4,0),\"\")","v":""},""]
[null,null,"",null,null,null,{"$f":"SUM(D712:F712)","v":0},null,null,null,{"$f":"SUM(H712:J712)","v":0},null,null,null,{"$f":"SUM(L712:N712)","v":0},null,null,null,{"$f":"SUM(P712:R712)","v":0},{"$f":"G712+K712+O712+S712","v":0},"","",{"$f":"IF(B712<>\"\",IF(V712<>0,ROUND(T712*V712,2),ROUND(T712*U712,2)),\"\")","v":""}]
[null,null,"",null,null,null,0,null,null,null,0,null,null,null,0,null,null,null,0,0,"","",""]
[null,null,"",null,null,null,0,null,null,null,0,null,null,null,0,null,null,null,0,0,"","",""]
[null,null,"",null,null,null,0,null,null,null,0,null,null,null,0,null,null,null,0,0,"","",""]
[null,null,"",null,null,null,0,null,null,null,0,null,null,null,0,null,null,null,0,0,"","",""]
[null,null,"",null,null,null,0,null,null,null,0,null,null,null,0,null,null,null,0,0,"","",""]
[null,null,"",null,null,null,0,null,null,null,0,null,null,null,0,null,null,null,0,0,"","",""]
[null,null,"",null,null,null,0,null,null,null,0,null,null,null,0,null,null,null,0,0,"","",""]
[null,null,"",null,null,null,0,null,null,null,0,null,null,null,0,null,null,null,0,0,"","",""]
[null,null,"",null,null,null,0,null,null,null,0,null,null,null,0,null,null,null,0,0,"","",""]
[null,null,"",null,null,null,0,null,null,null,0,null,null,null,0,null,null,null,0,0,"","",""]
[null,null,"",null,null,null,0,null,null,null,0,null,null,null,0,null,null,null,0,0,"","",""]
[null,null,"",null,null,null,0,null,null,null,0,null,null,null,0,null,null,null,0,0,"","",""]
[null,null,"",null,null,null,0,null,null,null,0,null,null,null,0,null,null,null,0,0,"","",""]
[null,null,"",null,null,null,0,null,null,null,0,null,null,null,0,null,null,null,0,0,"","",""]
[null,null,"",null,null,null,0,null,null,null,0,null,null,null,0,null,null,null,0,0,"","",""]
[null,null,"",null,null,null,0,null,null,null,0,null,null,null,0,null,null,null,0,0,"","",""]
[null,null,"",null,null,null,0,null,null,null,0,null,null,null,0,null,null,null,0,0,"","",""]
[null,null,"",null,null,null,0,null,null,null,0,null,null,null,0,null,null,null,0,0,"","",""]
[null,null,"",null,null,null,0,null,null,null,0,null,null,null,0,null,null,null,0,0,"","",""]
[null,null,"",null,null,null,0,null,null,null,0,null,null,null,0,null,null,null,0,0,"","",""]
[null,null,"",null,null,null,0,null,null,null,0,null,null,null,0,null,null,null,0,0,"","",""]
[null,null,"",null,null,null,0,null,null,null,0,null,null,null,0,null,null,null,0,0,"","",""]
[null,null,"",null,null,null,0,null,null,null,0,null,null,null,0,null,null,null,0,0,"","",""]
[null,null,"",null,null,null,0,null,null,null,0,null,null,null,0,null,null,null,0,0,"","",""]
[null,null,"",null,null,null,0,null,null,null,0,null,null,null,0,null,null,null,0,0,"","",""]
[null,null,"",null,null,null,0,null,null,null,0,null,null,null,0,null,null,null,0,0,"","",""]
[null,null,"",null,null,null,0,null,null,null,0,null,null,null,0,null,null,null,0,0,"","",""]
[null,null,"",null,null,null,0,null,null,null,0,null,null,null,0,null,null,null,0,0,"","",""]
[null,null,"",null,null,null,0,null,null,null,0,null,null,null,0,null,null,null,0,0,"","",""]
[null,null,"",null,null,null,0,null,null,null,0,null,null,null,0,null,null,null,0,0,"","",""]
[null,null,"",null,null,null,0,null,null,null,0,null,null,null,0,null,null,null,0,0,"","",""]
[null,null,"",null,null,null,0,null,null,null,0,null,null,null,0,null,null,null,0,0,"","",""]
[null,null,"",null,null,null,0,null,null,null,0,null,null,null,0,null,null,null,0,0,"","",""]
[null,null,"",null,null,null,0,null,null,null,0,null,null,null,0,null,null,null,0,0,"","",""]
[null,null,"",null,null,null,0,null,null,null,0,null,null,null,0,null,null,null,0,0,"","",""]
[null,null,"",null,null,null,0,null,null,null,0,null,null,null,0,null,null,null,0,0,"","",""]
[null,null,"",null,null,null,0,null,null,null,0,null,null,null,0,null,null,null,0,0,"","",""]
[null,null,"",null,null,null,0,null,null,null,0,null,null,null,0,null,null,null,0,0,"","",""]
[null,null,"",null,null,null,0,null,null,null,0,null,null,null,0,null,null,null,0,0,"","",""]
[null,null,"",null,null,null,0,null,null,null,0,null,null,null,0,null,null,null,0,0,"","",""]
[null,null,"",null,null,null,0,null,null,null,0,null,null,null,0,null,null,null,0,0,"","",""]
[null,null,"",null,null,null,0,null,null,null,0,null,null,null,0,null,null,null,0,0,"","",""]
[null,null,"",null,null,null,0,null,null,null,0,null,null,null,0,null,null,null,0,0,"","",""]
[null,null,"",null,null,null,0,null,null,null,0,null,null,null,0,null,null,null,0,0,"","",""]
[null,null,"",null,null,null,0,null,null,null,0,null,null,null,0,null,null,null,0,0,"","",""]
[null,null,"",null,null,null,0,null,null,null,0,null,null,null,0,null,null,null,0,0,"","",""]
[null,null,"",null,null,null,0,null,null,null,0,null,null,null,0,null,null,null,0,0,"","",""]
[null,null,"",null,null,null,0,null,null,null,0,null,null,null,0,null,null,null,0,0,"","",""]
[null,null,"",null,null,null,0,null,null,null,0,null,null,null,0,null,null,null,0,0,"","",""]
[null,null,"",null,null,null,0,null,null,null,0,null,null,null,0,null,null,null,0,0,"","",""]
[null,null,"",null,null,null,0,null,null,null,0,null,null,null,0,null,null,null,0,0,"","",""]
[null,null,"",null,null,null,0,null,null,null,0,null,null,null,0,null,null,null,0,0,"","",""]
[null,null,"",null,null,null,0,null,null,null,0,null,null,null,0,null,null,null,0,0,"","",""]
[null,null,"",null,null,null,0,null,null,null,0,null,null,null,0,null,null,null,0,0,"","",""]
[null,null,"",null,null,null,0,null,null,null,0,null,null,null,0,null,null,null,0,0,"","",""]
[null,null,"",null,null,null,0,null,null,null,0,null,null,null,0,null,null,null,0,0,"","",""]
[null,null,"",null,null,null,0,null,null,null,0,null,null,null,0,null,null,null,0,0,"","",""]
[null,null,"",null,null,null,0,null,null,null,0,null,null,null,0,null,null,null,0,0,"","",""]
[null,null,"",null,null,null,0,null,null,null,0,null,null,null,0,null,null,null,0,0,"","",""]
[null,null,"",null,null,null,0,null,null,null,0,null,null,null,0,null,null,null,0,0,"","",""]
[null,null,"",null,null,null,0,null,null,null,0,null,null,null,0,null,null,null,0,0,"","",""]
[null,null,"",null,null,null,0,null,null,null,0,null,null,null,0,null,null,null,0,0,"","",""]
[null,null,{"$f":"IF($B775<>\"\",VLOOKUP($B775,Tbl_Reference,2,0),\"\")","v":""},null,null,null,0,null,null,null,0,null,null,null,0,null,null,null,0,0,{"$f":"IF($B775<>\"\",VLOOKUP($B775,Tbl_Reference,3,0),\"\")","v":""},{"$f":"IF($B775<>\"\",VLOOKUP($B775,Tbl_Reference,4,0),\"\")","v":""},""]
[null,null,"",null,null,null,{"$f":"SUM(D776:F776)","v":0},null,null,null,{"$f":"SUM(H776:J776)","v":0},null,null,null,{"$f":"SUM(L776:N776)","v":0},null,null,null,{"$f":"SUM(P776:R776)","v":0},{"$f":"G776+K776+O776+S776","v":0},"","",{"$f":"IF(B776<>\"\",IF(V776<>0,ROUND(T776*V776,2),ROUND(T776*U776,2)),\"\")","v":""}]
[null,null,"",null,null,null,0,null,null,null,0,null,null,null,0,null,null,null,0,0,"","",""]
[null,null,"",null,null,null,0,null,null,null,0,null,null,null,0,null,null,null,0,0,"","",""]
[null,null,"",null,null,null,0,null,null,null,0,null,null,null,0,null,null,null,0,0,"","",""]
[null,null,"",null,null,null,0,null,null,null,0,null,null,null,0,null,null,null,0,0,"","",""]
[null,null,"",null,null,null,0,null,null,null,0,null,null,null,0,null,null,null,0,0,"","",""]
[null,null,"",null,null,null,0,null,null,null,0,null,null,null,0,null,null,null,0,0,"","",""]
[null,null,"",null,null,null,0,null,null,null,0,null,null,null,0,null,null,null,0,0,"","",""]
[null,null,"",null,null,null,0,null,null,null,0,null,null,null,0,null,null,null,0,0,"","",""]
[null,null,"",null,null,null,0,null,null,null,0,null,null,null,0,null,null,null,0,0,"","",""]
[null,null,"",null,null,null,0,null,null,null,0,null,null,null,0,null,null,null,0,0,"","",""]
[null,null,"",null,null,null,0,null,null,null,0,null,null,null,0,null,null,null,0,0,"","",""]
[null,null,"",null,null,null,0,null,null,null,0,null,null,null,0,null,null,null,0,0,"","",""]
[null,null,"",null,null,null,0,null,null,null,0,null,null,null,0,null,null,null,0,0,"","",""]
[null,null,"",null,null,null,0,null,null,null,0,null,null,null,0,null,null,null,0,0,"","",""]
[null,null,"",null,null,null,0,null,null,null,0,null,null,null,0,null,null,null,0,0,"","",""]
[null,null,"",null,null,null,0,null,null,null,0,null,null,null,0,null,null,null,0,0,"","",""]
[null,null,"",null,null,null,0,null,null,null,0,null,null,null,0,null,null,null,0,0,"","",""]
[null,null,"",null,null,null,0,null,null,null,0,null,null,null,0,null,null,null,0,0,"","",""]
[null,null,"",null,null,null,0,null,null,null,0,null,null,null,0,null,null,null,0,0,"","",""]
[null,null,"",null,null,null,0,null,null,null,0,null,null,null,0,null,null,null,0,0,"","",""]
[null,null,"",null,null,null,0,null,null,null,0,null,null,null,0,null,null,null,0,0,"","",""]
[null,null,"",null,null,null,0,null,null,null,0,null,null,null,0,null,null,null,0,0,"","",""]
[null,null,"",null,null,null,0,null,null,null,0,null,null,null,0,null,null,null,0,0,"","",""]
[null,null,"",null,null,null,0,null,null,null,0,null,null,null,0,null,null,null,0,0,"","",""]
[null,null,"",null,null,null,0,null,null,null,0,null,null,null,0,null,null,null,0,0,"","",""]
[null,null,"",null,null,null,0,null,null,null,0,null,null,null,0,null,null,null,0,0,"","",""]
[null,null,"",null,null,null,0,null,null,null,0,null,null,null,0,null,null,null,0,0,"","",""]
[null,null,"",null,null,null,0,null,null,null,0,null,null,null,0,null,null,null,0,0,"","",""]
[null,null,"",null,null,null,0,null,null,null,0,null,null,null,0,null,null,null,0,0,"","",""]
[null,null,"",null,null,null,0,null,null,null,0,null,null,null,0,null,null,null,0,0,"","",""]
[null,null,"",null,null,null,0,null,null,null,0,null,null,null,0,null,null,null,0,0,"","",""]
[null,null,"",null,null,null,0,null,null,null,0,null,null,null,0,null,null,null,0,0,"","",""]
[null,null,"",null,null,null,0,null,null,null,0,null,null,null,0,null,null,null,0,0,"","",""]
[null,null,"",null,null,null,0,null,null,null,0,null,null,null,0,null,null,null,0,0,"","",""]
[null,null,"",null,null,null,0,null,null,null,0,null,null,null,0,null,null,null,0,0,"","",""]
[null,null,"",null,null,null,0,null,null,null,0,null,null,null,0,null,null,null,0,0,"","",""]
[null,null,"",null,null,null,0,null,null,null,0,null,null,null,0,null,null,null,0,0,"","",""]
[null,null,"",null,null,null,0,null,null,null,0,null,null,null,0,null,null,null,0,0,"","",""]
[null,null,"",null,null,null,0,null,null,null,0,null,null,null,0,null,null,null,0,0,"","",""]
[null,null,"",null,null,null,0,null,null,null,0,null,null,null,0,null,null,null,0,0,"","",""]
[null,null,"",null,null,null,0,null,null,null,0,null,null,null,0,null,null,null,0,0,"","",""]
[null,null,"",null,null,null,0,null,null,null,0,null,null,null,0,null,null,null,0,0,"","",""]
[null,null,"",null,null,null,0,null,null,null,0,null,null,null,0,null,null,null,0,0,"","",""]
[null,null,"",null,null,null,0,null,null,null,0,null,null,null,0,null,null,null,0,0,"","",""]
[null,null,"",null,null,null,0,null,null,null,0,null,null,null,0,null,null,null,0,0,"","",""]
[null,null,"",null,null,null,0,null,null,null,0,null,null,null,0,null,null,null,0,0,"","",""]
[null,null,"",null,null,null,0,null,null,null,0,null,null,null,0,null,null,null,0,0,"","",""]
[null,null,"",null,null,null,0,null,null,null,0,null,null,null,0,null,null,null,0,0,"","",""]
[null,null,"",null,null,null,0,null,null,null,0,null,null,null,0,null,null,null,0,0,"","",""]
[null,null,"",null,null,null,0,null,null,null,0,null,null,null,0,null,null,null,0,0,"","",""]
[null,null,"",null,null,null,0,null,null,null,0,null,null,null,0,null,null,null,0,0,"","",""]
[null,null,"",null,null,null,0,null,null,null,0,null,null,null,0,null,null,null,0,0,"","",""]
[null,null,"",null,null,null,0,null,null,null,0,null,null,null,0,null,null,null,0,0,"","",""]
[null,null,"",null,null,null,0,null,null,null,0,null,null,null,0,null,null,null,0,0,"","",""]
[null,null,"",null,null,null,0,null,null,null,0,null,null,null,0,null,null,null,0,0,"","",""]
[null,null,"",null,null,null,0,null,null,null,0,null,null,null,0,null,null,null,0,0,"","",""]
[null,null,"",null,null,null,0,null,null,null,0,null,null,null,0,null,null,null,0,0,"","",""]
[null,null,"",null,null,null,0,null,null,null,0,null,null,null,0,null,null,null,0,0,"","",""]
[null,null,"",null,null,null,0,null,null,null,0,null,null,null,0,null,null,null,0,0,"","",""]
[null,null,"",null,null,null,0,null,null,null,0,null,null,null,0,null,null,null,0,0,"","",""]
[null,null,"",null,null,null,0,null,null,null,0,null,null,null,0,null,null,null,0,0,"","",""]
[null,null,"",null,null,null,0,null,null,null,0,null,null,null,0,null,null,null,0,0,"","",""]
[null,null,{"$f":"IF($B839<>\"\",VLOOKUP($B839,Tbl_Reference,2,0),\"\")","v":""},null,null,null,0,null,null,null,0,null,null,null,0,null,null,null,0,0,{"$f":"IF($B839<>\"\",VLOOKUP($B839,Tbl_Reference,3,0),\"\")","v":""},{"$f":"IF($B839<>\"\",VLOOKUP($B839,Tbl_Reference,4,0),\"\")","v":""},""]
[null,null,"",null,null,null,{"$f":"SUM(D840:F840)","v":0},null,null,null,{"$f":"SUM(H840:J840)","v":0},null,null,null,{"$f":"SUM(L840:N840)","v":0},null,null,null,{"$f":"SUM(P840:R840)","v":0},{"$f":"G840+K840+O840+S840","v":0},"","",{"$f":"IF(B840<>\"\",IF(V840<>0,ROUND(T840*V840,2),ROUND(T840*U840,2)),\"\")","v":""}]
[null,null,"",null,null,null,0,null,null,null,0,null,null,null,0,null,null,null,0,0,"","",""]
[null,null,"",null,null,null,0,null,null,null,0,null,null,null,0,null,null,null,0,0,"","",""]
[null,null,"",null,null,null,0,null,null,null,0,null,null,null,0,null,null,null,0,0,"","",""]
[null,null,"",null,null,null,0,null,null,null,0,null,null,null,0,null,null,null,0,0,"","",""]
[null,null,"",null,null,null,0,null,null,null,0,null,null,null,0,null,null,null,0,0,"","",""]
[null,null,"",null,null,null,0,null,null,null,0,null,null,null,0,null,null,null,0,0,"","",""]
[null,null,"",null,null,null,0,null,null,null,0,null,null,null,0,null,null,null,0,0,"","",""]
[null,null,"",null,null,null,0,null,null,null,0,null,null,null,0,null,null,null,0,0,"","",""]
[null,null,"",null,null,null,0,null,null,null,0,null,null,null,0,null,null,null,0,0,"","",""]
[null,null,"",null,null,null,0,null,null,null,0,null,null,null,0,null,null,null,0,0,"","",""]
[null,null,"",null,null,null,0,null,null,null,0,null,null,null,0,null,null,null,0,0,"","",""]
[null,null,"",null,null,null,0,null,null,null,0,null,null,null,0,null,null,null,0,0,"","",""]
[null,null,"",null,null,null,0,null,null,null,0,null,null,null,0,null,null,null,0,0,"","",""]
[null,null,"",null,null,null,0,null,null,null,0,null,null,null,0,null,null,null,0,0,"","",""]
[null,null,"",null,null,null,0,null,null,null,0,null,null,null,0,null,null,null,0,0,"","",""]
[null,null,"",null,null,null,0,null,null,null,0,null,null,null,0,null,null,null,0,0,"","",""]
[null,null,"",null,null,null,0,null,null,null,0,null,null,null,0,null,null,null,0,0,"","",""]
[null,null,"",null,null,null,0,null,null,null,0,null,null,null,0,null,null,null,0,0,"","",""]
[null,null,"",null,null,null,0,null,null,null,0,null,null,null,0,null,null,null,0,0,"","",""]
[null,null,"",null,null,null,0,null,null,null,0,null,null,null,0,null,null,null,0,0,"","",""]
[null,null,"",null,null,null,0,null,null,null,0,null,null,null,0,null,null,null,0,0,"","",""]
[null,null,"",null,null,null,0,null,null,null,0,null,null,null,0,null,null,null,0,0,"","",""]
[null,null,"",null,null,null,0,null,null,null,0,null,null,null,0,null,null,null,0,0,"","",""]
[null,null,"",null,null,null,0,null,null,null,0,null,null,null,0,null,null,null,0,0,"","",""]
[null,null,"",null,null,null,0,null,null,null,0,null,null,null,0,null,null,null,0,0,"","",""]
[null,null,"",null,null,null,0,null,null,null,0,null,null,null,0,null,null,null,0,0,"","",""]
[null,null,"",null,null,null,0,null,null,null,0,null,null,null,0,null,null,null,0,0,"","",""]
[null,null,"",null,null,null,0,null,null,null,0,null,null,null,0,null,null,null,0,0,"","",""]
[null,null,"",null,null,null,0,null,null,null,0,null,null,null,0,null,null,null,0,0,"","",""]
[null,null,"",null,null,null,0,null,null,null,0,null,null,null,0,null,null,null,0,0,"","",""]
[null,null,"",null,null,null,0,null,null,null,0,null,null,null,0,null,null,null,0,0,"","",""]
[null,null,"",null,null,null,0,null,null,null,0,null,null,null,0,null,null,null,0,0,"","",""]
[null,null,"",null,null,null,0,null,null,null,0,null,null,null,0,null,null,null,0,0,"","",""]
[null,null,"",null,null,null,0,null,null,null,0,null,null,null,0,null,null,null,0,0,"","",""]
[null,null,"",null,null,null,0,null,null,null,0,null,null,null,0,null,null,null,0,0,"","",""]
[null,null,"",null,null,null,0,null,null,null,0,null,null,null,0,null,null,null,0,0,"","",""]
[null,null,"",null,null,null,0,null,null,null,0,null,null,null,0,null,null,null,0,0,"","",""]
[null,null,"",null,null,null,0,null,null,null,0,null,null,null,0,null,null,null,0,0,"","",""]
[null,null,"",null,null,null,0,null,null,null,0,null,null,null,0,null,null,null,0,0,"","",""]
[null,null,"",null,null,null,0,null,null,null,0,null,null,null,0,null,null,null,0,0,"","",""]
[null,null,"",null,null,null,0,null,null,null,0,null,null,null,0,null,null,null,0,0,"","",""]
[null,null,"",null,null,null,0,null,null,null,0,null,null,null,0,null,null,null,0,0,"","",""]
[null,null,"",null,null,null,0,null,null,null,0,null,null,null,0,null,null,null,0,0,"","",""]
[null,null,"",null,null,null,0,null,null,null,0,null,null,null,0,null,null,null,0,0,"","",""]
[null,null,"",null,null,null,0,null,null,null,0,null,null,null,0,null,null,null,0,0,"","",""]
[null,null,"",null,null,null,0,null,null,null,0,null,null,null,0,null,null,null,0,0,"","",""]
[null,null,"",null,null,null,0,null,null,null,0,null,null,null,0,null,null,null,0,0,"","",""]
[null,null,"",null,null,null,0,null,null,null,0,null,null,null,0,null,null,null,0,0,"","",""]
[null,null,"",null,null,null,0,null,null,null,0,null,null,null,0,null,null,null,0,0,"","",""]
[null,null,"",null,null,null,0,null,null,null,0,null,null,null,0,null,null,null,0,0,"","",""]
[null,null,"",null,null,null,0,null,null,null,0,null,null,null,0,null,null,null,0,0,"","",""]
[null,null,"",null,null,null,0,null,null,null,0,null,null,null,0,null,null,null,0,0,"","",""]
[null,null,"",null,null,null,0,null,null,null,0,null,null,null,0,null,null,null,0,0,"","",""]
[null,null,"",null,null,null,0,null,null,null,0,null,null,null,0,null,null,null,0,0,"","",""]
[null,null,"",null,null,null,0,null,null,null,0,null,null,null,0,null,null,null,0,0,"","",""]
[null,null,"",null,null,null,0,null,null,null,0,null,null,null,0,null,null,null,0,0,"","",""]
[null,null,"",null,null,null,0,null,null,null,0,null,null,null,0,null,null,null,0,0,"","",""]
[null,null,"",null,null,null,0,null,null,null,0,null,null,null,0,null,null,null,0,0,"","",""]
[null,null,"",null,null,null,0,null,null,null,0,null,null,null,0,null,null,null,0,0,"","",""]
[null,null,"",null,null,null,0,null,null,null,0,null,null,null,0,null,null,null,0,0,"","",""]
[null,null,"",null,null,null,0,null,null,null,0,null,null,null,0,null,null,null,0,0,"","",""]
[null,null,"",null,null,null,0,null,null,null,0,null,null,null,0,null,null,null,0,0,"","",""]
[null,null,{"$f":"IF($B903<>\"\",VLOOKUP($B903,Tbl_Reference,2,0),\"\")","v":""},null,null,null,0,null,null,null,0,null,null,null,0,null,null,null,0,0,{"$f":"IF($B903<>\"\",VLOOKUP($B903,Tbl_Reference,3,0),\"\")","v":""},{"$f":"IF($B903<>\"\",VLOOKUP($B903,Tbl_Reference,4,0),\"\")","v":""},""]
[null,null,"",null,null,null,{"$f":"SUM(D904:F904)","v":0},null,null,null,{"$f":"SUM(H904:J904)","v":0},null,null,null,{"$f":"SUM(L904:N904)","v":0},null,null,null,{"$f":"SUM(P904:R904)","v":0},{"$f":"G904+K904+O904+S904","v":0},"","",{"$f":"IF(B904<>\"\",IF(V904<>0,ROUND(T904*V904,2),ROUND(T904*U904,2)),\"\")","v":""}]
[null,null,"",null,null,null,0,null,null,null,0,null,null,null,0,null,null,null,0,0,"","",""]
[null,null,"",null,null,null,0,null,null,null,0,null,null,null,0,null,null,null,0,0,"","",""]
[null,null,"",null,null,null,0,null,null,null,0,null,null,null,0,null,null,null,0,0,"","",""]
[null,null,"",null,null,null,0,null,null,null,0,null,null,null,0,null,null,null,0,0,"","",""]
[null,null,"",null,null,null,0,null,null,null,0,null,null,null,0,null,null,null,0,0,"","",""]
[null,null,"",null,null,null,0,null,null,null,0,null,null,null,0,null,null,null,0,0,"","",""]
[null,null,"",null,null,null,0,null,null,null,0,null,null,null,0,null,null,null,0,0,"","",""]
[null,null,"",null,null,null,0,null,null,null,0,null,null,null,0,null,null,null,0,0,"","",""]
[null,null,"",null,null,null,0,null,null,null,0,null,null,null,0,null,null,null,0,0,"","",""]
[null,null,"",null,null,null,0,null,null,null,0,null,null,null,0,null,null,null,0,0,"","",""]
[null,null,"",null,null,null,0,null,null,null,0,null,null,null,0,null,null,null,0,0,"","",""]
[null,null,"",null,null,null,0,null,null,null,0,null,null,null,0,null,null,null,0,0,"","",""]
[null,null,"",null,null,null,0,null,null,null,0,null,null,null,0,null,null,null,0,0,"","",""]
[null,null,"",null,null,null,0,null,null,null,0,null,null,null,0,null,null,null,0,0,"","",""]
[null,null,"",null,null,null,0,null,null,null,0,null,null,null,0,null,null,null,0,0,"","",""]
[null,null,"",null,null,null,0,null,null,null,0,null,null,null,0,null,null,null,0,0,"","",""]
[null,null,"",null,null,null,0,null,null,null,0,null,null,null,0,null,null,null,0,0,"","",""]
[null,null,"",null,null,null,0,null,null,null,0,null,null,null,0,null,null,null,0,0,"","",""]
[null,null,"",null,null,null,0,null,null,null,0,null,null,null,0,null,null,null,0,0,"","",""]
[null,null,"",null,null,null,0,null,null,null,0,null,null,null,0,null,null,null,0,0,"","",""]
[null,null,"",null,null,null,0,null,null,null,0,null,null,null,0,null,null,null,0,0,"","",""]
[null,null,"",null,null,null,0,null,null,null,0,null,null,null,0,null,null,null,0,0,"","",""]
[null,null,"",null,null,null,0,null,null,null,0,null,null,null,0,null,null,null,0,0,"","",""]
[null,null,"",null,null,null,0,null,null,null,0,null,null,null,0,null,null,null,0,0,"","",""]
[null,null,"",null,null,null,0,null,null,null,0,null,null,null,0,null,null,null,0,0,"","",""]
[null,null,"",null,null,null,0,null,null,null,0,null,null,null,0,null,null,null,0,0,"","",""]
[null,null,"",null,null,null,0,null,null,null,0,null,null,null,0,null,null,null,0,0,"","",""]
[null,null,"",null,null,null,0,null,null,null,0,null,null,null,0,null,null,null,0,0,"","",""]
[null,null,"",null,null,null,0,null,null,null,0,null,null,null,0,null,null,null,0,0,"","",""]
[null,null,"",null,null,null,0,null,null,null,0,null,null,null,0,null,null,null,0,0,"","",""]
[null,null,"",null,null,null,0,null,null,null,0,null,null,null,0,null,null,null,0,0,"","",""]
[null,null,"",null,null,null,0,null,null,null,0,null,null,null,0,null,null,null,0,0,"","",""]
[null,null,"",null,null,null,0,null,null,null,0,null,null,null,0,null,null,null,0,0,"","",""]
[null,null,"",null,null,null,0,null,null,null,0,null,null,null,0,null,null,null,0,0,"","",""]
[null,null,"",null,null,null,0,null,null,null,0,null,null,null,0,null,null,null,0,0,"","",""]
[null,null,"",null,null,null,0,null,null,null,0,null,null,null,0,null,null,null,0,0,"","",""]
[null,null,"",null,null,null,0,null,null,null,0,null,null,null,0,null,null,null,0,0,"","",""]
[null,null,"",null,null,null,0,null,null,null,0,null,null,null,0,null,null,null,0,0,"","",""]
[null,null,"",null,null,null,0,null,null,null,0,null,null,null,0,null,null,null,0,0,"","",""]
[null,null,"",null,null,null,0,null,null,null,0,null,null,null,0,null,null,null,0,0,"","",""]
[null,null,"",null,null,null,0,null,null,null,0,null,null,null,0,null,null,null,0,0,"","",""]
[null,null,"",null,null,null,0,null,null,null,0,null,null,null,0,null,null,null,0,0,"","",""]
[null,null,"",null,null,null,0,null,null,null,0,null,null,null,0,null,null,null,0,0,"","",""]
[null,null,"",null,null,null,0,null,null,null,0,null,null,null,0,null,null,null,0,0,"","",""]
[null,null,"",null,null,null,0,null,null,null,0,null,null,null,0,null,null,null,0,0,"","",""]
[null,null,"",null,null,null,0,null,null,null,0,null,null,null,0,null,null,null,0,0,"","",""]
[null,null,"",null,null,null,0,null,null,null,0,null,null,null,0,null,null,null,0,0,"","",""]
[null,null,"",null,null,null,0,null,null,null,0,null,null,null,0,null,null,null,0,0,"","",""]
[null,null,"",null,null,null,0,null,null,null,0,null,null,null,0,null,null,null,0,0,"","",""]
[null,null,"",null,null,null,0,null,null,null,0,null,null,null,0,null,null,null,0,0,"","",""]
[null,null,"",null,null,null,0,null,null,null,0,null,null,null,0,null,null,null,0,0,"","",""]
[null,null,"",null,null,null,0,null,null,null,0,null,null,null,0,null,null,null,0,0,"","",""]
[null,null,"",null,null,null,0,null,null,null,0,null,null,null,0,null,null,null,0,0,"","",""]
[null,null,"",null,null,null,0,null,null,null,0,null,null,null,0,null,null,null,0,0,"","",""]
[null,null,"",null,null,null,0,null,null,null,0,null,null,null,0,null,null,null,0,0,"","",""]
[null,null,"",null,null,null,0,null,null,null,0,null,null,null,0,null,null,null,0,0,"","",""]
[null,null,"",null,null,null,0,null,null,null,0,null,null,null,0,null,null,null,0,0,"","",""]
[null,null,"",null,null,null,0,null,null,null,0,null,null,null,0,null,null,null,0,0,"","",""]
[null,null,"",null,null,null,0,null,null,null,0,null,null,null,0,null,null,null,0,0,"","",""]
[null,null,"",null,null,null,0,null,null,null,0,null,null,null,0,null,null,null,0,0,"","",""]
[null,null,"",null,null,null,0,null,null,null,0,null,null,null,0,null,null,null,0,0,"","",""]
[null,null,"",null,null,null,0,null,null,null,0,null,null,null,0,null,null,null,0,0,"","",""]
[null,null,{"$f":"IF($B967<>\"\",VLOOKUP($B967,Tbl_Reference,2,0),\"\")","v":""},null,null,null,0,null,null,null,0,null,null,null,0,null,null,null,0,0,{"$f":"IF($B967<>\"\",VLOOKUP($B967,Tbl_Reference,3,0),\"\")","v":""},{"$f":"IF($B967<>\"\",VLOOKUP($B967,Tbl_Reference,4,0),\"\")","v":""},""]
[null,null,"",null,null,null,{"$f":"SUM(D968:F968)","v":0},null,null,null,{"$f":"SUM(H968:J968)","v":0},null,null,null,{"$f":"SUM(L968:N968)","v":0},null,null,null,{"$f":"SUM(P968:R968)","v":0},{"$f":"G968+K968+O968+S968","v":0},"","",{"$f":"IF(B968<>\"\",IF(V968<>0,ROUND(T968*V968,2),ROUND(T968*U968,2)),\"\")","v":""}]
[null,null,"",null,null,null,0,null,null,null,0,null,null,null,0,null,null,null,0,0,"","",""]
[null,null,"",null,null,null,0,null,null,null,0,null,null,null,0,null,null,null,0,0,"","",""]
[null,null,"",null,null,null,0,null,null,null,0,null,null,null,0,null,null,null,0,0,"","",""]
[null,null,"",null,null,null,0,null,null,null,0,null,null,null,0,null,null,null,0,0,"","",""]
[null,null,"",null,null,null,0,null,null,null,0,null,null,null,0,null,null,null,0,0,"","",""]
[null,null,"",null,null,null,0,null,null,null,0,null,null,null,0,null,null,null,0,0,"","",""]
[null,null,"",null,null,null,0,null,null,null,0,null,null,null,0,null,null,null,0,0,"","",""]
[null,null,"",null,null,null,0,null,null,null,0,null,null,null,0,null,null,null,0,0,"","",""]
[null,null,"",null,null,null,0,null,null,null,0,null,null,null,0,null,null,null,0,0,"","",""]
[null,null,"",null,null,null,0,null,null,null,0,null,null,null,0,null,null,null,0,0,"","",""]
[null,null,"",null,null,null,0,null,null,null,0,null,null,null,0,null,null,null,0,0,"","",""]
[null,null,"",null,null,null,0,null,null,null,0,null,null,null,0,null,null,null,0,0,"","",""]
[null,null,"",null,null,null,0,null,null,null,0,null,null,null,0,null,null,null,0,0,"","",""]
[null,null,"",null,null,null,0,null,null,null,0,null,null,null,0,null,null,null,0,0,"","",""]
[null,null,"",null,null,null,0,null,null,null,0,null,null,null,0,null,null,null,0,0,"","",""]
[null,null,"",null,null,null,0,null,null,null,0,null,null,null,0,null,null,null,0,0,"","",""]
[null,null,"",null,null,null,0,null,null,null,0,null,null,null,0,null,null,null,0,0,"","",""]
[null,null,"",null,null,null,0,null,null,null,0,null,null,null,0,null,null,null,0,0,"","",""]
[null,null,"",null,null,null,0,null,null,null,0,null,null,null,0,null,null,null,0,0,"","",""]
[null,null,"",null,null,null,0,null,null,null,0,null,null,null,0,null,null,null,0,0,"","",""]
[null,null,"",null,null,null,0,null,null,null,0,null,null,null,0,null,null,null,0,0,"","",""]
[null,null,"",null,null,null,0,null,null,null,0,null,null,null,0,null,null,null,0,0,"","",""]
[null,null,"",null,null,null,0,null,null,null,0,null,null,null,0,null,null,null,0,0,"","",""]
[null,null,"",null,null,null,0,null,null,null,0,null,null,null,0,null,null,null,0,0,"","",""]
[null,null,"",null,null,null,0,null,null,null,0,null,null,null,0,null,null,null,0,0,"","",""]
[null,null,"",null,null,null,0,null,null,null,0,null,null,null,0,null,null,null,0,0,"","",""]
[null,null,"",null,null,null,0,null,null,null,0,null,null,null,0,null,null,null,0,0,"","",""]
[null,null,"",null,null,null,0,null,null,null,0,null,null,null,0,null,null,null,0,0,"","",""]
[null,null,"",null,null,null,0,null,null,null,0,null,null,null,0,null,null,null,0,0,"","",""]
[null,null,"",null,null,null,0,null,null,null,0,null,null,null,0,null,null,null,0,0,"","",""]
[null,null,"",null,null,null,0,null,null,null,0,null,null,null,0,null,null,null,0,0,"","",""]
[null,null,"",null,null,null,0,null,null,null,0,null,null,null,0,null,null,null,0,0,"","",""]
[null,null,"",null,null,null,0,null,null,null,0,null,null,null,0,null,null,null,0,0,"","",""]
[null,null,"",null,null,null,0,null,null,null,0,null,null,null,0,null,null,null,0,0,"","",""]
[null,null,"",null,null,null,0,null,null,null,0,null,null,null,0,null,null,null,0,0,"","",""]
[null,null,"",null,null,null,{"$f":"SUM(D1032:F1032)","v":0},null,null,null,{"$f":"SUM(H1032:J1032)","v":0},null,null,null,{"$f":"SUM(L1032:N1032)","v":0},null,null,null,{"$f":"SUM(P1032:R1032)","v":0},{"$f":"G1032+K1032+O1032+S1032","v":0},"","",{"$f":"IF(B1032<>\"\",IF(V1032<>0,ROUND(T1032*V1032,2),ROUND(T1032*U1032,2)),\"\")","v":""}]
[null,null,"",null,null,null,0,null,null,null,0,null,null,null,0,null,null,null,0,0,"","",""]
[null,null,"",null,null,null,0,null,null,null,0,null,null,null,0,null,null,null,0,0,"","",""]
[null,null,"",null,null,null,0,null,null,null,0,null,null,null,0,null,null,null,0,0,"","",""]
[null,null,"",null,null,null,0,null,null,null,0,null,null,null,0,null,null,null,0,0,"","",""]
[null,null,"",null,null,null,0,null,null,null,0,null,null,null,0,null,null,null,0,0,"","",""]
[null,null,"",null,null,null,0,null,null,null,0,null,null,null,0,null,null,null,0,0,"","",""]
[null,null,{"$f":"IF($B1095<>\"\",VLOOKUP($B1095,Tbl_Reference,2,0),\"\")","v":""},null,null,null,0,null,null,null,0,null,null,null,0,null,null,null,0,0,{"$f":"IF($B1095<>\"\",VLOOKUP($B1095,Tbl_Reference,3,0),\"\")","v":""},{"$f":"IF($B1095<>\"\",VLOOKUP($B1095,Tbl_Reference,4,0),\"\")","v":""},""]
[null,null,"",null,null,null,0,null,null,null,0,null,null,null,0,null,null,null,0,0,"","",""]
[null,null,"",null,null,null,0,null,null,null,0,null,null,null,0,null,null,null,0,0,"","",""]
[null,null,"",null,null,null,0,null,null,null,0,null,null,null,0,null,null,null,0,0,"","",""]
[null,null,"",null,null,null,0,null,null,null,0,null,null,null,0,null,null,null,0,0,"","",""]
[null,null,"",null,null,null,0,null,null,null,0,null,null,null,0,null,null,null,0,0,"","",""]
[null,null,"",null,null,null,0,null,null,null,0,null,null,null,0,null,null,null,0,0,"","",""]
[null,null,"",null,null,null,0,null,null,null,0,null,null,null,0,null,null,null,0,0,"","",""]
[null,null,"",null,null,null,0,null,null,null,0,null,null,null,0,null,null,null,0,0,"","",""]
[null,null,"",null,null,null,0,null,null,null,0,null,null,null,0,null,null,null,0,0,"","",""]
[null,null,"",null,null,null,0,null,null,null,0,null,null,null,0,null,null,null,0,0,"","",""]
[null,null,"",null,null,null,0,null,null,null,0,null,null,null,0,null,null,null,0,0,"","",""]
[null,null,"",null,null,null,0,null,null,null,0,null,null,null,0,null,null,null,0,0,"","",""]
[null,null,"",null,null,null,0,null,null,null,0,null,null,null,0,null,null,null,0,0,"","",""]
[null,null,"",null,null,null,0,null,null,null,0,null,null,null,0,null,null,null,0,0,"","",""]
[null,null,{"$f":"IF($B1223<>\"\",VLOOKUP($B1223,Tbl_Reference,2,0),\"\")","v":""},null,null,null,0,null,null,null,0,null,null,null,0,null,null,null,0,0,{"$f":"IF($B1223<>\"\",VLOOKUP($B1223,Tbl_Reference,3,0),\"\")","v":""},{"$f":"IF($B1223<>\"\",VLOOKUP($B1223,Tbl_Reference,4,0),\"\")","v":""},""]
[null,null,"",null,null,null,0,null,null,null,0,null,null,null,0,null,null,null,0,0,"","",""]
[null,null,"",null,null,null,0,null,null,null,0,null,null,null,0,null,null,null,0,0,"","",""]
[null,null,"",null,null,null,0,null,null,null,0,null,null,null,0,null,null,null,0,0,"","",""]
[null,null,"",null,null,null,0,null,null,null,0,null,null,null,0,null,null,null,0,0,"","",""]
[null,null,"",null,null,null,0,null,null,null,0,null,null,null,0,null,null,null,0,0,"","",""]
[null,null,"",null,null,null,0,null,null,null,0,null,null,null,0,null,null,null,0,0,"","",""]
[null,null,"",null,null,null,0,null,null,null,0,null,null,null,0,null,null,null,0,0,"","",""]
[null,null,"",null,null,null,0,null,null,null,0,null,null,null,0,null,null,null,0,0,"","",""]
[null,null,"",null,null,null,0,null,null,null,0,null,null,null,0,null,null,null,0,0,"","",""]
[null,null,"",null,null,null,0,null,null,null,0,null,null,null,0,null,null,null,0,0,"","",""]
[null,null,"",null,null,null,0,null,null,null,0,null,null,null,0,null,null,null,0,0,"","",""]
[null,null,"",null,null,null,0,null,null,null,0,null,null,null,0,null,null,null,0,0,"","",""]
[null,null,"",null,null,null,0,null,null,null,0,null,null,null,0,null,null,null,0,0,"","",""]
[null,null,"",null,null,null,0,null,null,null,0,null,null,null,0,null,null,null,0,0,"","",""]
[null,null,"",null,null,null,{"$f":"SUM(D1352:F1352)","v":0},null,null,null,{"$f":"SUM(H1352:J1352)","v":0},null,null,null,{"$f":"SUM(L1352:N1352)","v":0},null,null,null,{"$f":"SUM(P1352:R1352)","v":0},{"$f":"G1352+K1352+O1352+S1352","v":0},"","",{"$f":"IF(B1352<>\"\",IF(V1352<>0,ROUND(T1352*V1352,2),ROUND(T1352*U1352,2)),\"\")","v":""}]
[null,null,"",null,null,null,0,null,null,null,0,null,null,null,0,null,null,null,0,0,"","",""]
[null,null,"",null,null,null,0,null,null,null,0,null,null,null,0,null,null,null,0,0,"","",""]
[null,null,"",null,null,null,0,null,null,null,0,null,null,null,0,null,null,null,0,0,"","",""]
[null,null,"",null,null,null,0,null,null,null,0,null,null,null,0,null,null,null,0,0,"","",""]
[null,null,"",null,null,null,0,null,null,null,0,null,null,null,0,null,null,null,0,0,"","",""]
[null,null,"",null,null,null,0,null,null,null,0,null,null,null,0,null,null,null,0,0,"","",""]
[null,null,{"$f":"IF($B1415<>\"\",VLOOKUP($B1415,Tbl_Reference,2,0),\"\")","v":""},null,null,null,0,null,null,null,0,null,null,null,0,null,null,null,0,0,{"$f":"IF($B1415<>\"\",VLOOKUP($B1415,Tbl_Reference,3,0),\"\")","v":""},{"$f":"IF($B1415<>\"\",VLOOKUP($B1415,Tbl_Reference,4,0),\"\")","v":""},""]
[null,null,"",null,null,null,0,null,null,null,0,null,null,null,0,null,null,null,0,0,"","",""]
[null,null,"",null,null,null,0,null,null,null,0,null,null,null,0,null,null,null,0,0,"","",""]
[null,null,"",null,null,null,0,null,null,null,0,null,null,null,0,null,null,null,0,0,"","",""]
[null,null,"",null,null,null,0,null,null,null,0,null,null,null,0,null,null,null,0,0,"","",""]
[null,null,"",null,null,null,0,null,null,null,0,null,null,null,0,null,null,null,0,0,"","",""]
[null,null,"",null,null,null,0,null,null,null,0,null,null,null,0,null,null,null,0,0,"","",""]
[null,null,"",null,null,null,0,null,null,null,0,null,null,null,0,null,null,null,0,0,"","",""]
[null,null,"",null,null,null,0,null,null,null,0,null,null,null,0,null,null,null,0,0,"","",""]
[null,null,"",null,null,null,0,null,null,null,0,null,null,null,0,null,null,null,0,0,"","",""]
[null,null,"",null,null,null,0,null,null,null,0,null,null,null,0,null,null,null,0,0,"","",""]
[null,null,"",null,null,null,0,null,null,null,0,null,null,null,0,null,null,null,0,0,"","",""]
[null,null,"",null,null,null,0,null,null,null,0,null,null,null,0,null,null,null,0,0,"","",""]
[null,null,"",null,null,null,0,null,null,null,0,null,null,null,0,null,null,null,0,0,"","",""]
[null,null,"",null,null,null,0,null,null,null,0,null,null,null,0,null,null,null,0,0,"","",""]
[null,null,{"$f":"IF($B1543<>\"\",VLOOKUP($B1543,Tbl_Reference,2,0),\"\")","v":""},null,null,null,0,null,null,null,0,null,null,null,0,null,null,null,0,0,{"$f":"IF($B1543<>\"\",VLOOKUP($B1543,Tbl_Reference,3,0),\"\")","v":""},{"$f":"IF($B1543<>\"\",VLOOKUP($B1543,Tbl_Reference,4,0),\"\")","v":""},""]
[null,null,"",null,null,null,0,null,null,null,0,null,null,null,0,null,null,null,0,0,"","",""]
[null,null,"",null,null,null,0,null,null,null,0,null,null,null,0,null,null,null,0,0,"","",""]
[null,null,"",null,null,null,0,null,null,null,0,null,null,null,0,null,null,null,0,0,"","",""]
[null,null,"",null,null,null,0,null,null,null,0,null,null,null,0,null,null,null,0,0,"","",""]
[null,null,"",null,null,null,0,null,null,null,0,null,null,null,0,null,null,null,0,0,"","",""]
[null,null,"",null,null,null,0,null,null,null,0,null,null,null,0,null,null,null,0,0,"","",""]
[null,null,"",null,null,null,0,null,null,null,0,null,null,null,0,null,null,null,0,0,"","",""]
[null,null,"",null,null,null,0,null,null,null,0,null,null,null,0,null,null,null,0,0,"","",""]
[null,null,"",null,null,null,0,null,null,null,0,null,null,null,0,null,null,null,0,0,"","",""]
[null,null,"",null,null,null,0,null,null,null,0,null,null,null,0,null,null,null,0,0,"","",""]
[null,null,"",null,null,null,0,null,null,null,0,null,null,null,0,null,null,null,0,0,"","",""]
[null,null,"",null,null,null,0,null,null,null,0,null,null,null,0,null,null,null,0,0,"","",""]
[null,null,"",null,null,null,0,null,null,null,0,null,null,null,0,null,null,null,0,0,"","",""]
[null,null,"",null,null,null,0,null,null,null,0,null,null,null,0,null,null,null,0,0,"","",""]
[null,null,"",null,null,null,0,null,null,null,0,null,null,null,0,null,null,null,0,0,"","",""]
[null,null,"",null,null,null,0,null,null,null,0,null,null,null,0,null,null,null,0,0,"","",""]
[null,null,"",null,null,null,0,null,null,null,0,null,null,null,0,null,null,null,0,0,"","",""]
[null,null,"",null,null,null,0,null,null,null,0,null,null,null,0,null,null,null,0,0,"","",""]
[null,null,"",null,null,null,0,null,null,null,0,null,null,null,0,null,null,null,0,0,"","",""]
[null,null,"",null,null,null,0,null,null,null,0,null,null,null,0,null,null,null,0,0,"","",""]
[null,null,"",null,null,null,0,null,null,null,0,null,null,null,0,null,null,null,0,0,"","",""]
[null,null,"",null,null,null,0,null,null,null,0,null,null,null,0,null,null,null,0,0,"","",""]
[null,null,"",null,null,null,0,null,null,null,0,null,null,null,0,null,null,null,0,0,"","",""]
[null,null,"",null,null,null,0,null,null,null,0,null,null,null,0,null,null,null,0,0,"","",""]
[null,null,"",null,null,null,0,null,null,null,0,null,null,null,0,null,null,null,0,0,"","",""]
[null,null,"",null,null,null,0,null,null,null,0,null,null,null,0,null,null,null,0,0,"","",""]
[null,null,"",null,null,null,0,null,null,null,0,null,null,null,0,null,null,null,0,0,"","",""]
[null,null,"",null,null,null,0,null,null,null,0,null,null,null,0,null,null,null,0,0,"","",""]
[null,null,"",null,null,null,0,null,null,null,0,null,null,null,0,null,null,null,0,0,"","",""]
[null,null,"",null,null,null,0,null,null,null,0,null,null,null,0,null,null,null,0,0,"","",""]
[null,null,"",null,null,null,0,null,null,null,0,null,null,null,0,null,null,null,0,0,"","",""]
[null,null,"",null,null,null,0,null,null,null,0,null,null,null,0,null,null,null,0,0,"","",""]
[null,null,"",null,null,null,0,null,null,null,0,null,null,null,0,null,null,null,0,0,"","",""]
[null,null,"",null,null,null,0,null,null,null,0,null,null,null,0,null,null,null,0,0,"","",""]
[null,null,"",null,null,null,0,null,null,null,0,null,null,null,0,null,null,null,0,0,"","",""]
[null,null,"",null,null,null,0,null,null,null,0,null,null,null,0,null,null,null,0,0,"","",""]
[null,null,"",null,null,null,0,null,null,null,0,null,null,null,0,null,null,null,0,0,"","",""]
[null,null,"",null,null,null,0,null,null,null,0,null,null,null,0,null,null,null,0,0,"","",""]
[null,null,"",null,null,null,0,null,null,null,0,null,null,null,0,null,null,null,0,0,"","",""]
[null,null,"",null,null,null,0,null,null,null,0,null,null,null,0,null,null,null,0,0,"","",""]
[null,null,"",null,null,null,0,null,null,null,0,null,null,null,0,null,null,null,0,0,"","",""]
[null,null,"",null,null,null,0,null,null,null,0,null,null,null,0,null,null,null,0,0,"","",""]
[null,null,"",null,null,null,0,null,null,null,0,null,null,null,0,null,null,null,0,0,"","",""]
[null,null,"",null,null,null,0,null,null,null,0,null,null,null,0,null,null,null,0,0,"","",""]
[null,null,"",null,null,null,0,null,null,null,0,null,null,null,0,null,null,null,0,0,"","",""]
[null,null,"",null,null,null,0,null,null,null,0,null,null,null,0,null,null,null,0,0,"","",""]
[null,null,"",null,null,null,0,null,null,null,0,null,null,null,0,null,null,null,0,0,"","",""]
[null,null,"",null,null,null,0,null,null,null,0,null,null,null,0,null,null,null,0,0,"","",""]
[null,null,"",null,null,null,0,null,null,null,0,null,null,null,0,null,null,null,0,0,"","",""]
[null,null,"",null,null,null,0,null,null,null,0,null,null,null,0,null,null,null,0,0,"","",""]
[null,null,"",null,null,null,{"$f":"SUM(D1992:F1992)","v":0},null,null,null,{"$f":"SUM(H1992:J1992)","v":0},null,null,null,{"$f":"SUM(L1992:N1992)","v":0},null,null,null,{"$f":"SUM(P1992:R1992)","v":0},{"$f":"G1992+K1992+O1992+S1992","v":0},"","",{"$f":"IF(B1992<>\"\",IF(V1992<>0,ROUND(T1992*V1992,2),ROUND(T1992*U1992,2)),\"\")","v":""}]
[null,null,"",null,null,null,0,null,null,null,0,null,null,null,0,null,null,null,0,0,"","",""]
[null,null,"",null,null,null,0,null,null,null,0,null,null,null,0,null,null,null,0,0,"","",""]
[null,null,"",null,null,null,0,null,null,null,0,null,null,null,0,null,null,null,0,0,"","",""]
[null,null,"",null,null,null,0,null,null,null,0,null,null,null,0,null,null,null,0,0,"","",""]
[null,null,"",null,null,null,0,null,null,null,0,null,null,null,0,null,null,null,0,0,"","",""]
[null,null,"",null,null,null,0,null,null,null,0,null,null,null,0,null,null,null,0,0,"","",""]
[null,null,"",null,null,null,0,null,null,null,0,null,null,null,0,null,null,null,0,0,"","",""]
[null,null,"",null,null,null,0,null,null,null,0,null,null,null,0,null,null,null,0,0,"","",""]
[null,null,"",null,null,null,0,null,null,null,0,null,null,null,0,null,null,null,0,0,"","",""]
[null,null,"",null,null,null,0,null,null,null,0,null,null,null,0,null,null,null,0,0,"","",""]
[null,null,"",null,null,null,0,null,null,null,0,null,null,null,0,null,null,null,0,0,"","",""]
[null,null,"",null,null,null,0,null,null,null,0,null,null,null,0,null,null,null,0,0,"","",""]
[null,null,"",null,null,null,0,null,null,null,0,null,null,null,0,null,null,null,0,0,"","",""]
[null,null,{"$f":"IF($B2119<>\"\",VLOOKUP($B2119,Tbl_Reference,2,0),\"\")","v":""},null,null,null,0,null,null,null,0,null,null,null,0,null,null,null,0,0,{"$f":"IF($B2119<>\"\",VLOOKUP($B2119,Tbl_Reference,3,0),\"\")","v":""},{"$f":"IF($B2119<>\"\",VLOOKUP($B2119,Tbl_Reference,4,0),\"\")","v":""},""]
[null,null,"",null,null,null,0,null,null,null,0,null,null,null,0,null,null,null,0,0,"","",""]
[null,null,"",null,null,null,0,null,null,null,0,null,null,null,0,null,null,null,0,0,"","",""]
[null,null,"",null,null,null,0,null,null,null,0,null,null,null,0,null,null,null,0,0,"","",""]
[null,null,"",null,null,null,0,null,null,null,0,null,null,null,0,null,null,null,0,0,"","",""]
[null,null,"",null,null,null,0,null,null,null,0,null,null,null,0,null,null,null,0,0,"","",""]
[null,null,"",null,null,null,0,null,null,null,0,null,null,null,0,null,null,null,0,0,"","",""]
[null,null,"",null,null,null,0,null,null,null,0,null,null,null,0,null,null,null,0,0,"","",""]
[null,null,"",null,null,null,0,null,null,null,0,null,null,null,0,null,null,null,0,0,"","",""]
[null,null,"",null,null,null,0,null,null,null,0,null,null,null,0,null,null,null,0,0,"","",""]
[null,null,"",null,null,null,0,null,null,null,0,null,null,null,0,null,null,null,0,0,"","",""]
[null,null,"",null,null,null,0,null,null,null,0,null,null,null,0,null,null,null,0,0,"","",""]
[null,null,"",null,null,null,0,null,null,null,0,null,null,null,0,null,null,null,0,0,"","",""]
[null,null,"",null,null,null,0,null,null,null,0,null,null,null,0,null,null,null,0,0,"","",""]
[null,null,"",null,null,null,0,null,null,null,0,null,null,null,0,null,null,null,0,0,"","",""]
[null,null,"",null,null,null,0,null,null,null,0,null,null,null,0,null,null,null,0,0,"","",""]
[null,null,"",null,null,null,0,null,null,null,0,null,null,null,0,null,null,null,0,0,"","",""]
[null,null,"",null,null,null,0,null,null,null,0,null,null,null,0,null,null,null,0,0,"","",""]
[null,null,"",null,null,null,0,null,null,null,0,null,null,null,0,null,null,null,0,0,"","",""]
[null,null,"",null,null,null,0,null,null,null,0,null,null,null,0,null,null,null,0,0,"","",""]
[null,null,"",null,null,null,0,null,null,null,0,null,null,null,0,null,null,null,0,0,"","",""]
[null,null,"",null,null,null,0,null,null,null,0,null,null,null,0,null,null,null,0,0,"","",""]
[null,null,{"$f":"IF($B2311<>\"\",VLOOKUP($B2311,Tbl_Reference,2,0),\"\")","v":""},null,null,null,0,null,null,null,0,null,null,null,0,null,null,null,0,0,{"$f":"IF($B2311<>\"\",VLOOKUP($B2311,Tbl_Reference,3,0),\"\")","v":""},{"$f":"IF($B2311<>\"\",VLOOKUP($B2311,Tbl_Reference,4,0),\"\")","v":""},""]
[null,null,"",null,null,null,0,null,null,null,0,null,null,null,0,null,null,null,0,0,"","",""]
[null,null,"",null,null,null,0,null,null,null,0,null,null,null,0,null,null,null,0,0,"","",""]
[null,null,"",null,null,null,0,null,null,null,0,null,null,null,0,null,null,null,0,0,"","",""]
[null,null,"",null,null,null,0,null,null,null,0,null,null,null,0,null,null,null,0,0,"","",""]
[null,null,"",null,null,null,0,null,null,null,0,null,null,null,0,null,null,null,0,0,"","",""]
[null,null,"",null,null,null,0,null,null,null,0,null,null,null,0,null,null,null,0,0,"","",""]
[null,null,"",null,null,null,0,null,null,null,0,null,null,null,0,null,null,null,0,0,"","",""]
[null,null,"",null,null,null,0,null,null,null,0,null,null,null,0,null,null,null,0,0,"","",""]
[null,null,"",null,null,null,0,null,null,null,0,null,null,null,0,null,null,null,0,0,"","",""]
[null,null,"",null,null,null,0,null,null,null,0,null,null,null,0,null,null,null,0,0,"","",""]
[null,null,"",null,null,null,0,null,null,null,0,null,null,null,0,null,null,null,0,0,"","",""]
[null,null,"",null,null,null,0,null,null,null,0,null,null,null,0,null,null,null,0,0,"","",""]
[null,null,"",null,null,null,0,null,null,null,0,null,null,null,0,null,null,null,0,0,"","",""]
[null,null,"",null,null,null,0,null,null,null,0,null,null,null,0,null,null,null,0,0,"","",""]
[null,null,{"$f":"IF($B2439<>\"\",VLOOKUP($B2439,Tbl_Reference,2,0),\"\")","v":""},null,null,null,0,null,null,null,0,null,null,null,0,null,null,null,0,0,{"$f":"IF($B2439<>\"\",VLOOKUP($B2439,Tbl_Reference,3,0),\"\")","v":""},{"$f":"IF($B2439<>\"\",VLOOKUP($B2439,Tbl_Reference,4,0),\"\")","v":""},""]
[null,null,"",null,null,null,0,null,null,null,0,null,null,null,0,null,null,null,0,0,"","",""]
[null,null,"",null,null,null,0,null,null,null,0,null,null,null,0,null,null,null,0,0,"","",""]
[null,null,"",null,null,null,0,null,null,null,0,null,null,null,0,null,null,null,0,0,"","",""]
[null,null,"",null,null,null,0,null,null,null,0,null,null,null,0,null,null,null,0,0,"","",""]
[null,null,"",null,null,null,0,null,null,null,0,null,null,null,0,null,null,null,0,0,"","",""]
[null,null,"",null,null,null,0,null,null,null,0,null,null,null,0,null,null,null,0,0,"","",""]
[null,null,"",null,null,null,0,null,null,null,0,null,null,null,0,null,null,null,0,0,"","",""]
[null,null,"",null,null,null,0,null,null,null,0,null,null,null,0,null,null,null,0,0,"","",""]
[null,null,"",null,null,null,0,null,null,null,0,null,null,null,0,null,null,null,0,0,"","",""]
[null,null,"",null,null,null,0,null,null,null,0,null,null,null,0,null,null,null,0,0,"","",""]
[null,null,"",null,null,null,0,null,null,null,0,null,null,null,0,null,null,null,0,0,"","",""]
[null,null,"",null,null,null,0,null,null,null,0,null,null,null,0,null,null,null,0,0,"","",""]
[null,null,"",null,null,null,0,null,null,null,0,null,null,null,0,null,null,null,0,0,"","",""]
[null,null,"",null,null,null,0,null,null,null,0,null,null,null,0,null,null,null,0,0,"","",""]
[null,null,{"$f":"IF($B2567<>\"\",VLOOKUP($B2567,Tbl_Reference,2,0),\"\")","v":""},null,null,null,0,null,null,null,0,null,null,null,0,null,null,null,0,0,{"$f":"IF($B2567<>\"\",VLOOKUP($B2567,Tbl_Reference,3,0),\"\")","v":""},{"$f":"IF($B2567<>\"\",VLOOKUP($B2567,Tbl_Reference,4,0),\"\")","v":""},""]
[null,null,"",null,null,null,0,null,null,null,0,null,null,null,0,null,null,null,0,0,"","",""]
[null,null,"",null,null,null,0,null,null,null,0,null,null,null,0,null,null,null,0,0,"","",""]
[null,null,"",null,null,null,0,null,null,null,0,null,null,null,0,null,null,null,0,0,"","",""]
[null,null,"",null,null,null,0,null,null,null,0,null,null,null,0,null,null,null,0,0,"","",""]
[null,null,"",null,null,null,0,null,null,null,0,null,null,null,0,null,null,null,0,0,"","",""]
[null,null,"",null,null,null,0,null,null,null,0,null,null,null,0,null,null,null,0,0,"","",""]
[null,null,"",null,null,null,{"$f":"SUM(D2632:F2632)","v":0},null,null,null,{"$f":"SUM(H2632:J2632)","v":0},null,null,null,{"$f":"SUM(L2632:N2632)","v":0},null,null,null,{"$f":"SUM(P2632:R2632)","v":0},{"$f":"G2632+K2632+O2632+S2632","v":0},"","",{"$f":"IF(B2632<>\"\",IF(V2632<>0,ROUND(T2632*V2632,2),ROUND(T2632*U2632,2)),\"\")","v":""}]
[null,null,"",null,null,null,0,null,null,null,0,null,null,null,0,null,null,null,0,0,"","",""]
[null,null,"",null,null,null,0,null,null,null,0,null,null,null,0,null,null,null,0,0,"","",""]
[null,null,"",null,null,null,0,null,null,null,0,null,null,null,0,null,null,null,0,0,"","",""]
[null,null,"",null,null,null,0,null,null,null,0,null,null,null,0,null,null,null,0,0,"","",""]
[null,null,"",null,null,null,0,null,null,null,0,null,null,null,0,null,null,null,0,0,"","",""]
[null,null,"",null,null,null,0,null,null,null,0,null,null,null,0,null,null,null,0,0,"","",""]
[null,null,"",null,null,null,0,null,null,null,0,null,null,null,0,null,null,null,0,0,"","",""]
[null,null,"",null,null,null,0,null,null,null,0,null,null,null,0,null,null,null,0,0,"","",""]
[null,null,"",null,null,null,0,null,null,null,0,null,null,null,0,null,null,null,0,0,"","",""]
[null,null,"",null,null,null,0,null,null,null,0,null,null,null,0,null,null,null,0,0,"","",""]
[null,null,"",null,null,null,0,null,null,null,0,null,null,null,0,null,null,null,0,0,"","",""]
[null,null,"",null,null,null,0,null,null,null,0,null,null,null,0,null,null,null,0,0,"","",""]
[null,null,"",null,null,null,0,null,null,null,0,null,null,null,0,null,null,null,0,0,"","",""]
[null,null,"",null,null,null,0,null,null,null,0,null,null,null,0,null,null,null,0,0,"","",""]
[null,null,"",null,null,null,0,null,null,null,0,null,null,null,0,null,null,null,0,0,"","",""]
[null,null,"",null,null,null,0,null,null,null,0,null,null,null,0,null,null,null,0,0,"","",""]
[null,null,"",null,null,null,0,null,null,null,0,null,null,null,0,null,null,null,0,0,"","",""]
[null,null,"",null,null,null,0,null,null,null,0,null,null,null,0,null,null,null,0,0,"","",""]
[null,null,"",null,null,null,0,null,null,null,0,null,null,null,0,null,null,null,0,0,"","",""]
[null,null,"",null,null,null,0,null,null,null,0,null,null,null,0,null,null,null,0,0,"","",""]
[null,null,"",null,null,null,0,null,null,null,0,null,null,null,0,null,null,null,0,0,"","",""]
[null,null,"",null,null,null,0,null,null,null,0,null,null,null,0,null,null,null,0,0,"","",""]
[null,null,"",null,null,null,0,null,null,null,0,null,null,null,0,null,null,null,0,0,"","",""]
[null,null,"",null,null,null,0,null,null,null,0,null,null,null,0,null,null,null,0,0,"","",""]
[null,null,"",null,null,null,0,null,null,null,0,null,null,null,0,null,null,null,0,0,"","",""]
[null,null,"",null,null,null,0,null,null,null,0,null,null,null,0,null,null,null,0,0,"","",""]
[null,null,"",null,null,null,0,null,null,null,0,null,null,null,0,null,null,null,0,0,"","",""]
[null,null,"",null,null,null,0,null,null,null,0,null,null,null,0,null,null,null,0,0,"","",""]
[null,null,"",null,null,null,0,null,null,null,0,null,null,null,0,null,null,null,0,0,"","",""]
[null,null,"",null,null,null,0,null,null,null,0,null,null,null,0,null,null,null,0,0,"","",""]
[null,null,"",null,null,null,0,null,null,null,0,null,null,null,0,null,null,null,0,0,"","",""]
[null,null,"",null,null,null,0,null,null,null,0,null,null,null,0,null,null,null,0,0,"","",""]
[null,null,"",null,null,null,0,null,null,null,0,null,null,null,0,null,null,null,0,0,"","",""]
[null,null,"",null,null,null,0,null,null,null,0,null,null,null,0,null,null,null,0,0,"","",""]
[null,null,"",null,null,null,0,null,null,null,0,null,null,null,0,null,null,null,0,0,"","",""]
[null,null,"",null,null,null,0,null,null,null,0,null,null,null,0,null,null,null,0,0,"","",""]
[null,null,"",null,null,null,0,null,null,null,0,null,null,null,0,null,null,null,0,0,"","",""]
[null,null,"",null,null,null,0,null,null,null,0,null,null,null,0,null,null,null,0,0,"","",""]
[null,null,"",null,null,null,0,null,null,null,0,null,null,null,0,null,null,null,0,0,"","",""]
[null,null,"",null,null,null,0,null,null,null,0,null,null,null,0,null,null,null,0,0,"","",""]
[null,null,"",null,null,null,0,null,null,null,0,null,null,null,0,null,null,null,0,0,"","",""]
[null,null,"",null,null,null,0,null,null,null,0,null,null,null,0,null,null,null,0,0,"","",""]
[null,null,"",null,null,null,0,null,null,null,0,null,null,null,0,null,null,null,0,0,"","",""]
[null,null,"",null,null,null,0,null,null,null,0,null,null,null,0,null,null,null,0,0,"","",""]
[null,null,"",null,null,null,0,null,null,null,0,null,null,null,0,null,null,null,0,0,"","",""]
[null,null,"",null,null,null,0,null,null,null,0,null,null,null,0,null,null,null,0,0,"","",""]
[null,null,"",null,null,null,0,null,null,null,0,null,null,null,0,null,null,null,0,0,"","",""]
[null,null,"",null,null,null,0,null,null,null,0,null,null,null,0,null,null,null,0,0,"","",""]
[null,null,"",null,null,null,0,null,null,null,0,null,null,null,0,null,null,null,0,0,"","",""]
[null,null,"",null,null,null,0,null,null,null,0,null,null,null,0,null,null,null,0,0,"","",""]
[null,null,"",null,null,null,0,null,null,null,0,null,null,null,0,null,null,null,0,0,"","",""]
[null,null,"",null,null,null,0,null,null,null,0,null,null,null,0,null,null,null,0,0,"","",""]
[null,null,"",null,null,null,0,null,null,null,0,null,null,null,0,null,null,null,0,0,"","",""]
[null,null,"",null,null,null,0,null,null,null,0,null,null,null,0,null,null,null,0,0,"","",""]
[null,null,"",null,null,null,0,null,null,null,0,null,null,null,0,null,null,null,0,0,"","",""]
[null,null,"",null,null,null,0,null,null,null,0,null,null,null,0,null,null,null,0,0,"","",""]
[null,null,"",null,null,null,0,null,null,null,0,null,null,null,0,null,null,null,0,0,"","",""]
[null,null,{"$f":"IF($B3143<>\"\",VLOOKUP($B3143,Tbl_Reference,2,0),\"\")","v":""},null,null,null,0,null,null,null,0,null,null,null,0,null,null,null,0,0,{"$f":"IF($B3143<>\"\",VLOOKUP($B3143,Tbl_Reference,3,0),\"\")","v":""},{"$f":"IF($B3143<>\"\",VLOOKUP($B3143,Tbl_Reference,4,0),\"\")","v":""},""]
[null,null,"",null,null,null,0,null,null,null,0,null,null,null,0,null,null,null,0,0,"","",""]
[null,null,"",null,null,null,0,null,null,null,0,null,null,null,0,null,null,null,0,0,"","",""]
[null,null,"",null,null,null,0,null,null,null,0,null,null,null,0,null,null,null,0,0,"","",""]
[null,null,"",null,null,null,0,null,null,null,0,null,null,null,0,null,null,null,0,0,"","",""]
[null,null,"",null,null,null,0,null,null,null,0,null,null,null,0,null,null,null,0,0,"","",""]
[null,null,"",null,null,null,0,null,null,null,0,null,null,null,0,null,null,null,0,0,"","",""]
[null,null,"",null,null,null,0,null,null,null,0,null,null,null,0,null,null,null,0,0,"","",""]
[null,null,"",null,null,null,0,null,null,null,0,null,null,null,0,null,null,null,0,0,"","",""]
[null,null,"",null,null,null,0,null,null,null,0,null,null,null,0,null,null,null,0,0,"","",""]
[null,null,"",null,null,null,0,null,null,null,0,null,null,null,0,null,null,null,0,0,"","",""]
[null,null,"",null,null,null,0,null,null,null,0,null,null,null,0,null,null,null,0,0,"","",""]
[null,null,"",null,null,null,0,null,null,null,0,null,null,null,0,null,null,null,0,0,"","",""]
[null,null,"",null,null,null,0,null,null,null,0,null,null,null,0,null,null,null,0,0,"","",""]
[null,null,"",null,null,null,0,null,null,null,0,null,null,null,0,null,null,null,0,0,"","",""]
[null,null,"",null,null,null,0,null,null,null,0,null,null,null,0,null,null,null,0,0,"","",""]
[null,null,"",null,null,null,0,null,null,null,0,null,null,null,0,null,null,null,0,0,"","",""]
[null,null,"",null,null,null,0,null,null,null,0,null,null,null,0,null,null,null,0,0,"","",""]
[null,null,"",null,null,null,0,null,null,null,0,null,null,null,0,null,null,null,0,0,"","",""]
[null,null,"",null,null,null,0,null,null,null,0,null,null,null,0,null,null,null,0,0,"","",""]
[null,null,"",null,null,null,0,null,null,null,0,null,null,null,0,null,null,null,0,0,"","",""]
[null,null,"",null,null,null,0,null,null,null,0,null,null,null,0,null,null,null,0,0,"","",""]
[null,null,{"$f":"IF($B3335<>\"\",VLOOKUP($B3335,Tbl_Reference,2,0),\"\")","v":""},null,null,null,0,null,null,null,0,null,null,null,0,null,null,null,0,0,{"$f":"IF($B3335<>\"\",VLOOKUP($B3335,Tbl_Reference,3,0),\"\")","v":""},{"$f":"IF($B3335<>\"\",VLOOKUP($B3335,Tbl_Reference,4,0),\"\")","v":""},""]
[null,null,"",null,null,null,0,null,null,null,0,null,null,null,0,null,null,null,0,0,"","",""]
[null,null,"",null,null,null,0,null,null,null,0,null,null,null,0,null,null,null,0,0,"","",""]
[null,null,"",null,null,null,0,null,null,null,0,null,null,null,0,null,null,null,0,0,"","",""]
[null,null,"",null,null,null,0,null,null,null,0,null,null,null,0,null,null,null,0,0,"","",""]
[null,null,"",null,null,null,0,null,null,null,0,null,null,null,0,null,null,null,0,0,"","",""]
[null,null,"",null,null,null,0,null,null,null,0,null,null,null,0,null,null,null,0,0,"","",""]
[null,null,"",null,null,null,0,null,null,null,0,null,null,null,0,null,null,null,0,0,"","",""]
[null,null,"",null,null,null,0,null,null,null,0,null,null,null,0,null,null,null,0,0,"","",""]
[null,null,"",null,null,null,0,null,null,null,0,null,null,null,0,null,null,null,0,0,"","",""]
[null,null,"",null,null,null,0,null,null,null,0,null,null,null,0,null,null,null,0,0,"","",""]
[null,null,"",null,null,null,0,null,null,null,0,null,null,null,0,null,null,null,0,0,"","",""]
[null,null,"",null,null,null,0,null,null,null,0,null,null,null,0,null,null,null,0,0,"","",""]
[null,null,"",null,null,null,0,null,null,null,0,null,null,null,0,null,null,null,0,0,"","",""]
[null,null,"",null,null,null,0,null,null,null,0,null,null,null,0,null,null,null,0,0,"","",""]
[null,null,{"$f":"IF($B3463<>\"\",VLOOKUP($B3463,Tbl_Reference,2,0),\"\")","v":""},null,null,null,0,null,null,null,0,null,null,null,0,null,null,null,0,0,{"$f":"IF($B3463<>\"\",VLOOKUP($B3463,Tbl_Reference,3,0),\"\")","v":""},{"$f":"IF($B3463<>\"\",VLOOKUP($B3463,Tbl_Reference,4,0),\"\")","v":""},""]
[null,null,"",null,null,null,0,null,null,null,0,null,null,null,0,null,null,null,0,0,"","",""]
[null,null,"",null,null,null,0,null,null,null,0,null,null,null,0,null,null,null,0,0,"","",""]
[null,null,"",null,null,null,0,null,null,null,0,null,null,null,0,null,null,null,0,0,"","",""]
[null,null,"",null,null,null,0,null,null,null,0,null,null,null,0,null,null,null,0,0,"","",""]
[null,null,"",null,null,null,0,null,null,null,0,null,null,null,0,null,null,null,0,0,"","",""]
[null,null,"",null,null,null,0,null,null,null,0,null,null,null,0,null,null,null,0,0,"","",""]
[null,null,"",null,null,null,0,null,null,null,0,null,null,null,0,null,null,null,0,0,"","",""]
[null,null,"",null,null,null,0,null,null,null,0,null,null,null,0,null,null,null,0,0,"","",""]
[null,null,"",null,null,null,0,null,null,null,0,null,null,null,0,null,null,null,0,0,"","",""]
[null,null,"",null,null,null,0,null,null,null,0,null,null,null,0,null,null,null,0,0,"","",""]
[null,null,"",null,null,null,0,null,null,null,0,null,null,null,0,null,null,null,0,0,"","",""]
[null,null,"",null,null,null,0,null,null,null,0,null,null,null,0,null,null,null,0,0,"","",""]
[null,null,"",null,null,null,0,null,null,null,0,null,null,null,0,null,null,null,0,0,"","",""]
[null,null,"",null,null,null,0,null,null,null,0,null,null,null,0,null,null,null,0,0,"","",""]
[null,null,"",null,null,null,0,null,null,null,0,null,null,null,0,null,null,null,0,0,"","",""]
[null,null,"",null,null,null,0,null,null,null,0,null,null,null,0,null,null,null,0,0,"","",""]
[null,null,"",null,null,null,0,null,null,null,0,null,null,null,0,null,null,null,0,0,"","",""]
[null,null,"",null,null,null,0,null,null,null,0,null,null,null,0,null,null,null,0,0,"","",""]
[null,null,"",null,null,null,0,null,null,null,0,null,null,null,0,null,null,null,0,0,"","",""]
[null,null,"",null,null,null,0,null,null,null,0,null,null,null,0,null,null,null,0,0,"","",""]
[null,null,"",null,null,null,0,null,null,null,0,null,null,null,0,null,null,null,0,0,"","",""]
[null,null,{"$f":"IF($B3655<>\"\",VLOOKUP($B3655,Tbl_Reference,2,0),\"\")","v":""},null,null,null,0,null,null,null,0,null,null,null,0,null,null,null,0,0,{"$f":"IF($B3655<>\"\",VLOOKUP($B3655,Tbl_Reference,3,0),\"\")","v":""},{"$f":"IF($B3655<>\"\",VLOOKUP($B3655,Tbl_Reference,4,0),\"\")","v":""},""]
[null,null,"",null,null,null,0,null,null,null,0,null,null,null,0,null,null,null,0,0,"","",""]
[null,null,"",null,null,null,0,null,null,null,0,null,null,null,0,null,null,null,0,0,"","",""]
[null,null,"",null,null,null,0,null,null,null,0,null,null,null,0,null,null,null,0,0,"","",""]
[null,null,"",null,null,null,0,null,null,null,0,null,null,null,0,null,null,null,0,0,"","",""]
[null,null,"",null,null,null,0,null,null,null,0,null,null,null,0,null,null,null,0,0,"","",""]
[null,null,"",null,null,null,0,null,null,null,0,null,null,null,0,null,null,null,0,0,"","",""]
[null,null,"",null,null,null,0,null,null,null,0,null,null,null,0,null,null,null,0,0,"","",""]
[null,null,"",null,null,null,0,null,null,null,0,null,null,null,0,null,null,null,0,0,"","",""]
[null,null,"",null,null,null,0,null,null,null,0,null,null,null,0,null,null,null,0,0,"","",""]
[null,null,"",null,null,null,0,null,null,null,0,null,null,null,0,null,null,null,0,0,"","",""]
[null,null,"",null,null,null,0,null,null,null,0,null,null,null,0,null,null,null,0,0,"","",""]
[null,null,"",null,null,null,0,null,null,null,0,null,null,null,0,null,null,null,0,0,"","",""]
[null,null,"",null,null,null,0,null,null,null,0,null,null,null,0,null,null,null,0,0,"","",""]
[null,null,"",null,null,null,0,null,null,null,0,null,null,null,0,null,null,null,0,0,"","",""]
[null,null,"",null,null,null,0,null,null,null,0,null,null,null,0,null,null,null,0,0,"","",""]
[null,null,"",null,null,null,0,null,null,null,0,null,null,null,0,null,null,null,0,0,"","",""]
[null,null,"",null,null,null,0,null,null,null,0,null,null,null,0,null,null,null,0,0,"","",""]
[null,null,"",null,null,null,0,null,null,null,0,null,null,null,0,null,null,null,0,0,"","",""]
[null,null,"",null,null,null,0,null,null,null,0,null,null,null,0,null,null,null,0,0,"","",""]
[null,null,"",null,null,null,0,null,null,null,0,null,null,null,0,null,null,null,0,0,"","",""]
[null,null,"",null,null,null,0,null,null,null,0,null,null,null,0,null,null,null,0,0,"","",""]
[null,null,"",null,null,null,0,null,null,null,0,null,null,null,0,null,null,null,0,0,"","",""]
[null,null,"",null,null,null,0,null,null,null,0,null,null,null,0,null,null,null,0,0,"","",""]
[null,null,"",null,null,null,0,null,null,null,0,null,null,null,0,null,null,null,0,0,"","",""]
[null,null,"",null,null,null,0,null,null,null,0,null,null,null,0,null,null,null,0,0,"","",""]
[null,null,"",null,null,null,0,null,null,null,0,null,null,null,0,null,null,null,0,0,"","",""]
[null,null,"",null,null,null,0,null,null,null,0,null,null,null,0,null,null,null,0,0,"","",""]
[null,null,"",null,null,null,0,null,null,null,0,null,null,null,0,null,null,null,0,0,"","",""]
[null,null,"",null,null,null,0,null,null,null,0,null,null,null,0,null,null,null,0,0,"","",""]
[null,null,"",null,null,null,0,null,null,null,0,null,null,null,0,null,null,null,0,0,"","",""]
[null,null,"",null,null,null,0,null,null,null,0,null,null,null,0,null,null,null,0,0,"","",""]
[null,null,"",null,null,null,0,null,null,null,0,null,null,null,0,null,null,null,0,0,"","",""]
[null,null,"",null,null,null,0,null,null,null,0,null,null,null,0,null,null,null,0,0,"","",""]
[null,null,"",null,null,null,0,null,null,null,0,null,null,null,0,null,null,null,0,0,"","",""]
[null,null,"",null,null,null,0,null,null,null,0,null,null,null,0,null,null,null,0,0,"","",""]
[null,null,"",null,null,null,0,null,null,null,0,null,null,null,0,null,null,null,0,0,"","",""]
[null,null,"",null,null,null,0,null,null,null,0,null,null,null,0,null,null,null,0,0,"","",""]
[null,null,"",null,null,null,0,null,null,null,0,null,null,null,0,null,null,null,0,0,"","",""]
[null,null,"",null,null,null,0,null,null,null,0,null,null,null,0,null,null,null,0,0,"","",""]
[null,null,"",null,null,null,0,null,null,null,0,null,null,null,0,null,null,null,0,0,"","",""]
[null,null,"",null,null,null,0,null,null,null,0,null,null,null,0,null,null,null,0,0,"","",""]
[null,null,"",null,null,null,0,null,null,null,0,null,null,null,0,null,null,null,0,0,"","",""]
[null,null,"",null,null,null,0,null,null,null,0,null,null,null,0,null,null,null,0,0,"","",""]
[null,null,"",null,null,null,0,null,null,null,0,null,null,null,0,null,null,null,0,0,"","",""]
[null,null,"",null,null,null,0,null,null,null,0,null,null,null,0,null,null,null,0,0,"","",""]
[null,null,"",null,null,null,0,null,null,null,0,null,null,null,0,null,null,null,0,0,"","",""]
[null,null,"",null,null,null,0,null,null,null,0,null,null,null,0,null,null,null,0,0,"","",""]
[null,null,"",null,null,null,0,null,null,null,0,null,null,null,0,null,null,null,0,0,"","",""]
[null,null,"",null,null,null,0,null,null,null,0,null,null,null,0,null,null,null,0,0,"","",""]
[null,null,"",null,null,null,0,null,null,null,0,null,null,null,0,null,null,null,0,0,"","",""]
[null,null,"",null,null,null,0,null,null,null,0,null,null,null,0,null,null,null,0,0,"","",""]
[null,null,"",null,null,null,0,null,null,null,0,null,null,null,0,null,null,null,0,0,"","",""]
[null,null,"",null,null,null,0,null,null,null,0,null,null,null,0,null,null,null,0,0,"","",""]
[null,null,"",null,null,null,0,null,null,null,0,null,null,null,0,null,null,null,0,0,"","",""]
[null,null,"",null,null,null,0,null,null,null,0,null,null,null,0,null,null,null,0,0,"","",""]
[null,null,"",null,null,null,0,null,null,null,0,null,null,null,0,null,null,null,0,0,"","",""]
[null,null,"",null,null,null,0,null,null,null,0,null,null,null,0,null,null,null,0,0,"","",""]
[null,null,"",null,null,null,0,null,null,null,0,null,null,null,0,null,null,null,0,0,"","",""]
[null,null,"",null,null,null,0,null,null,null,0,null,null,null,0,null,null,null,0,0,"","",""]
[null,null,"",null,null,null,0,null,null,null,0,null,null,null,0,null,null,null,0,0,"","",""]
[null,null,"",null,null,null,0,null,null,null,0,null,null,null,0,null,null,null,0,0,"","",""]
[null,null,"",null,null,null,0,null,null,null,0,null,null,null,0,null,null,null,0,0,"","",""]
[null,null,"",null,null,null,0,null,null,null,0,null,null,null,0,null,null,null,0,0,"","",""]
[null,null,"",null,null,null,0,null,null,null,0,null,null,null,0,null,null,null,0,0,"","",""]
[null,null,"",null,null,null,0,null,null,null,0,null,null,null,0,null,null,null,0,0,"","",""]
[null,null,"",null,null,null,0,null,null,null,0,null,null,null,0,null,null,null,0,0,"","",""]
[null,null,"",null,null,null,0,null,null,null,0,null,null,null,0,null,null,null,0,0,"","",""]
[null,null,"",null,null,null,0,null,null,null,0,null,null,null,0,null,null,null,0,0,"","",""]
[null,null,"",null,null,null,0,null,null,null,0,null,null,null,0,null,null,null,0,0,"","",""]
[null,null,"",null,null,null,0,null,null,null,0,null,null,null,0,null,null,null,0,0,"","",""]
[null,null,"",null,null,null,0,null,null,null,0,null,null,null,0,null,null,null,0,0,"","",""]
[null,null,"",null,null,null,0,null,null,null,0,null,null,null,0,null,null,null,0,0,"","",""]
[null,null,"",null,null,null,0,null,null,null,0,null,null,null,0,null,null,null,0,0,"","",""]
[null,null,"",null,null,null,0,null,null,null,0,null,null,null,0,null,null,null,0,0,"","",""]
[null,null,"",null,null,null,0,null,null,null,0,null,null,null,0,null,null,null,0,0,"","",""]
[null,null,"",null,null,null,0,null,null,null,0,null,null,null,0,null,null,null,0,0,"","",""]
[null,null,"",null,null,null,0,null,null,null,0,null,null,null,0,null,null,null,0,0,"","",""]
[null,null,"",null,null,null,0,null,null,null,0,null,null,null,0,null,null,null,0,0,"","",""]
[null,null,"",null,null,null,0,null,null,null,0,null,null,null,0,null,null,null,0,0,"","",""]
[null,null,{"$f":"IF($B4359<>\"\",VLOOKUP($B4359,Tbl_Reference,2,0),\"\")","v":""},null,null,null,0,null,null,null,0,null,null,null,0,null,null,null,0,0,{"$f":"IF($B4359<>\"\",VLOOKUP($B4359,Tbl_Reference,3,0),\"\")","v":""},{"$f":"IF($B4359<>\"\",VLOOKUP($B4359,Tbl_Reference,4,0),\"\")","v":""},""]
[null,null,"",null,null,null,0,null,null,null,0,null,null,null,0,null,null,null,0,0,"","",""]
[null,null,"",null,null,null,0,null,null,null,0,null,null,null,0,null,null,null,0,0,"","",""]
[null,null,"",null,null,null,0,null,null,null,0,null,null,null,0,null,null,null,0,0,"","",""]
[null,null,"",null,null,null,0,null,null,null,0,null,null,null,0,null,null,null,0,0,"","",""]
[null,null,"",null,null,null,0,null,null,null,0,null,null,null,0,null,null,null,0,0,"","",""]
[null,null,"",null,null,null,0,null,null,null,0,null,null,null,0,null,null,null,0,0,"","",""]
[null,null,"",null,null,null,0,null,null,null,0,null,null,null,0,null,null,null,0,0,"","",""]
[null,null,"",null,null,null,0,null,null,null,0,null,null,null,0,null,null,null,0,0,"","",""]
[null,null,"",null,null,null,0,null,null,null,0,null,null,null,0,null,null,null,0,0,"","",""]
[null,null,"",null,null,null,0,null,null,null,0,null,null,null,0,null,null,null,0,0,"","",""]
[null,null,"",null,null,null,0,null,null,null,0,null,null,null,0,null,null,null,0,0,"","",""]
[null,null,"",null,null,null,0,null,null,null,0,null,null,null,0,null,null,null,0,0,"","",""]
[null,null,"",null,null,null,0,null,null,null,0,null,null,null,0,null,null,null,0,0,"","",""]
[null,null,"",null,null,null,0,null,null,null,0,null,null,null,0,null,null,null,0,0,"","",""]
[null,null,"",null,null,null,0,null,null,null,0,null,null,null,0,null,null,null,0,0,"","",""]
[null,null,"",null,null,null,0,null,null,null,0,null,null,null,0,null,null,null,0,0,"","",""]
[null,null,"",null,null,null,0,null,null,null,0,null,null,null,0,null,null,null,0,0,"","",""]
[null,null,"",null,null,null,0,null,null,null,0,null,null,null,0,null,null,null,0,0,"","",""]
[null,null,"",null,null,null,0,null,null,null,0,null,null,null,0,null,null,null,0,0,"","",""]
[null,null,"",null,null,null,0,null,null,null,0,null,null,null,0,null,null,null,0,0,"","",""]
[null,null,"",null,null,null,0,null,null,null,0,null,null,null,0,null,null,null,0,0,"","",""]
[null,null,{"$f":"IF($B4551<>\"\",VLOOKUP($B4551,Tbl_Reference,2,0),\"\")","v":""},null,null,null,0,null,null,null,0,null,null,null,0,null,null,null,0,0,{"$f":"IF($B4551<>\"\",VLOOKUP($B4551,Tbl_Reference,3,0),\"\")","v":""},{"$f":"IF($B4551<>\"\",VLOOKUP($B4551,Tbl_Reference,4,0),\"\")","v":""},""]
[null,null,"",null,null,null,0,null,null,null,0,null,null,null,0,null,null,null,0,0,"","",""]
[null,null,"",null,null,null,0,null,null,null,0,null,null,null,0,null,null,null,0,0,"","",""]
[null,null,"",null,null,null,0,null,null,null,0,null,null,null,0,null,null,null,0,0,"","",""]
[null,null,"",null,null,null,0,null,null,null,0,null,null,null,0,null,null,null,0,0,"","",""]
[null,null,"",null,null,null,0,null,null,null,0,null,null,null,0,null,null,null,0,0,"","",""]
[null,null,"",null,null,null,0,null,null,null,0,null,null,null,0,null,null,null,0,0,"","",""]
[null,null,"",null,null,null,0,null,null,null,0,null,null,null,0,null,null,null,0,0,"","",""]
[null,null,"",null,null,null,0,null,null,null,0,null,null,null,0,null,null,null,0,0,"","",""]
[null,null,"",null,null,null,0,null,null,null,0,null,null,null,0,null,null,null,0,0,"","",""]
[null,null,"",null,null,null,0,null,null,null,0,null,null,null,0,null,null,null,0,0,"","",""]
[null,null,"",null,null,null,0,null,null,null,0,null,null,null,0,null,null,null,0,0,"","",""]
[null,null,"",null,null,null,0,null,null,null,0,null,null,null,0,null,null,null,0,0,"","",""]
[null,null,"",null,null,null,0,null,null,null,0,null,null,null,0,null,null,null,0,0,"","",""]
[null,null,"",null,null,null,0,null,null,null,0,null,null,null,0,null,null,null,0,0,"","",""]
[null,null,{"$f":"IF($B4679<>\"\",VLOOKUP($B4679,Tbl_Reference,2,0),\"\")","v":""},null,null,null,0,null,null,null,0,null,null,null,0,null,null,null,0,0,{"$f":"IF($B4679<>\"\",VLOOKUP($B4679,Tbl_Reference,3,0),\"\")","v":""},{"$f":"IF($B4679<>\"\",VLOOKUP($B4679,Tbl_Reference,4,0),\"\")","v":""},""]
[null,null,"",null,null,null,0,null,null,null,0,null,null,null,0,null,null,null,0,0,"","",""]
[null,null,"",null,null,null,0,null,null,null,0,null,null,null,0,null,null,null,0,0,"","",""]
[null,null,"",null,null,null,0,null,null,null,0,null,null,null,0,null,null,null,0,0,"","",""]
[null,null,"",null,null,null,0,null,null,null,0,null,null,null,0,null,null,null,0,0,"","",""]
[null,null,"",null,null,null,0,null,null,null,0,null,null,null,0,null,null,null,0,0,"","",""]
[null,null,"",null,null,null,0,null,null,null,0,null,null,null,0,null,null,null,0,0,"","",""]
[null,null,"",null,null,null,0,null,null,null,0,null,null,null,0,null,null,null,0,0,"","",""]
[null,null,"",null,null,null,0,null,null,null,0,null,null,null,0,null,null,null,0,0,"","",""]
[null,null,"",null,null,null,0,null,null,null,0,null,null,null,0,null,null,null,0,0,"","",""]
[null,null,"",null,null,null,0,null,null,null,0,null,null,null,0,null,null,null,0,0,"","",""]
[null,null,"",null,null,null,0,null,null,null,0,null,null,null,0,null,null,null,0,0,"","",""]
[null,null,"",null,null,null,0,null,null,null,0,null,null,null,0,null,null,null,0,0,"","",""]
[null,null,"",null,null,null,0,null,null,null,0,null,null,null,0,null,null,null,0,0,"","",""]
[null,null,"",null,null,null,0,null,null,null,0,null,null,null,0,null,null,null,0,0,"","",""]
[null,null,"",null,null,null,0,null,null,null,0,null,null,null,0,null,null,null,0,0,"","",""]
[null,null,"",null,null,null,0,null,null,null,0,null,null,null,0,null,null,null,0,0,"","",""]
[null,null,"",null,null,null,0,null,null,null,0,null,null,null,0,null,null,null,0,0,"","",""]
[null,null,"",null,null,null,0,null,null,null,0,null,null,null,0,null,null,null,0,0,"","",""]
[null,null,"",null,null,null,0,null,null,null,0,null,null,null,0,null,null,null,0,0,"","",""]
[null,null,"",null,null,null,0,null,null,null,0,null,null,null,0,null,null,null,0,0,"","",""]
[null,null,"",null,null,null,0,null,null,null,0,null,null,null,0,null,null,null,0,0,"","",""]
[null,null,{"$f":"IF($B4871<>\"\",VLOOKUP($B4871,Tbl_Reference,2,0),\"\")","v":""},null,null,null,0,null,null,null,0,null,null,null,0,null,null,null,0,0,{"$f":"IF($B4871<>\"\",VLOOKUP($B4871,Tbl_Reference,3,0),\"\")","v":""},{"$f":"IF($B4871<>\"\",VLOOKUP($B4871,Tbl_Reference,4,0),\"\")","v":""},""]
[null,null,"",null,null,null,0,null,null,null,0,null,null,null,0,null,null,null,0,0,"","",""]
[null,null,"",null,null,null,0,null,null,null,0,null,null,null,0,null,null,null,0,0,"","",""]
[null,null,"",null,null,null,0,null,null,null,0,null,null,null,0,null,null,null,0,0,"","",""]
[null,null,"",null,null,null,0,null,null,null,0,null,null,null,0,null,null,null,0,0,"","",""]
[null,null,"",null,null,null,0,null,null,null,0,null,null,null,0,null,null,null,0,0,"","",""]
[null,null,"",null,null,null,0,null,null,null,0,null,null,null,0,null,null,null,0,0,"","",""]
[null,null,"",null,null,null,0,null,null,null,0,null,null,null,0,null,null,null,0,0,"","",""]
[null,null,"",null,null,null,0,null,null,null,0,null,null,null,0,null,null,null,0,0,"","",""]
[null,null,"",null,null,null,0,null,null,null,0,null,null,null,0,null,null,null,0,0,"","",""]
[null,null,"",null,null,null,0,null,null,null,0,null,null,null,0,null,null,null,0,0,"","",""]
[null,null,"",null,null,null,0,null,null,null,0,null,null,null,0,null,null,null,0,0,"","",""]
[null,null,"",null,null,null,0,null,null,null,0,null,null,null,0,null,null,null,0,0,"","",""]
[null,null,"",null,null,null,0,null,null,null,0,null,null,null,0,null,null,null,0,0,"","",""]
[null,null,"",null,null,null,0,null,null,null,0,null,null,null,0,null,null,null,0,0,"","",""]
[null,null,"",null,null,null,0,null,null,null,0,null,null,null,0,null,null,null,0,0,"","",""]
[null,null,"",null,null,null,0,null,null,null,0,null,null,null,0,null,null,null,0,0,"","",""]
[null,null,"",null,null,null,0,null,null,null,0,null,null,null,0,null,null,null,0,0,"","",""]
[null,null,"",null,null,null,0,null,null,null,0,null,null,null,0,null,null,null,0,0,"","",""]
[null,null,"",null,null,null,0,null,null,null,0,null,null,null,0,null,null,null,0,0,"","",""]
[null,null,"",null,null,null,0,null,null,null,0,null,null,null,0,null,null,null,0,0,"","",""]
[null,null,"",null,null,null,0,null,null,null,0,null,null,null,0,null,null,null,0,0,"","",""]
[null,null,"",null,null,null,0,null,null,null,0,null,null,null,0,null,null,null,0,0,"","",""]
[null,null,"",null,null,null,0,null,null,null,0,null,null,null,0,null,null,null,0,0,"","",""]
[null,null,"",null,null,null,0,null,null,null,0,null,null,null,0,null,null,null,0,0,"","",""]
[null,null,"",null,null,null,0,null,null,null,0,null,null,null,0,null,null,null,0,0,"","",""]
[null,null,"",null,null,null,0,null,null,null,0,null,null,null,0,null,null,null,0,0,"","",""]
[null,null,"",null,null,null,0,null,null,null,0,null,null,null,0,null,null,null,0,0,"","",""]
[null,null,"",null,null,null,0,null,null,null,0,null,null,null,0,null,null,null,0,0,"","",""]
[null,null,"",null,null,null,0,null,null,null,0,null,null,null,0,null,null,null,0,0,"","",""]
[null,null,"",null,null,null,0,null,null,null,0,null,null,null,0,null,null,null,0,0,"","",""]
[null,null,"",null,null,null,0,null,null,null,0,null,null,null,0,null,null,null,0,0,"","",""]
[null,null,"",null,null,null,0,null,null,null,0,null,null,null,0,null,null,null,0,0,"","",""]
[null,null,"",null,null,null,0,null,null,null,0,null,null,null,0,null,null,null,0,0,"","",""]
[null,null,"",null,null,null,0,null,null,null,0,null,null,null,0,null,null,null,0,0,"","",""]
[null,null,"",null,null,null,0,null,null,null,0,null,null,null,0,null,null,null,0,0,"","",""]
[null,null,"",null,null,null,0,null,null,null,0,null,null,null,0,null,null,null,0,0,"","",""]
[null,null,"",null,null,null,0,null,null,null,0,null,null,null,0,null,null,null,0,0,"","",""]
[null,null,"",null,null,null,0,null,null,null,0,null,null,null,0,null,null,null,0,0,"","",""]
[null,null,"",null,null,null,0,null,null,null,0,null,null,null,0,null,null,null,0,0,"","",""]
[null,null,"",null,null,null,0,null,null,null,0,null,null,null,0,null,null,null,0,0,"","",""]
[null,null,"",null,null,null,0,null,null,null,0,null,null,null,0,null,null,null,0,0,"","",""]
[null,null,"",null,null,null,0,null,null,null,0,null,null,null,0,null,null,null,0,0,"","",""]
[null,null,"",null,null,null,0,null,null,null,0,null,null,null,0,null,null,null,0,0,"","",""]
[null,null,"",null,null,null,0,null,null,null,0,null,null,null,0,null,null,null,0,0,"","",""]
[null,null,"",null,null,null,0,null,null,null,0,null,null,null,0,null,null,null,0,0,"","",""]
[null,null,"",null,null,null,0,null,null,null,0,null,null,null,0,null,null,null,0,0,"","",""]
[null,null,"",null,null,null,0,null,null,null,0,null,null,null,0,null,null,null,0,0,"","",""]
[null,null,"",null,null,null,0,null,null,null,0,null,null,null,0,null,null,null,0,0,"","",""]
[null,null,"",null,null,null,0,null,null,null,0,null,null,null,0,null,null,null,0,0,"","",""]
[null,null,"",null,null,null,0,null,null,null,0,null,null,null,0,null,null,null,0,0,"","",""]
[null,null,"",null,null,null,0,null,null,null,0,null,null,null,0,null,null,null,0,0,"","",""]
[null,null,"",null,null,null,0,null,null,null,0,null,null,null,0,null,null,null,0,0,"","",""]
[null,null,"",null,null,null,0,null,null,null,0,null,null,null,0,null,null,null,0,0,"","",""]
[null,null,"",null,null,null,0,null,null,null,0,null,null,null,0,null,null,null,0,0,"","",""]
[null,null,"",null,null,null,0,null,null,null,0,null,null,null,0,null,null,null,0,0,"","",""]
[null,null,"",null,null,null,0,null,null,null,0,null,null,null,0,null,null,null,0,0,"","",""]
[null,null,"",null,null,null,0,null,null,null,0,null,null,null,0,null,null,null,0,0,"","",""]
[null,null,{"$f":"IF($B5383<>\"\",VLOOKUP($B5383,Tbl_Reference,2,0),\"\")","v":""},null,null,null,0,null,null,null,0,null,null,null,0,null,null,null,0,0,{"$f":"IF($B5383<>\"\",VLOOKUP($B5383,Tbl_Reference,3,0),\"\")","v":""},{"$f":"IF($B5383<>\"\",VLOOKUP($B5383,Tbl_Reference,4,0),\"\")","v":""},""]
[null,null,"",null,null,null,0,null,null,null,0,null,null,null,0,null,null,null,0,0,"","",""]
[null,null,"",null,null,null,0,null,null,null,0,null,null,null,0,null,null,null,0,0,"","",""]
[null,null,"",null,null,null,0,null,null,null,0,null,null,null,0,null,null,null,0,0,"","",""]
[null,null,"",null,null,null,0,null,null,null,0,null,null,null,0,null,null,null,0,0,"","",""]
[null,null,"",null,null,null,0,null,null,null,0,null,null,null,0,null,null,null,0,0,"","",""]
[null,null,"",null,null,null,0,null,null,null,0,null,null,null,0,null,null,null,0,0,"","",""]
[null,null,{"$f":"IF($B5447<>\"\",VLOOKUP($B5447,Tbl_Reference,2,0),\"\")","v":""},null,null,null,0,null,null,null,0,null,null,null,0,null,null,null,0,0,{"$f":"IF($B5447<>\"\",VLOOKUP($B5447,Tbl_Reference,3,0),\"\")","v":""},{"$f":"IF($B5447<>\"\",VLOOKUP($B5447,Tbl_Reference,4,0),\"\")","v":""},""]
[null,null,"",null,null,null,0,null,null,null,0,null,null,null,0,null,null,null,0,0,"","",""]
[null,null,"",null,null,null,0,null,null,null,0,null,null,null,0,null,null,null,0,0,"","",""]
[null,null,"",null,null,null,0,null,null,null,0,null,null,null,0,null,null,null,0,0,"","",""]
[null,null,"",null,null,null,0,null,null,null,0,null,null,null,0,null,null,null,0,0,"","",""]
[null,null,"",null,null,null,0,null,null,null,0,null,null,null,0,null,null,null,0,0,"","",""]
[null,null,"",null,null,null,0,null,null,null,0,null,null,null,0,null,null,null,0,0,"","",""]
[null,null,"",null,null,null,0,null,null,null,0,null,null,null,0,null,null,null,0,0,"","",""]
[null,null,"",null,null,null,0,null,null,null,0,null,null,null,0,null,null,null,0,0,"","",""]
[null,null,"",null,null,null,0,null,null,null,0,null,null,null,0,null,null,null,0,0,"","",""]
[null,null,"",null,null,null,0,null,null,null,0,null,null,null,0,null,null,null,0,0,"","",""]
[null,null,"",null,null,null,0,null,null,null,0,null,null,null,0,null,null,null,0,0,"","",""]
[null,null,"",null,null,null,0,null,null,null,0,null,null,null,0,null,null,null,0,0,"","",""]
[null,null,"",null,null,null,0,null,null,null,0,null,null,null,0,null,null,null,0,0,"","",""]
[null,null,"",null,null,null,0,null,null,null,0,null,null,null,0,null,null,null,0,0,"","",""]
[null,null,{"$f":"IF($B5575<>\"\",VLOOKUP($B5575,Tbl_Reference,2,0),\"\")","v":""},null,null,null,0,null,null,null,0,null,null,null,0,null,null,null,0,0,{"$f":"IF($B5575<>\"\",VLOOKUP($B5575,Tbl_Reference,3,0),\"\")","v":""},{"$f":"IF($B5575<>\"\",VLOOKUP($B5575,Tbl_Reference,4,0),\"\")","v":""},""]
[null,null,"",null,null,null,0,null,null,null,0,null,null,null,0,null,null,null,0,0,"","",""]
[null,null,"",null,null,null,0,null,null,null,0,null,null,null,0,null,null,null,0,0,"","",""]
[null,null,"",null,null,null,0,null,null,null,0,null,null,null,0,null,null,null,0,0,"","",""]
[null,null,"",null,null,null,0,null,null,null,0,null,null,null,0,null,null,null,0,0,"","",""]
[null,null,"",null,null,null,0,null,null,null,0,null,null,null,0,null,null,null,0,0,"","",""]
[null,null,"",null,null,null,0,null,null,null,0,null,null,null,0,null,null,null,0,0,"","",""]
[null,null,"",null,null,null,0,null,null,null,0,null,null,null,0,null,null,null,0,0,"","",""]
[null,null,"",null,null,null,0,null,null,null,0,null,null,null,0,null,null,null,0,0,"","",""]
[null,null,"",null,null,null,0,null,null,null,0,null,null,null,0,null,null,null,0,0,"","",""]
[null,null,"",null,null,null,0,null,null,null,0,null,null,null,0,null,null,null,0,0,"","",""]
[null,null,"",null,null,null,0,null,null,null,0,null,null,null,0,null,null,null,0,0,"","",""]
[null,null,"",null,null,null,0,null,null,null,0,null,null,null,0,null,null,null,0,0,"","",""]
[null,null,"",null,null,null,0,null,null,null,0,null,null,null,0,null,null,null,0,0,"","",""]
[null,null,"",null,null,null,0,null,null,null,0,null,null,null,0,null,null,null,0,0,"","",""]
[null,null,{"$f":"IF($B5703<>\"\",VLOOKUP($B5703,Tbl_Reference,2,0),\"\")","v":""},null,null,null,0,null,null,null,0,null,null,null,0,null,null,null,0,0,{"$f":"IF($B5703<>\"\",VLOOKUP($B5703,Tbl_Reference,3,0),\"\")","v":""},{"$f":"IF($B5703<>\"\",VLOOKUP($B5703,Tbl_Reference,4,0),\"\")","v":""},""]
[null,null,"",null,null,null,0,null,null,null,0,null,null,null,0,null,null,null,0,0,"","",""]
[null,null,"",null,null,null,0,null,null,null,0,null,null,null,0,null,null,null,0,0,"","",""]
[null,null,"",null,null,null,0,null,null,null,0,null,null,null,0,null,null,null,0,0,"","",""]
[null,null,"",null,null,null,0,null,null,null,0,null,null,null,0,null,null,null,0,0,"","",""]
[null,null,"",null,null,null,0,null,null,null,0,null,null,null,0,null,null,null,0,0,"","",""]
[null,null,"",null,null,null,0,null,null,null,0,null,null,null,0,null,null,null,0,0,"","",""]
[null,null,"",null,null,null,0,null,null,null,0,null,null,null,0,null,null,null,0,0,"","",""]
[null,null,"",null,null,null,0,null,null,null,0,null,null,null,0,null,null,null,0,0,"","",""]
[null,null,"",null,null,null,0,null,null,null,0,null,null,null,0,null,null,null,0,0,"","",""]
[null,null,"",null,null,null,0,null,null,null,0,null,null,null,0,null,null,null,0,0,"","",""]
[null,null,"",null,null,null,0,null,null,null,0,null,null,null,0,null,null,null,0,0,"","",""]
[null,null,"",null,null,null,0,null,null,null,0,null,null,null,0,null,null,null,0,0,"","",""]
[null,null,"",null,null,null,0,null,null,null,0,null,null,null,0,null,null,null,0,0,"","",""]
[null,null,"",null,null,null,0,null,null,null,0,null,null,null,0,null,null,null,0,0,"","",""]
[null,null,"",null,null,null,0,null,null,null,0,null,null,null,0,null,null,null,0,0,"","",""]
[null,null,"",null,null,null,0,null,null,null,0,null,null,null,0,null,null,null,0,0,"","",""]
[null,null,"",null,null,null,0,null,null,null,0,null,null,null,0,null,null,null,0,0,"","",""]
[null,null,"",null,null,null,0,null,null,null,0,null,null,null,0,null,null,null,0,0,"","",""]
[null,null,"",null,null,null,0,null,null,null,0,null,null,null,0,null,null,null,0,0,"","",""]
[null,null,"",null,null,null,0,null,null,null,0,null,null,null,0,null,null,null,0,0,"","",""]
[null,null,"",null,null,null,0,null,null,null,0,null,null,null,0,null,null,null,0,0,"","",""]
[null,null,{"$f":"IF($B5895<>\"\",VLOOKUP($B5895,Tbl_Reference,2,0),\"\")","v":""},null,null,null,0,null,null,null,0,null,null,null,0,null,null,null,0,0,{"$f":"IF($B5895<>\"\",VLOOKUP($B5895,Tbl_Reference,3,0),\"\")","v":""},{"$f":"IF($B5895<>\"\",VLOOKUP($B5895,Tbl_Reference,4,0),\"\")","v":""},""]
[null,null,"",null,null,null,0,null,null,null,0,null,null,null,0,null,null,null,0,0,"","",""]
[null,null,"",null,null,null,0,null,null,null,0,null,null,null,0,null,null,null,0,0,"","",""]
[null,null,"",null,null,null,0,null,null,null,0,null,null,null,0,null,null,null,0,0,"","",""]
[null,null,"",null,null,null,0,null,null,null,0,null,null,null,0,null,null,null,0,0,"","",""]
[null,null,"",null,null,null,0,null,null,null,0,null,null,null,0,null,null,null,0,0,"","",""]
[null,null,"",null,null,null,0,null,null,null,0,null,null,null,0,null,null,null,0,0,"","",""]
[null,null,"",null,null,null,0,null,null,null,0,null,null,null,0,null,null,null,0,0,"","",""]
[null,null,"",null,null,null,0,null,null,null,0,null,null,null,0,null,null,null,0,0,"","",""]
[null,null,"",null,null,null,0,null,null,null,0,null,null,null,0,null,null,null,0,0,"","",""]
[null,null,"",null,null,null,0,null,null,null,0,null,null,null,0,null,null,null,0,0,"","",""]
[null,null,"",null,null,null,0,null,null,null,0,null,null,null,0,null,null,null,0,0,"","",""]
[null,null,"",null,null,null,0,null,null,null,0,null,null,null,0,null,null,null,0,0,"","",""]
[null,null,"",null,null,null,0,null,null,null,0,null,null,null,0,null,null,null,0,0,"","",""]
[null,null,{"$f":"IF($B6023<>\"\",VLOOKUP($B6023,Tbl_Reference,2,0),\"\")","v":""},null,null,null,0,null,null,null,0,null,null,null,0,null,null,null,0,0,{"$f":"IF($B6023<>\"\",VLOOKUP($B6023,Tbl_Reference,3,0),\"\")","v":""},{"$f":"IF($B6023<>\"\",VLOOKUP($B6023,Tbl_Reference,4,0),\"\")","v":""},""]
[null,null,"",null,null,null,0,null,null,null,0,null,null,null,0,null,null,null,0,0,"","",""]
[null,null,"",null,null,null,0,null,null,null,0,null,null,null,0,null,null,null,0,0,"","",""]
[null,null,"",null,null,null,0,null,null,null,0,null,null,null,0,null,null,null,0,0,"","",""]
[null,null,"",null,null,null,0,null,null,null,0,null,null,null,0,null,null,null,0,0,"","",""]
[null,null,"",null,null,null,0,null,null,null,0,null,null,null,0,null,null,null,0,0,"","",""]
[null,null,"",null,null,null,0,null,null,null,0,null,null,null,0,null,null,null,0,0,"","",""]
[null,null,"",null,null,null,0,null,null,null,0,null,null,null,0,null,null,null,0,0,"","",""]
[null,null,"",null,null,null,0,null,null,null,0,null,null,null,0,null,null,null,0,0,"","",""]
[null,null,"",null,null,null,0,null,null,null,0,null,null,null,0,null,null,null,0,0,"","",""]
[null,null,"",null,null,null,0,null,null,null,0,null,null,null,0,null,null,null,0,0,"","",""]
[null,null,"",null,null,null,0,null,null,null,0,null,null,null,0,null,null,null,0,0,"","",""]
[null,null,"",null,null,null,0,null,null,null,0,null,null,null,0,null,null,null,0,0,"","",""]
[null,null,"",null,null,null,0,null,null,null,0,null,null,null,0,null,null,null,0,0,"","",""]
[null,null,"",null,null,null,0,null,null,null,0,null,null,null,0,null,null,null,0,0,"","",""]
[null,null,"",null,null,null,0,null,null,null,0,null,null,null,0,null,null,null,0,0,"","",""]
[null,null,"",null,null,null,0,null,null,null,0,null,null,null,0,null,null,null,0,0,"","",""]
[null,null,"",null,null,null,0,null,null,null,0,null,null,null,0,null,null,null,0,0,"","",""]
[null,null,"",null,null,null,0,null,null,null,0,null,null,null,0,null,null,null,0,0,"","",""]
[null,null,"",null,null,null,0,null,null,null,0,null,null,null,0,null,null,null,0,0,"","",""]
[null,null,"",null,null,null,0,null,null,null,0,null,null,null,0,null,null,null,0,0,"","",""]
[null,null,"",null,null,null,0,null,null,null,0,null,null,null,0,null,null,null,0,0,"","",""]
[null,null,"",null,null,null,0,null,null,null,0,null,null,null,0,null,null,null,0,0,"","",""]
[null,null,"",null,null,null,0,null,null,null,0,null,null,null,0,null,null,null,0,0,"","",""]
[null,null,"",null,null,null,0,null,null,null,0,null,null,null,0,null,null,null,0,0,"","",""]
[null,null,"",null,null,null,0,null,null,null,0,null,null,null,0,null,null,null,0,0,"","",""]
[null,null,"",null,null,null,0,null,null,null,0,null,null,null,0,null,null,null,0,0,"","",""]
[null,null,"",null,null,null,0,null,null,null,0,null,null,null,0,null,null,null,0,0,"","",""]
[null,null,"",null,null,null,0,null,null,null,0,null,null,null,0,null,null,null,0,0,"","",""]
[null,null,"",null,null,null,0,null,null,null,0,null,null,null,0,null,null,null,0,0,"","",""]
[null,null,"",null,null,null,0,null,null,null,0,null,null,null,0,null,null,null,0,0,"","",""]
[null,null,"",null,null,null,0,null,null,null,0,null,null,null,0,null,null,null,0,0,"","",""]
[null,null,"",null,null,null,0,null,null,null,0,null,null,null,0,null,null,null,0,0,"","",""]
[null,null,"",null,null,null,0,null,null,null,0,null,null,null,0,null,null,null,0,0,"","",""]
[null,null,"",null,null,null,0,null,null,null,0,null,null,null,0,null,null,null,0,0,"","",""]
[null,null,"",null,null,null,0,null,null,null,0,null,null,null,0,null,null,null,0,0,"","",""]
[null,null,"",null,null,null,0,null,null,null,0,null,null,null,0,null,null,null,0,0,"","",""]
[null,null,"",null,null,null,0,null,null,null,0,null,null,null,0,null,null,null,0,0,"","",""]
[null,null,"",null,null,null,0,null,null,null,0,null,null,null,0,null,null,null,0,0,"","",""]
[null,null,"",null,null,null,0,null,null,null,0,null,null,null,0,null,null,null,0,0,"","",""]
[null,null,"",null,null,null,0,null,null,null,0,null,null,null,0,null,null,null,0,0,"","",""]
[null,null,"",null,null,null,0,null,null,null,0,null,null,null,0,null,null,null,0,0,"","",""]
[null,null,"",null,null,null,0,null,null,null,0,null,null,null,0,null,null,null,0,0,"","",""]
[null,null,"",null,null,null,0,null,null,null,0,null,null,null,0,null,null,null,0,0,"","",""]
[null,null,"",null,null,null,0,null,null,null,0,null,null,null,0,null,null,null,0,0,"","",""]
[null,null,"",null,null,null,0,null,null,null,0,null,null,null,0,null,null,null,0,0,"","",""]
[null,null,"",null,null,null,0,null,null,null,0,null,null,null,0,null,null,null,0,0,"","",""]
[null,null,"",null,null,null,0,null,null,null,0,null,null,null,0,null,null,null,0,0,"","",""]
[null,null,"",null,null,null,0,null,null,null,0,null,null,null,0,null,null,null,0,0,"","",""]
[null,null,"",null,null,null,0,null,null,null,0,null,null,null,0,null,null,null,0,0,"","",""]
[null,null,"",null,null,null,0,null,null,null,0,null,null,null,0,null,null,null,0,0,"","",""]
[null,null,{"$f":"IF($B6471<>\"\",VLOOKUP($B6471,Tbl_Reference,2,0),\"\")","v":""},null,null,null,0,null,null,null,0,null,null,null,0,null,null,null,0,0,{"$f":"IF($B6471<>\"\",VLOOKUP($B6471,Tbl_Reference,3,0),\"\")","v":""},{"$f":"IF($B6471<>\"\",VLOOKUP($B6471,Tbl_Reference,4,0),\"\")","v":""},""]
[null,null,"",null,null,null,0,null,null,null,0,null,null,null,0,null,null,null,0,0,"","",""]
[null,null,"",null,null,null,0,null,null,null,0,null,null,null,0,null,null,null,0,0,"","",""]
[null,null,"",null,null,null,0,null,null,null,0,null,null,null,0,null,null,null,0,0,"","",""]
[null,null,"",null,null,null,0,null,null,null,0,null,null,null,0,null,null,null,0,0,"","",""]
[null,null,"",null,null,null,0,null,null,null,0,null,null,null,0,null,null,null,0,0,"","",""]
[null,null,"",null,null,null,0,null,null,null,0,null,null,null,0,null,null,null,0,0,"","",""]
[null,null,"",null,null,null,0,null,null,null,0,null,null,null,0,null,null,null,0,0,"","",""]
[null,null,"",null,null,null,0,null,null,null,0,null,null,null,0,null,null,null,0,0,"","",""]
[null,null,"",null,null,null,0,null,null,null,0,null,null,null,0,null,null,null,0,0,"","",""]
[null,null,"",null,null,null,0,null,null,null,0,null,null,null,0,null,null,null,0,0,"","",""]
[null,null,"",null,null,null,0,null,null,null,0,null,null,null,0,null,null,null,0,0,"","",""]
[null,null,"",null,null,null,0,null,null,null,0,null,null,null,0,null,null,null,0,0,"","",""]
[null,null,"",null,null,null,0,null,null,null,0,null,null,null,0,null,null,null,0,0,"","",""]
[null,null,"",null,null,null,0,null,null,null,0,null,null,null,0,null,null,null,0,0,"","",""]
[null,null,{"$f":"IF($B6599<>\"\",VLOOKUP($B6599,Tbl_Reference,2,0),\"\")","v":""},null,null,null,0,null,null,null,0,null,null,null,0,null,null,null,0,0,{"$f":"IF($B6599<>\"\",VLOOKUP($B6599,Tbl_Reference,3,0),\"\")","v":""},{"$f":"IF($B6599<>\"\",VLOOKUP($B6599,Tbl_Reference,4,0),\"\")","v":""},""]
[null,null,"",null,null,null,0,null,null,null,0,null,null,null,0,null,null,null,0,0,"","",""]
[null,null,"",null,null,null,0,null,null,null,0,null,null,null,0,null,null,null,0,0,"","",""]
[null,null,"",null,null,null,0,null,null,null,0,null,null,null,0,null,null,null,0,0,"","",""]
[null,null,"",null,null,null,0,null,null,null,0,null,null,null,0,null,null,null,0,0,"","",""]
[null,null,"",null,null,null,0,null,null,null,0,null,null,null,0,null,null,null,0,0,"","",""]
[null,null,"",null,null,null,0,null,null,null,0,null,null,null,0,null,null,null,0,0,"","",""]
[null,null,{"$f":"IF($B6663<>\"\",VLOOKUP($B6663,Tbl_Reference,2,0),\"\")","v":""},null,null,null,0,null,null,null,0,null,null,null,0,null,null,null,0,0,{"$f":"IF($B6663<>\"\",VLOOKUP($B6663,Tbl_Reference,3,0),\"\")","v":""},{"$f":"IF($B6663<>\"\",VLOOKUP($B6663,Tbl_Reference,4,0),\"\")","v":""},""]
[null,null,"",null,null,null,0,null,null,null,0,null,null,null,0,null,null,null,0,0,"","",""]
[null,null,"",null,null,null,0,null,null,null,0,null,null,null,0,null,null,null,0,0,"","",""]
[null,null,"",null,null,null,0,null,null,null,0,null,null,null,0,null,null,null,0,0,"","",""]
[null,null,"",null,null,null,0,null,null,null,0,null,null,null,0,null,null,null,0,0,"","",""]
[null,null,"",null,null,null,0,null,null,null,0,null,null,null,0,null,null,null,0,0,"","",""]
[null,null,"",null,null,null,0,null,null,null,0,null,null,null,0,null,null,null,0,0,"","",""]
[null,null,"",null,null,null,0,null,null,null,0,null,null,null,0,null,null,null,0,0,"","",""]
[null,null,"",null,null,null,0,null,null,null,0,null,null,null,0,null,null,null,0,0,"","",""]
[null,null,"",null,null,null,0,null,null,null,0,null,null,null,0,null,null,null,0,0,"","",""]
[null,null,"",null,null,null,0,null,null,null,0,null,null,null,0,null,null,null,0,0,"","",""]
[null,null,"",null,null,null,0,null,null,null,0,null,null,null,0,null,null,null,0,0,"","",""]
[null,null,"",null,null,null,0,null,null,null,0,null,null,null,0,null,null,null,0,0,"","",""]
[null,null,"",null,null,null,0,null,null,null,0,null,null,null,0,null,null,null,0,0,"","",""]
[null,null,"",null,null,null,0,null,null,null,0,null,null,null,0,null,null,null,0,0,"","",""]
[null,null,{"$f":"IF($B6791<>\"\",VLOOKUP($B6791,Tbl_Reference,2,0),\"\")","v":""},null,null,null,0,null,null,null,0,null,null,null,0,null,null,null,0,0,{"$f":"IF($B6791<>\"\",VLOOKUP($B6791,Tbl_Reference,3,0),\"\")","v":""},{"$f":"IF($B6791<>\"\",VLOOKUP($B6791,Tbl_Reference,4,0),\"\")","v":""},""]
[null,null,"",null,null,null,0,null,null,null,0,null,null,null,0,null,null,null,0,0,"","",""]
[null,null,"",null,null,null,0,null,null,null,0,null,null,null,0,null,null,null,0,0,"","",""]
[null,null,"",null,null,null,0,null,null,null,0,null,null,null,0,null,null,null,0,0,"","",""]
[null,null,"",null,null,null,0,null,null,null,0,null,null,null,0,null,null,null,0,0,"","",""]
[null,null,"",null,null,null,0,null,null,null,0,null,null,null,0,null,null,null,0,0,"","",""]
[null,null,"",null,null,null,0,null,null,null,0,null,null,null,0,null,null,null,0,0,"","",""]
[null,null,"",null,null,null,0,null,null,null,0,null,null,null,0,null,null,null,0,0,"","",""]
[null,null,"",null,null,null,0,null,null,null,0,null,null,null,0,null,null,null,0,0,"","",""]
[null,null,"",null,null,null,0,null,null,null,0,null,null,null,0,null,null,null,0,0,"","",""]
[null,null,"",null,null,null,0,null,null,null,0,null,null,null,0,null,null,null,0,0,"","",""]
[null,null,"",null,null,null,0,null,null,null,0,null,null,null,0,null,null,null,0,0,"","",""]
[null,null,"",null,null,null,0,null,null,null,0,null,null,null,0,null,null,null,0,0,"","",""]
[null,null,"",null,null,null,0,null,null,null,0,null,null,null,0,null,null,null,0,0,"","",""]
[null,null,"",null,null,null,0,null,null,null,0,null,null,null,0,null,null,null,0,0,"","",""]
[null,null,{"$f":"IF($B6919<>\"\",VLOOKUP($B6919,Tbl_Reference,2,0),\"\")","v":""},null,null,null,0,null,null,null,0,null,null,null,0,null,null,null,0,0,{"$f":"IF($B6919<>\"\",VLOOKUP($B6919,Tbl_Reference,3,0),\"\")","v":""},{"$f":"IF($B6919<>\"\",VLOOKUP($B6919,Tbl_Reference,4,0),\"\")","v":""},""]
[null,null,"",null,null,null,0,null,null,null,0,null,null,null,0,null,null,null,0,0,"","",""]
[null,null,"",null,null,null,0,null,null,null,0,null,null,null,0,null,null,null,0,0,"","",""]
[null,null,"",null,null,null,0,null,null,null,0,null,null,null,0,null,null,null,0,0,"","",""]
[null,null,"",null,null,null,0,null,null,null,0,null,null,null,0,null,null,null,0,0,"","",""]
[null,null,"",null,null,null,0,null,null,null,0,null,null,null,0,null,null,null,0,0,"","",""]
[null,null,"",null,null,null,0,null,null,null,0,null,null,null,0,null,null,null,0,0,"","",""]
[null,null,"",null,null,null,0,null,null,null,0,null,null,null,0,null,null,null,0,0,"","",""]
[null,null,"",null,null,null,0,null,null,null,0,null,null,null,0,null,null,null,0,0,"","",""]
[null,null,"",null,null,null,0,null,null,null,0,null,null,null,0,null,null,null,0,0,"","",""]
[null,null,"",null,null,null,0,null,null,null,0,null,null,null,0,null,null,null,0,0,"","",""]
[null,null,"",null,null,null,0,null,null,null,0,null,null,null,0,null,null,null,0,0,"","",""]
[null,null,"",null,null,null,0,null,null,null,0,null,null,null,0,null,null,null,0,0,"","",""]
[null,null,"",null,null,null,0,null,null,null,0,null,null,null,0,null,null,null,0,0,"","",""]
[null,null,"",null,null,null,0,null,null,null,0,null,null,null,0,null,null,null,0,0,"","",""]
[null,null,"",null,null,null,0,null,null,null,0,null,null,null,0,null,null,null,0,0,"","",""]
[null,null,"",null,null,null,0,null,null,null,0,null,null,null,0,null,null,null,0,0,"","",""]
[null,null,"",null,null,null,0,null,null,null,0,null,null,null,0,null,null,null,0,0,"","",""]
[null,null,"",null,null,null,0,null,null,null,0,null,null,null,0,null,null,null,0,0,"","",""]
[null,null,"",null,null,null,0,null,null,null,0,null,null,null,0,null,null,null,0,0,"","",""]
[null,null,"",null,null,null,0,null,null,null,0,null,null,null,0,null,null,null,0,0,"","",""]
[null,null,"",null,null,null,0,null,null,null,0,null,null,null,0,null,null,null,0,0,"","",""]
[null,null,{"$f":"IF($B7111<>\"\",VLOOKUP($B7111,Tbl_Reference,2,0),\"\")","v":""},null,null,null,0,null,null,null,0,null,null,null,0,null,null,null,0,0,{"$f":"IF($B7111<>\"\",VLOOKUP($B7111,Tbl_Reference,3,0),\"\")","v":""},{"$f":"IF($B7111<>\"\",VLOOKUP($B7111,Tbl_Reference,4,0),\"\")","v":""},""]
[null,null,"",null,null,null,0,null,null,null,0,null,null,null,0,null,null,null,0,0,"","",""]
[null,null,"",null,null,null,0,null,null,null,0,null,null,null,0,null,null,null,0,0,"","",""]
[null,null,"",null,null,null,0,null,null,null,0,null,null,null,0,null,null,null,0,0,"","",""]
[null,null,"",null,null,null,0,null,null,null,0,null,null,null,0,null,null,null,0,0,"","",""]
[null,null,"",null,null,null,0,null,null,null,0,null,null,null,0,null,null,null,0,0,"","",""]
[null,null,"",null,null,null,0,null,null,null,0,null,null,null,0,null,null,null,0,0,"","",""]
[null,null,"",null,null,null,0,null,null,null,0,null,null,null,0,null,null,null,0,0,"","",""]
[null,null,"",null,null,null,0,null,null,null,0,null,null,null,0,null,null,null,0,0,"","",""]
[null,null,"",null,null,null,0,null,null,null,0,null,null,null,0,null,null,null,0,0,"","",""]
[null,null,"",null,null,null,0,null,null,null,0,null,null,null,0,null,null,null,0,0,"","",""]
[null,null,"",null,null,null,0,null,null,null,0,null,null,null,0,null,null,null,0,0,"","",""]
[null,null,"",null,null,null,0,null,null,null,0,null,null,null,0,null,null,null,0,0,"","",""]
[null,null,"",null,null,null,0,null,null,null,0,null,null,null,0,null,null,null,0,0,"","",""]
[null,null,"",null,null,null,0,null,null,null,0,null,null,null,0,null,null,null,0,0,"","",""]
[null,null,"",null,null,null,0,null,null,null,0,null,null,null,0,null,null,null,0,0,"","",""]
[null,null,"",null,null,null,0,null,null,null,0,null,null,null,0,null,null,null,0,0,"","",""]
[null,null,"",null,null,null,0,null,null,null,0,null,null,null,0,null,null,null,0,0,"","",""]
[null,null,"",null,null,null,0,null,null,null,0,null,null,null,0,null,null,null,0,0,"","",""]
[null,null,"",null,null,null,0,null,null,null,0,null,null,null,0,null,null,null,0,0,"","",""]
[null,null,"",null,null,null,0,null,null,null,0,null,null,null,0,null,null,null,0,0,"","",""]
[null,null,"",null,null,null,0,null,null,null,0,null,null,null,0,null,null,null,0,0,"","",""]
[null,null,"",null,null,null,0,null,null,null,0,null,null,null,0,null,null,null,0,0,"","",""]
[null,null,"",null,null,null,0,null,null,null,0,null,null,null,0,null,null,null,0,0,"","",""]
[null,null,"",null,null,null,0,null,null,null,0,null,null,null,0,null,null,null,0,0,"","",""]
[null,null,"",null,null,null,0,null,null,null,0,null,null,null,0,null,null,null,0,0,"","",""]
[null,null,"",null,null,null,0,null,null,null,0,null,null,null,0,null,null,null,0,0,"","",""]
[null,null,"",null,null,null,0,null,null,null,0,null,null,null,0,null,null,null,0,0,"","",""]
[null,null,"",null,null,null,0,null,null,null,0,null,null,null,0,null,null,null,0,0,"","",""]
[null,null,"",null,null,null,0,null,null,null,0,null,null,null,0,null,null,null,0,0,"","",""]
[null,null,"",null,null,null,0,null,null,null,0,null,null,null,0,null,null,null,0,0,"","",""]
[null,null,"",null,null,null,0,null,null,null,0,null,null,null,0,null,null,null,0,0,"","",""]
[null,null,"",null,null,null,0,null,null,null,0,null,null,null,0,null,null,null,0,0,"","",""]
[null,null,"",null,null,null,0,null,null,null,0,null,null,null,0,null,null,null,0,0,"","",""]
[null,null,"",null,null,null,0,null,null,null,0,null,null,null,0,null,null,null,0,0,"","",""]
[null,null,"",null,null,null,0,null,null,null,0,null,null,null,0,null,null,null,0,0,"","",""]
[null,null,"",null,null,null,0,null,null,null,0,null,null,null,0,null,null,null,0,0,"","",""]
[null,null,"",null,null,null,0,null,null,null,0,null,null,null,0,null,null,null,0,0,"","",""]
[null,null,"",null,null,null,0,null,null,null,0,null,null,null,0,null,null,null,0,0,"","",""]
[null,null,"",null,null,null,0,null,null,null,0,null,null,null,0,null,null,null,0,0,"","",""]
[null,null,"",null,null,null,0,null,null,null,0,null,null,null,0,null,null,null,0,0,"","",""]
[null,null,"",null,null,null,0,null,null,null,0,null,null,null,0,null,null,null,0,0,"","",""]
[null,null,"",null,null,null,0,null,null,null,0,null,null,null,0,null,null,null,0,0,"","",""]
[null,null,{"$f":"IF($B7495<>\"\",VLOOKUP($B7495,Tbl_Reference,2,0),\"\")","v":""},null,null,null,0,null,null,null,0,null,null,null,0,null,null,null,0,0,{"$f":"IF($B7495<>\"\",VLOOKUP($B7495,Tbl_Reference,3,0),\"\")","v":""},{"$f":"IF($B7495<>\"\",VLOOKUP($B7495,Tbl_Reference,4,0),\"\")","v":""},""]
[null,null,"",null,null,null,0,null,null,null,0,null,null,null,0,null,null,null,0,0,"","",""]
[null,null,"",null,null,null,0,null,null,null,0,null,null,null,0,null,null,null,0,0,"","",""]
[null,null,"",null,null,null,0,null,null,null,0,null,null,null,0,null,null,null,0,0,"","",""]
[null,null,"",null,null,null,0,null,null,null,0,null,null,null,0,null,null,null,0,0,"","",""]
[null,null,"",null,null,null,0,null,null,null,0,null,null,null,0,null,null,null,0,0,"","",""]
[null,null,"",null,null,null,0,null,null,null,0,null,null,null,0,null,null,null,0,0,"","",""]
[null,null,"",null,null,null,0,null,null,null,0,null,null,null,0,null,null,null,0,0,"","",""]
[null,null,"",null,null,null,0,null,null,null,0,null,null,null,0,null,null,null,0,0,"","",""]
[null,null,"",null,null,null,0,null,null,null,0,null,null,null,0,null,null,null,0,0,"","",""]
[null,null,"",null,null,null,0,null,null,null,0,null,null,null,0,null,null,null,0,0,"","",""]
[null,null,"",null,null,null,0,null,null,null,0,null,null,null,0,null,null,null,0,0,"","",""]
[null,null,"",null,null,null,0,null,null,null,0,null,null,null,0,null,null,null,0,0,"","",""]
[null,null,"",null,null,null,0,null,null,null,0,null,null,null,0,null,null,null,0,0,"","",""]
[null,null,"",null,null,null,0,null,null,null,0,null,null,null,0,null,null,null,0,0,"","",""]
[null,null,"",null,null,null,{"$f":"SUM(D7624:F7624)","v":0},null,null,null,{"$f":"SUM(H7624:J7624)","v":0},null,null,null,{"$f":"SUM(L7624:N7624)","v":0},null,null,null,{"$f":"SUM(P7624:R7624)","v":0},{"$f":"G7624+K7624+O7624+S7624","v":0},"","",{"$f":"IF(B7624<>\"\",IF(V7624<>0,ROUND(T7624*V7624,2),ROUND(T7624*U7624,2)),\"\")","v":""}]
[null,null,"",null,null,null,0,null,null,null,0,null,null,null,0,null,null,null,0,0,"","",""]
[null,null,"",null,null,null,0,null,null,null,0,null,null,null,0,null,null,null,0,0,"","",""]
[null,null,"",null,null,null,0,null,null,null,0,null,null,null,0,null,null,null,0,0,"","",""]
[null,null,"",null,null,null,0,null,null,null,0,null,null,null,0,null,null,null,0,0,"","",""]
[null,null,"",null,null,null,0,null,null,null,0,null,null,null,0,null,null,null,0,0,"","",""]
[null,null,"",null,null,null,0,null,null,null,0,null,null,null,0,null,null,null,0,0,"","",""]
[null,null,{"$f":"IF($B7687<>\"\",VLOOKUP($B7687,Tbl_Reference,2,0),\"\")","v":""},null,null,null,0,null,null,null,0,null,null,null,0,null,null,null,0,0,{"$f":"IF($B7687<>\"\",VLOOKUP($B7687,Tbl_Reference,3,0),\"\")","v":""},{"$f":"IF($B7687<>\"\",VLOOKUP($B7687,Tbl_Reference,4,0),\"\")","v":""},""]
[null,null,"",null,null,null,0,null,null,null,0,null,null,null,0,null,null,null,0,0,"","",""]
[null,null,"",null,null,null,0,null,null,null,0,null,null,null,0,null,null,null,0,0,"","",""]
[null,null,"",null,null,null,0,null,null,null,0,null,null,null,0,null,null,null,0,0,"","",""]
[null,null,"",null,null,null,0,null,null,null,0,null,null,null,0,null,null,null,0,0,"","",""]
[null,null,"",null,null,null,0,null,null,null,0,null,null,null,0,null,null,null,0,0,"","",""]
[null,null,"",null,null,null,0,null,null,null,0,null,null,null,0,null,null,null,0,0,"","",""]
[null,null,"",null,null,null,0,null,null,null,0,null,null,null,0,null,null,null,0,0,"","",""]
[null,null,"",null,null,null,0,null,null,null,0,null,null,null,0,null,null,null,0,0,"","",""]
[null,null,"",null,null,null,0,null,null,null,0,null,null,null,0,null,null,null,0,0,"","",""]
[null,null,"",null,null,null,0,null,null,null,0,null,null,null,0,null,null,null,0,0,"","",""]
[null,null,"",null,null,null,0,null,null,null,0,null,null,null,0,null,null,null,0,0,"","",""]
[null,null,"",null,null,null,0,null,null,null,0,null,null,null,0,null,null,null,0,0,"","",""]
[null,null,"",null,null,null,0,null,null,null,0,null,null,null,0,null,null,null,0,0,"","",""]
[null,null,"",null,null,null,0,null,null,null,0,null,null,null,0,null,null,null,0,0,"","",""]
[null,null,{"$f":"IF($B7815<>\"\",VLOOKUP($B7815,Tbl_Reference,2,0),\"\")","v":""},null,null,null,0,null,null,null,0,null,null,null,0,null,null,null,0,0,{"$f":"IF($B7815<>\"\",VLOOKUP($B7815,Tbl_Reference,3,0),\"\")","v":""},{"$f":"IF($B7815<>\"\",VLOOKUP($B7815,Tbl_Reference,4,0),\"\")","v":""},""]
[null,null,"",null,null,null,0,null,null,null,0,null,null,null,0,null,null,null,0,0,"","",""]
[null,null,"",null,null,null,0,null,null,null,0,null,null,null,0,null,null,null,0,0,"","",""]
[null,null,"",null,null,null,0,null,null,null,0,null,null,null,0,null,null,null,0,0,"","",""]
[null,null,"",null,null,null,0,null,null,null,0,null,null,null,0,null,null,null,0,0,"","",""]
[null,null,"",null,null,null,0,null,null,null,0,null,null,null,0,null,null,null,0,0,"","",""]
[null,null,"",null,null,null,0,null,null,null,0,null,null,null,0,null,null,null,0,0,"","",""]
[null,null,"",null,null,null,0,null,null,null,0,null,null,null,0,null,null,null,0,0,"","",""]
[null,null,"",null,null,null,0,null,null,null,0,null,null,null,0,null,null,null,0,0,"","",""]
[null,null,"",null,null,null,0,null,null,null,0,null,null,null,0,null,null,null,0,0,"","",""]
[null,null,"",null,null,null,0,null,null,null,0,null,null,null,0,null,null,null,0,0,"","",""]
[null,null,"",null,null,null,0,null,null,null,0,null,null,null,0,null,null,null,0,0,"","",""]
[null,null,"",null,null,null,0,null,null,null,0,null,null,null,0,null,null,null,0,0,"","",""]
[null,null,"",null,null,null,0,null,null,null,0,null,null,null,0,null,null,null,0,0,"","",""]
[null,null,"",null,null,null,0,null,null,null,0,null,null,null,0,null,null,null,0,0,"","",""]
[null,null,"",null,null,null,0,null,null,null,0,null,null,null,0,null,null,null,0,0,"","",""]
[null,null,"",null,null,null,0,null,null,null,0,null,null,null,0,null,null,null,0,0,"","",""]
[null,null,"",null,null,null,0,null,null,null,0,null,null,null,0,null,null,null,0,0,"","",""]
[null,null,"",null,null,null,0,null,null,null,0,null,null,null,0,null,null,null,0,0,"","",""]
[null,null,"",null,null,null,0,null,null,null,0,null,null,null,0,null,null,null,0,0,"","",""]
[null,null,"",null,null,null,0,null,null,null,0,null,null,null,0,null,null,null,0,0,"","",""]
[null,null,"",null,null,null,0,null,null,null,0,null,null,null,0,null,null,null,0,0,"","",""]
[null,null,"",null,null,null,0,null,null,null,0,null,null,null,0,null,null,null,0,0,"","",""]
[null,null,"",null,null,null,0,null,null,null,0,null,null,null,0,null,null,null,0,0,"","",""]
[null,null,"",null,null,null,0,null,null,null,0,null,null,null,0,null,null,null,0,0,"","",""]
[null,null,"",null,null,null,0,null,null,null,0,null,null,null,0,null,null,null,0,0,"","",""]
[null,null,"",null,null,null,0,null,null,null,0,null,null,null,0,null,null,null,0,0,"","",""]
[null,null,"",null,null,null,0,null,null,null,0,null,null,null,0,null,null,null,0,0,"","",""]
[null,null,"",null,null,null,0,null,null,null,0,null,null,null,0,null,null,null,0,0,"","",""]
[null,null,"",null,null,null,0,null,null,null,0,null,null,null,0,null,null,null,0,0,"","",""]
[null,null,"",null,null,null,0,null,null,null,0,null,null,null,0,null,null,null,0,0,"","",""]
[null,null,"",null,null,null,0,null,null,null,0,null,null,null,0,null,null,null,0,0,"","",""]
[null,null,"",null,null,null,0,null,null,null,0,null,null,null,0,null,null,null,0,0,"","",""]
[null,null,"",null,null,null,0,null,null,null,0,null,null,null,0,null,null,null,0,0,"","",""]
[null,null,"",null,null,null,0,null,null,null,0,null,null,null,0,null,null,null,0,0,"","",""]
[null,null,"",null,null,null,0,null,null,null,0,null,null,null,0,null,null,null,0,0,"","",""]
[null,null,"",null,null,null,0,null,null,null,0,null,null,null,0,null,null,null,0,0,"","",""]
[null,null,{"$f":"IF($B8135<>\"\",VLOOKUP($B8135,Tbl_Reference,2,0),\"\")","v":""},null,null,null,0,null,null,null,0,null,null,null,0,null,null,null,0,0,{"$f":"IF($B8135<>\"\",VLOOKUP($B8135,Tbl_Reference,3,0),\"\")","v":""},{"$f":"IF($B8135<>\"\",VLOOKUP($B8135,Tbl_Reference,4,0),\"\")","v":""},""]
[null,null,"",null,null,null,0,null,null,null,0,null,null,null,0,null,null,null,0,0,"","",""]
[null,null,"",null,null,null,0,null,null,null,0,null,null,null,0,null,null,null,0,0,"","",""]
[null,null,"",null,null,null,0,null,null,null,0,null,null,null,0,null,null,null,0,0,"","",""]
[null,null,"",null,null,null,0,null,null,null,0,null,null,null,0,null,null,null,0,0,"","",""]
[null,null,"",null,null,null,0,null,null,null,0,null,null,null,0,null,null,null,0,0,"","",""]
[null,null,"",null,null,null,0,null,null,null,0,null,null,null,0,null,null,null,0,0,"","",""]
[null,null,"",null,null,null,0,null,null,null,0,null,null,null,0,null,null,null,0,0,"","",""]
[null,null,"",null,null,null,0,null,null,null,0,null,null,null,0,null,null,null,0,0,"","",""]
[null,null,"",null,null,null,0,null,null,null,0,null,null,null,0,null,null,null,0,0,"","",""]
[null,null,"",null,null,null,0,null,null,null,0,null,null,null,0,null,null,null,0,0,"","",""]
[null,null,"",null,null,null,0,null,null,null,0,null,null,null,0,null,null,null,0,0,"","",""]
[null,null,"",null,null,null,0,null,null,null,0,null,null,null,0,null,null,null,0,0,"","",""]
[null,null,"",null,null,null,0,null,null,null,0,null,null,null,0,null,null,null,0,0,"","",""]
[null,null,"",null,null,null,{"$f":"SUM(D8264:F8264)","v":0},null,null,null,{"$f":"SUM(H8264:J8264)","v":0},null,null,null,{"$f":"SUM(L8264:N8264)","v":0},null,null,null,{"$f":"SUM(P8264:R8264)","v":0},{"$f":"G8264+K8264+O8264+S8264","v":0},"","",{"$f":"IF(B8264<>\"\",IF(V8264<>0,ROUND(T8264*V8264,2),ROUND(T8264*U8264,2)),\"\")","v":""}]
[null,null,"",null,null,null,0,null,null,null,0,null,null,null,0,null,null,null,0,0,"","",""]
[null,null,"",null,null,null,0,null,null,null,0,null,null,null,0,null,null,null,0,0,"","",""]
[null,null,"",null,null,null,0,null,null,null,0,null,null,null,0,null,null,null,0,0,"","",""]
[null,null,"",null,null,null,0,null,null,null,0,null,null,null,0,null,null,null,0,0,"","",""]
[null,null,"",null,null,null,0,null,null,null,0,null,null,null,0,null,null,null,0,0,"","",""]
[null,null,"",null,null,null,0,null,null,null,0,null,null,null,0,null,null,null,0,0,"","",""]
[null,null,"",null,null,null,0,null,null,null,0,null,null,null,0,null,null,null,0,0,"","",""]
[null,null,"",null,null,null,0,null,null,null,0,null,null,null,0,null,null,null,0,0,"","",""]
[null,null,"",null,null,null,0,null,null,null,0,null,null,null,0,null,null,null,0,0,"","",""]
[null,null,"",null,null,null,0,null,null,null,0,null,null,null,0,null,null,null,0,0,"","",""]
[null,null,"",null,null,null,0,null,null,null,0,null,null,null,0,null,null,null,0,0,"","",""]
[null,null,"",null,null,null,0,null,null,null,0,null,null,null,0,null,null,null,0,0,"","",""]
[null,null,"",null,null,null,0,null,null,null,0,null,null,null,0,null,null,null,0,0,"","",""]
[null,null,"",null,null,null,0,null,null,null,0,null,null,null,0,null,null,null,0,0,"","",""]
[null,null,"",null,null,null,0,null,null,null,0,null,null,null,0,null,null,null,0,0,"","",""]
[null,null,"",null,null,null,0,null,null,null,0,null,null,null,0,null,null,null,0,0,"","",""]
[null,null,"",null,null,null,0,null,null,null,0,null,null,null,0,null,null,null,0,0,"","",""]
[null,null,"",null,null,null,0,null,null,null,0,null,null,null,0,null,null,null,0,0,"","",""]
[null,null,"",null,null,null,0,null,null,null,0,null,null,null,0,null,null,null,0,0,"","",""]
[null,null,"",null,null,null,0,null,null,null,0,null,null,null,0,null,null,null,0,0,"","",""]
[null,null,"",null,null,null,0,null,null,null,0,null,null,null,0,null,null,null,0,0,"","",""]
[null,null,"",null,null,null,0,null,null,null,0,null,null,null,0,null,null,null,0,0,"","",""]
[null,null,"",null,null,null,0,null,null,null,0,null,null,null,0,null,null,null,0,0,"","",""]
[null,null,"",null,null,null,0,null,null,null,0,null,null,null,0,null,null,null,0,0,"","",""]
[null,null,"",null,null,null,0,null,null,null,0,null,null,null,0,null,null,null,0,0,"","",""]
[null,null,"",null,null,null,0,null,null,null,0,null,null,null,0,null,null,null,0,0,"","",""]
[null,null,"",null,null,null,0,null,null,null,0,null,null,null,0,null,null,null,0,0,"","",""]
[null,null,"",null,null,null,0,null,null,null,0,null,null,null,0,null,null,null,0,0,"","",""]
[null,null,"",null,null,null,0,null,null,null,0,null,null,null,0,null,null,null,0,0,"","",""]
[null,null,"",null,null,null,0,null,null,null,0,null,null,null,0,null,null,null,0,0,"","",""]
[null,null,"",null,null,null,0,null,null,null,0,null,null,null,0,null,null,null,0,0,"","",""]
[null,null,"",null,null,null,0,null,null,null,0,null,null,null,0,null,null,null,0,0,"","",""]
[null,null,"",null,null,null,0,null,null,null,0,null,null,null,0,null,null,null,0,0,"","",""]
[null,null,"",null,null,null,0,null,null,null,0,null,null,null,0,null,null,null,0,0,"","",""]
[null,null,"",null,null,null,0,null,null,null,0,null,null,null,0,null,null,null,0,0,"","",""]
[null,null,"",null,null,null,0,null,null,null,0,null,null,null,0,null,null,null,0,0,"","",""]
[null,null,"",null,null,null,0,null,null,null,0,null,null,null,0,null,null,null,0,0,"","",""]
[null,null,"",null,null,null,0,null,null,null,0,null,null,null,0,null,null,null,0,0,"","",""]
[null,null,"",null,null,null,0,null,null,null,0,null,null,null,0,null,null,null,0,0,"","",""]
[null,null,"",null,null,null,0,null,null,null,0,null,null,null,0,null,null,null,0,0,"","",""]
[null,null,"",null,null,null,0,null,null,null,0,null,null,null,0,null,null,null,0,0,"","",""]
[null,null,"",null,null,null,0,null,null,null,0,null,null,null,0,null,null,null,0,0,"","",""]
[null,null,"",null,null,null,0,null,null,null,0,null,null,null,0,null,null,null,0,0,"","",""]
[null,null,"",null,null,null,0,null,null,null,0,null,null,null,0,null,null,null,0,0,"","",""]
[null,null,"",null,null,null,0,null,null,null,0,null,null,null,0,null,null,null,0,0,"","",""]
[null,null,"",null,null,null,0,null,null,null,0,null,null,null,0,null,null,null,0,0,"","",""]
[null,null,"",null,null,null,0,null,null,null,0,null,null,null,0,null,null,null,0,0,"","",""]
[null,null,"",null,null,null,0,null,null,null,0,null,null,null,0,null,null,null,0,0,"","",""]
[null,null,"",null,null,null,0,null,null,null,0,null,null,null,0,null,null,null,0,0,"","",""]
[null,null,"",null,null,null,0,null,null,null,0,null,null,null,0,null,null,null,0,0,"","",""]
[null,null,{"$f":"IF($B8711<>\"\",VLOOKUP($B8711,Tbl_Reference,2,0),\"\")","v":""},null,null,null,0,null,null,null,0,null,null,null,0,null,null,null,0,0,{"$f":"IF($B8711<>\"\",VLOOKUP($B8711,Tbl_Reference,3,0),\"\")","v":""},{"$f":"IF($B8711<>\"\",VLOOKUP($B8711,Tbl_Reference,4,0),\"\")","v":""},""]
[null,null,"",null,null,null,0,null,null,null,0,null,null,null,0,null,null,null,0,0,"","",""]
[null,null,"",null,null,null,0,null,null,null,0,null,null,null,0,null,null,null,0,0,"","",""]
[null,null,"",null,null,null,0,null,null,null,0,null,null,null,0,null,null,null,0,0,"","",""]
[null,null,"",null,null,null,0,null,null,null,0,null,null,null,0,null,null,null,0,0,"","",""]
[null,null,"",null,null,null,0,null,null,null,0,null,null,null,0,null,null,null,0,0,"","",""]
[null,null,"",null,null,null,0,null,null,null,0,null,null,null,0,null,null,null,0,0,"","",""]
[null,null,"",null,null,null,0,null,null,null,0,null,null,null,0,null,null,null,0,0,"","",""]
[null,null,"",null,null,null,0,null,null,null,0,null,null,null,0,null,null,null,0,0,"","",""]
[null,null,"",null,null,null,0,null,null,null,0,null,null,null,0,null,null,null,0,0,"","",""]
[null,null,"",null,null,null,0,null,null,null,0,null,null,null,0,null,null,null,0,0,"","",""]
[null,null,"",null,null,null,0,null,null,null,0,null,null,null,0,null,null,null,0,0,"","",""]
[null,null,"",null,null,null,0,null,null,null,0,null,null,null,0,null,null,null,0,0,"","",""]
[null,null,"",null,null,null,0,null,null,null,0,null,null,null,0,null,null,null,0,0,"","",""]
[null,null,"",null,null,null,0,null,null,null,0,null,null,null,0,null,null,null,0,0,"","",""]
[null,null,"",null,null,null,0,null,null,null,0,null,null,null,0,null,null,null,0,0,"","",""]
[null,null,"",null,null,null,0,null,null,null,0,null,null,null,0,null,null,null,0,0,"","",""]
[null,null,"",null,null,null,0,null,null,null,0,null,null,null,0,null,null,null,0,0,"","",""]
[null,null,"",null,null,null,0,null,null,null,0,null,null,null,0,null,null,null,0,0,"","",""]
[null,null,"",null,null,null,0,null,null,null,0,null,null,null,0,null,null,null,0,0,"","",""]
[null,null,"",null,null,null,0,null,null,null,0,null,null,null,0,null,null,null,0,0,"","",""]
[null,null,"",null,null,null,0,null,null,null,0,null,null,null,0,null,null,null,0,0,"","",""]
[null,null,"",null,null,null,{"$f":"SUM(D8904:F8904)","v":0},null,null,null,{"$f":"SUM(H8904:J8904)","v":0},null,null,null,{"$f":"SUM(L8904:N8904)","v":0},null,null,null,{"$f":"SUM(P8904:R8904)","v":0},{"$f":"G8904+K8904+O8904+S8904","v":0},"","",{"$f":"IF(B8904<>\"\",IF(V8904<>0,ROUND(T8904*V8904,2),ROUND(T8904*U8904,2)),\"\")","v":""}]
[null,null,"",null,null,null,0,null,null,null,0,null,null,null,0,null,null,null,0,0,"","",""]
[null,null,"",null,null,null,0,null,null,null,0,null,null,null,0,null,null,null,0,0,"","",""]
[null,null,"",null,null,null,0,null,null,null,0,null,null,null,0,null,null,null,0,0,"","",""]
[null,null,"",null,null,null,0,null,null,null,0,null,null,null,0,null,null,null,0,0,"","",""]
[null,null,"",null,null,null,0,null,null,null,0,null,null,null,0,null,null,null,0,0,"","",""]
[null,null,"",null,null,null,0,null,null,null,0,null,null,null,0,null,null,null,0,0,"","",""]
[null,null,"",null,null,null,0,null,null,null,0,null,null,null,0,null,null,null,0,0,"","",""]
[null,null,"",null,null,null,0,null,null,null,0,null,null,null,0,null,null,null,0,0,"","",""]
[null,null,"",null,null,null,0,null,null,null,0,null,null,null,0,null,null,null,0,0,"","",""]
[null,null,"",null,null,null,0,null,null,null,0,null,null,null,0,null,null,null,0,0,"","",""]
[null,null,"",null,null,null,0,null,null,null,0,null,null,null,0,null,null,null,0,0,"","",""]
[null,null,"",null,null,null,0,null,null,null,0,null,null,null,0,null,null,null,0,0,"","",""]
[null,null,"",null,null,null,0,null,null,null,0,null,null,null,0,null,null,null,0,0,"","",""]
[null,null,"",null,null,null,0,null,null,null,0,null,null,null,0,null,null,null,0,0,"","",""]
[null,null,{"$f":"IF($B9031<>\"\",VLOOKUP($B9031,Tbl_Reference,2,0),\"\")","v":""},null,null,null,0,null,null,null,0,null,null,null,0,null,null,null,0,0,{"$f":"IF($B9031<>\"\",VLOOKUP($B9031,Tbl_Reference,3,0),\"\")","v":""},{"$f":"IF($B9031<>\"\",VLOOKUP($B9031,Tbl_Reference,4,0),\"\")","v":""},""]
[null,null,"",null,null,null,0,null,null,null,0,null,null,null,0,null,null,null,0,0,"","",""]
[null,null,"",null,null,null,0,null,null,null,0,null,null,null,0,null,null,null,0,0,"","",""]
[null,null,"",null,null,null,0,null,null,null,0,null,null,null,0,null,null,null,0,0,"","",""]
[null,null,"",null,null,null,0,null,null,null,0,null,null,null,0,null,null,null,0,0,"","",""]
[null,null,"",null,null,null,0,null,null,null,0,null,null,null,0,null,null,null,0,0,"","",""]
[null,null,"",null,null,null,0,null,null,null,0,null,null,null,0,null,null,null,0,0,"","",""]
[null,null,"",null,null,null,0,null,null,null,0,null,null,null,0,null,null,null,0,0,"","",""]
[null,null,"",null,null,null,0,null,null,null,0,null,null,null,0,null,null,null,0,0,"","",""]
[null,null,"",null,null,null,0,null,null,null,0,null,null,null,0,null,null,null,0,0,"","",""]
[null,null,"",null,null,null,0,null,null,null,0,null,null,null,0,null,null,null,0,0,"","",""]
[null,null,"",null,null,null,0,null,null,null,0,null,null,null,0,null,null,null,0,0,"","",""]
[null,null,"",null,null,null,0,null,null,null,0,null,null,null,0,null,null,null,0,0,"","",""]
[null,null,"",null,null,null,0,null,null,null,0,null,null,null,0,null,null,null,0,0,"","",""]
[null,null,"",null,null,null,0,null,null,null,0,null,null,null,0,null,null,null,0,0,"","",""]
[null,null,"",null,null,null,0,null,null,null,0,null,null,null,0,null,null,null,0,0,"","",""]
[null,null,"",null,null,null,0,null,null,null,0,null,null,null,0,null,null,null,0,0,"","",""]
[null,null,"",null,null,null,0,null,null,null,0,null,null,null,0,null,null,null,0,0,"","",""]
[null,null,"",null,null,null,0,null,null,null,0,null,null,null,0,null,null,null,0,0,"","",""]
[null,null,"",null,null,null,0,null,null,null,0,null,null,null,0,null,null,null,0,0,"","",""]
[null,null,"",null,null,null,0,null,null,null,0,null,null,null,0,null,null,null,0,0,"","",""]
[null,null,"",null,null,null,0,null,null,null,0,null,null,null,0,null,null,null,0,0,"","",""]
[null,null,"",null,null,null,0,null,null,null,0,null,null,null,0,null,null,null,0,0,"","",""]
[null,null,"",null,null,null,0,null,null,null,0,null,null,null,0,null,null,null,0,0,"","",""]
[null,null,"",null,null,null,0,null,null,null,0,null,null,null,0,null,null,null,0,0,"","",""]
[null,null,"",null,null,null,0,null,null,null,0,null,null,null,0,null,null,null,0,0,"","",""]
[null,null,"",null,null,null,0,null,null,null,0,null,null,null,0,null,null,null,0,0,"","",""]
[null,null,"",null,null,null,0,null,null,null,0,null,null,null,0,null,null,null,0,0,"","",""]
[null,null,"",null,null,null,0,null,null,null,0,null,null,null,0,null,null,null,0,0,"","",""]
[null,null,"",null,null,null,0,null,null,null,0,null,null,null,0,null,null,null,0,0,"","",""]
[null,null,"",null,null,null,0,null,null,null,0,null,null,null,0,null,null,null,0,0,"","",""]
[null,null,"",null,null,null,0,null,null,null,0,null,null,null,0,null,null,null,0,0,"","",""]
[null,null,"",null,null,null,0,null,null,null,0,null,null,null,0,null,null,null,0,0,"","",""]
[null,null,"",null,null,null,0,null,null,null,0,null,null,null,0,null,null,null,0,0,"","",""]
[null,null,"",null,null,null,0,null,null,null,0,null,null,null,0,null,null,null,0,0,"","",""]
[null,null,"",null,null,null,0,null,null,null,0,null,null,null,0,null,null,null,0,0,"","",""]
[null,null,"",null,null,null,0,null,null,null,0,null,null,null,0,null,null,null,0,0,"","",""]
[null,null,"",null,null,null,0,null,null,null,0,null,null,null,0,null,null,null,0,0,"","",""]
[null,null,"",null,null,null,0,null,null,null,0,null,null,null,0,null,null,null,0,0,"","",""]
[null,null,"",null,null,null,0,null,null,null,0,null,null,null,0,null,null,null,0,0,"","",""]
[null,null,"",null,null,null,0,null,null,null,0,null,null,null,0,null,null,null,0,0,"","",""]
[null,null,"",null,null,null,0,null,null,null,0,null,null,null,0,null,null,null,0,0,"","",""]
[null,null,"",null,null,null,0,null,null,null,0,null,null,null,0,null,null,null,0,0,"","",""]
[null,null,"",null,null,null,0,null,null,null,0,null,null,null,0,null,null,null,0,0,"","",""]
[null,null,"",null,null,null,0,null,null,null,0,null,null,null,0,null,null,null,0,0,"","",""]
[null,null,"",null,null,null,0,null,null,null,0,null,null,null,0,null,null,null,0,0,"","",""]
[null,null,"",null,null,null,0,null,null,null,0,null,null,null,0,null,null,null,0,0,"","",""]
[null,null,"",null,null,null,0,null,null,null,0,null,null,null,0,null,null,null,0,0,"","",""]
[null,null,"",null,null,null,0,null,null,null,0,null,null,null,0,null,null,null,0,0,"","",""]
[null,null,"",null,null,null,0,null,null,null,0,null,null,null,0,null,null,null,0,0,"","",""]
[null,null,"",null,null,null,0,null,null,null,0,null,null,null,0,null,null,null,0,0,"","",""]
[null,null,"",null,null,null,0,null,null,null,0,null,null,null,0,null,null,null,0,0,"","",""]
[null,null,"",null,null,null,0,null,null,null,0,null,null,null,0,null,null,null,0,0,"","",""]
[null,null,"",null,null,null,0,null,null,null,0,null,null,null,0,null,null,null,0,0,"","",""]
[null,null,"",null,null,null,0,null,null,null,0,null,null,null,0,null,null,null,0,0,"","",""]
[null,null,"",null,null,null,0,null,null,null,0,null,null,null,0,null,null,null,0,0,"","",""]
[null,null,"",null,null,null,0,null,null,null,0,null,null,null,0,null,null,null,0,0,"","",""]
[null,null,"",null,null,null,0,null,null,null,0,null,null,null,0,null,null,null,0,0,"","",""]
[null,null,"",null,null,null,0,null,null,null,0,null,null,null,0,null,null,null,0,0,"","",""]
[null,null,"",null,null,null,0,null,null,null,0,null,null,null,0,null,null,null,0,0,"","",""]
[null,null,"",null,null,null,0,null,null,null,0,null,null,null,0,null,null,null,0,0,"","",""]
[null,null,"",null,null,null,0,null,null,null,0,null,null,null,0,null,null,null,0,0,"","",""]
[null,null,"",null,null,null,0,null,null,null,0,null,null,null,0,null,null,null,0,0,"","",""]
[null,null,"",null,null,null,0,null,null,null,0,null,null,null,0,null,null,null,0,0,"","",""]
[null,null,"",null,null,null,0,null,null,null,0,null,null,null,0,null,null,null,0,0,"","",""]
[null,null,"",null,null,null,0,null,null,null,0,null,null,null,0,null,null,null,0,0,"","",""]
[null,null,"",null,null,null,0,null,null,null,0,null,null,null,0,null,null,null,0,0,"","",""]
[null,null,"",null,null,null,0,null,null,null,0,null,null,null,0,null,null,null,0,0,"","",""]
[null,null,"",null,null,null,0,null,null,null,0,null,null,null,0,null,null,null,0,0,"","",""]
[null,null,"",null,null,null,0,null,null,null,0,null,null,null,0,null,null,null,0,0,"","",""]
[null,null,"",null,null,null,0,null,null,null,0,null,null,null,0,null,null,null,0,0,"","",""]
[null,null,"",null,null,null,0,null,null,null,0,null,null,null,0,null,null,null,0,0,"","",""]
[null,null,"",null,null,null,0,null,null,null,0,null,null,null,0,null,null,null,0,0,"","",""]
[null,null,"",null,null,null,0,null,null,null,0,null,null,null,0,null,null,null,0,0,"","",""]
[null,null,"",null,null,null,0,null,null,null,0,null,null,null,0,null,null,null,0,0,"","",""]
[null,null,"",null,null,null,0,null,null,null,0,null,null,null,0,null,null,null,0,0,"","",""]
[null,null,"",null,null,null,0,null,null,null,0,null,null,null,0,null,null,null,0,0,"","",""]
[null,null,"",null,null,null,0,null,null,null,0,null,null,null,0,null,null,null,0,0,"","",""]
[null,null,"",null,null,null,0,null,null,null,0,null,null,null,0,null,null,null,0,0,"","",""]
[null,null,"",null,null,null,0,null,null,null,0,null,null,null,0,null,null,null,0,0,"","",""]
[null,null,"",null,null,null,0,null,null,null,0,null,null,null,0,null,null,null,0,0,"","",""]
[null,null,"",null,null,null,0,null,null,null,0,null,null,null,0,null,null,null,0,0,"","",""]
[null,null,"",null,null,null,0,null,null,null,0,null,null,null,0,null,null,null,0,0,"","",""]
[null,null,"",null,null,null,0,null,null,null,0,null,null,null,0,null,null,null,0,0,"","",""]
[null,null,"",null,null,null,0,null,null,null,0,null,null,null,0,null,null,null,0,0,"","",""]
[null,null,"",null,null,null,0,null,null,null,0,null,null,null,0,null,null,null,0,0,"","",""]
[null,null,"",null,null,null,0,null,null,null,0,null,null,null,0,null,null,null,0,0,"","",""]
[null,null,"",null,null,null,0,null,null,null,0,null,null,null,0,null,null,null,0,0,"","",""]
[null,null,"",null,null,null,0,null,null,null,0,null,null,null,0,null,null,null,0,0,"","",""]
[null,null,"",null,null,null,0,null,null,null,0,null,null,null,0,null,null,null,0,0,"","",""]
[null,null,"",null,null,null,0,null,null,null,0,null,null,null,0,null,null,null,0,0,"","",""]
[null,null,"",null,null,null,0,null,null,null,0,null,null,null,0,null,null,null,0,0,"","",""]
[null,null,"",null,null,null,0,null,null,null,0,null,null,null,0,null,null,null,0,0,"","",""]
[null,null,"",null,null,null,0,null,null,null,0,null,null,null,0,null,null,null,0,0,"","",""]
[null,null,"",null,null,null,0,null,null,null,0,null,null,null,0,null,null,null,0,0,"","",""]
[null,null,"",null,null,null,0,null,null,null,0,null,null,null,0,null,null,null,0,0,"","",""]
[null,null,"",null,null,null,0,null,null,null,0,null,null,null,0,null,null,null,0,0,"","",""]
[null,null,"",null,null,null,0,null,null,null,0,null,null,null,0,null,null,null,0,0,"","",""]
[null,null,"",null,null,null,0,null,null,null,0,null,null,null,0,null,null,null,0,0,"","",""]
[null,null,"",null,null,null,0,null,null,null,0,null,null,null,0,null,null,null,0,0,"","",""]
[null,null,"",null,null,null,0,null,null,null,0,null,null,null,0,null,null,null,0,0,"","",""]
[null,null,"",null,null,null,0,null,null,null,0,null,null,null,0,null,null,null,0,0,"","",""]
[null,null,"",null,null,null,0,null,null,null,0,null,null,null,0,null,null,null,0,0,"","",""]
[null,null,"",null,null,null,0,null,null,null,0,null,null,null,0,null,null,null,0,0,"","",""]
[null,null,"",null,null,null,0,null,null,null,0,null,null,null,0,null,null,null,0,0,"","",""]
[null,null,"",null,null,null,0,null,null,null,0,null,null,null,0,null,null,null,0,0,"","",""]
[null,null,"",null,null,null,0,null,null,null,0,null,null,null,0,null,null,null,0,0,"","",""]
[null,null,"",null,null,null,0,null,null,null,0,null,null,null,0,null,null,null,0,0,"","",""]
[null,null,"",null,null,null,0,null,null,null,0,null,null,null,0,null,null,null,0,0,"","",""]
[null,null,"",null,null,null,0,null,null,null,0,null,null,null,0,null,null,null,0,0,"","",""]
[null,null,"",null,null,null,0,null,null,null,0,null,null,null,0,null,null,null,0,0,"","",""]
[null,null,"",null,null,null,0,null,null,null,0,null,null,null,0,null,null,null,0,0,"","",""]
[null,null,"",null,null,null,0,null,null,null,0,null,null,null,0,null,null,null,0,0,"","",""]
[null,null,"",null,null,null,0,null,null,null,0,null,null,null,0,null,null,null,0,0,"","",""]
[null,null,"",null,null,null,0,null,null,null,0,null,null,null,0,null,null,null,0,0,"","",""]
[null,null,"",null,null,null,0,null,null,null,0,null,null,null,0,null,null,null,0,0,"","",""]
[null,null,"",null,null,null,0,null,null,null,0,null,null,null,0,null,null,null,0,0,"","",""]
[null,null,"",null,null,null,0,null,null,null,0,null,null,null,0,null,null,null,0,0,"","",""]
[null,null,"",null,null,null,0,null,null,null,0,null,null,null,0,null,null,null,0,0,"","",""]
[null,null,"",null,null,null,0,null,null,null,0,null,null,null,0,null,null,null,0,0,"","",""]
[null,null,"",null,null,null,0,null,null,null,0,null,null,null,0,null,null,null,0,0,"","",""]
[null,null,"",null,null,null,0,null,null,null,0,null,null,null,0,null,null,null,0,0,"","",""]
[null,null,"",null,null,null,0,null,null,null,0,null,null,null,0,null,null,null,0,0,"","",""]
[null,null,"",null,null,null,0,null,null,null,0,null,null,null,0,null,null,null,0,0,"","",""]
[null,null,"",null,null,null,0,null,null,null,0,null,null,null,0,null,null,null,0,0,"","",""]
[null,null,"",null,null,null,0,null,null,null,0,null,null,null,0,null,null,null,0,0,"","",""]
[null,null,"",null,null,null,0,null,null,null,0,null,null,null,0,null,null,null,0,0,"","",""]
[null,null,{"$f":"IF($B9799<>\"\",VLOOKUP($B9799,Tbl_Reference,2,0),\"\")","v":""},null,null,null,0,null,null,null,0,null,null,null,0,null,null,null,0,0,{"$f":"IF($B9799<>\"\",VLOOKUP($B9799,Tbl_Reference,3,0),\"\")","v":""},{"$f":"IF($B9799<>\"\",VLOOKUP($B9799,Tbl_Reference,4,0),\"\")","v":""},""]
[null,null,"",null,null,null,{"$f":"SUM(D9800:F9800)","v":0},null,null,null,{"$f":"SUM(H9800:J9800)","v":0},null,null,null,{"$f":"SUM(L9800:N9800)","v":0},null,null,null,{"$f":"SUM(P9800:R9800)","v":0},{"$f":"G9800+K9800+O9800+S9800","v":0},"","",{"$f":"IF(B9800<>\"\",IF(V9800<>0,ROUND(T9800*V9800,2),ROUND(T9800*U9800,2)),\"\")","v":""}]
[null,null,"",null,null,null,0,null,null,null,0,null,null,null,0,null,null,null,0,0,"","",""]
[null,null,"",null,null,null,0,null,null,null,0,null,null,null,0,null,null,null,0,0,"","",""]
[null,null,"",null,null,null,0,null,null,null,0,null,null,null,0,null,null,null,0,0,"","",""]
[null,null,"",null,null,null,0,null,null,null,0,null,null,null,0,null,null,null,0,0,"","",""]
[null,null,"",null,null,null,0,null,null,null,0,null,null,null,0,null,null,null,0,0,"","",""]
[null,null,"",null,null,null,0,null,null,null,0,null,null,null,0,null,null,null,0,0,"","",""]
[null,null,"",null,null,null,0,null,null,null,0,null,null,null,0,null,null,null,0,0,"","",""]
[null,null,"",null,null,null,0,null,null,null,0,null,null,null,0,null,null,null,0,0,"","",""]
[null,null,"",null,null,null,0,null,null,null,0,null,null,null,0,null,null,null,0,0,"","",""]
[null,null,"",null,null,null,0,null,null,null,0,null,null,null,0,null,null,null,0,0,"","",""]
[null,null,"",null,null,null,0,null,null,null,0,null,null,null,0,null,null,null,0,0,"","",""]
[null,null,"",null,null,null,0,null,null,null,0,null,null,null,0,null,null,null,0,0,"","",""]
[null,null,"",null,null,null,0,null,null,null,0,null,null,null,0,null,null,null,0,0,"","",""]
[null,null,"",null,null,null,0,null,null,null,0,null,null,null,0,null,null,null,0,0,"","",""]
[null,null,"",null,null,null,0,null,null,null,0,null,null,null,0,null,null,null,0,0,"","",""]
[null,null,"",null,null,null,0,null,null,null,0,null,null,null,0,null,null,null,0,0,"","",""]
[null,null,"",null,null,null,0,null,null,null,0,null,null,null,0,null,null,null,0,0,"","",""]
[null,null,"",null,null,null,0,null,null,null,0,null,null,null,0,null,null,null,0,0,"","",""]
[null,null,"",null,null,null,0,null,null,null,0,null,null,null,0,null,null,null,0,0,"","",""]
[null,null,"",null,null,null,0,null,null,null,0,null,null,null,0,null,null,null,0,0,"","",""]
[null,null,"",null,null,null,0,null,null,null,0,null,null,null,0,null,null,null,0,0,"","",""]
[null,null,"",null,null,null,0,null,null,null,0,null,null,null,0,null,null,null,0,0,"","",""]
[null,null,"",null,null,null,0,null,null,null,0,null,null,null,0,null,null,null,0,0,"","",""]
[null,null,"",null,null,null,0,null,null,null,0,null,null,null,0,null,null,null,0,0,"","",""]
[null,null,"",null,null,null,0,null,null,null,0,null,null,null,0,null,null,null,0,0,"","",""]
[null,null,"",null,null,null,0,null,null,null,0,null,null,null,0,null,null,null,0,0,"","",""]
[null,null,"",null,null,null,0,null,null,null,0,null,null,null,0,null,null,null,0,0,"","",""]
[null,null,"",null,null,null,0,null,null,null,0,null,null,null,0,null,null,null,0,0,"","",""]
[null,null,"",null,null,null,0,null,null,null,0,null,null,null,0,null,null,null,0,0,"","",""]
[null,null,"",null,null,null,0,null,null,null,0,null,null,null,0,null,null,null,0,0,"","",""]
[null,null,"",null,null,null,0,null,null,null,0,null,null,null,0,null,null,null,0,0,"","",""]
[null,null,"",null,null,null,0,null,null,null,0,null,null,null,0,null,null,null,0,0,"","",""]
[null,null,"",null,null,null,0,null,null,null,0,null,null,null,0,null,null,null,0,0,"","",""]
[null,null,"",null,null,null,0,null,null,null,0,null,null,null,0,null,null,null,0,0,"","",""]
[null,null,"",null,null,null,0,null,null,null,0,null,null,null,0,null,null,null,0,0,"","",""]
[null,null,"",null,null,null,0,null,null,null,0,null,null,null,0,null,null,null,0,0,"","",""]
[null,null,"",null,null,null,0,null,null,null,0,null,null,null,0,null,null,null,0,0,"","",""]
[null,null,"",null,null,null,0,null,null,null,0,null,null,null,0,null,null,null,0,0,"","",""]
[null,null,"",null,null,null,0,null,null,null,0,null,null,null,0,null,null,null,0,0,"","",""]
[null,null,"",null,null,null,0,null,null,null,0,null,null,null,0,null,null,null,0,0,"","",""]
[null,null,"",null,null,null,0,null,null,null,0,null,null,null,0,null,null,null,0,0,"","",""]
[null,null,"",null,null,null,0,null,null,null,0,null,null,null,0,null,null,null,0,0,"","",""]
[null,null,"",null,null,null,0,null,null,null,0,null,null,null,0,null,null,null,0,0,"","",""]
[null,null,"",null,null,null,0,null,null,null,0,null,null,null,0,null,null,null,0,0,"","",""]
[null,null,"",null,null,null,0,null,null,null,0,null,null,null,0,null,null,null,0,0,"","",""]
[null,null,"",null,null,null,0,null,null,null,0,null,null,null,0,null,null,null,0,0,"","",""]
[null,null,"",null,null,null,0,null,null,null,0,null,null,null,0,null,null,null,0,0,"","",""]
[null,null,"",null,null,null,0,null,null,null,0,null,null,null,0,null,null,null,0,0,"","",""]
[null,null,"",null,null,null,0,null,null,null,0,null,null,null,0,null,null,null,0,0,"","",""]
[null,null,"",null,null,null,0,null,null,null,0,null,null,null,0,null,null,null,0,0,"","",""]
[null,null,"",null,null,null,0,null,null,null,0,null,null,null,0,null,null,null,0,0,"","",""]
[null,null,"",null,null,null,0,null,null,null,0,null,null,null,0,null,null,null,0,0,"","",""]
[null,null,"",null,null,null,0,null,null,null,0,null,null,null,0,null,null,null,0,0,"","",""]
[null,null,"",null,null,null,0,null,null,null,0,null,null,null,0,null,null,null,0,0,"","",""]
[null,null,"",null,null,null,0,null,null,null,0,null,null,null,0,null,null,null,0,0,"","",""]
[null,null,"",null,null,null,0,null,null,null,0,null,null,null,0,null,null,null,0,0,"","",""]
[null,null,"",null,null,null,0,null,null,null,0,null,null,null,0,null,null,null,0,0,"","",""]
[null,null,"",null,null,null,0,null,null,null,0,null,null,null,0,null,null,null,0,0,"","",""]
[null,null,"",null,null,null,0,null,null,null,0,null,null,null,0,null,null,null,0,0,"","",""]
[null,null,"",null,null,null,0,null,null,null,0,null,null,null,0,null,null,null,0,0,"","",""]
[null,null,"",null,null,null,0,null,null,null,0,null,null,null,0,null,null,null,0,0,"","",""]
[null,null,"",null,null,null,0,null,null,null,0,null,null,null,0,null,null,null,0,0,"","",""]
[null,null,{"$f":"IF($B9863<>\"\",VLOOKUP($B9863,Tbl_Reference,2,0),\"\")","v":""},null,null,null,0,null,null,null,0,null,null,null,0,null,null,null,0,0,{"$f":"IF($B9863<>\"\",VLOOKUP($B9863,Tbl_Reference,3,0),\"\")","v":""},{"$f":"IF($B9863<>\"\",VLOOKUP($B9863,Tbl_Reference,4,0),\"\")","v":""},""]
[null,null,"",null,null,null,{"$f":"SUM(D9864:F9864)","v":0},null,null,null,{"$f":"SUM(H9864:J9864)","v":0},null,null,null,{"$f":"SUM(L9864:N9864)","v":0},null,null,null,{"$f":"SUM(P9864:R9864)","v":0},{"$f":"G9864+K9864+O9864+S9864","v":0},"","",{"$f":"IF(B9864<>\"\",IF(V9864<>0,ROUND(T9864*V9864,2),ROUND(T9864*U9864,2)),\"\")","v":""}]
[null,null,"",null,null,null,0,null,null,null,0,null,null,null,0,null,null,null,0,0,"","",""]
[null,null,"",null,null,null,0,null,null,null,0,null,null,null,0,null,null,null,0,0,"","",""]
[null,null,"",null,null,null,0,null,null,null,0,null,null,null,0,null,null,null,0,0,"","",""]
[null,null,"",null,null,null,0,null,null,null,0,null,null,null,0,null,null,null,0,0,"","",""]
[null,null,"",null,null,null,0,null,null,null,0,null,null,null,0,null,null,null,0,0,"","",""]
[null,null,"",null,null,null,0,null,null,null,0,null,null,null,0,null,null,null,0,0,"","",""]
[null,null,"",null,null,null,0,null,null,null,0,null,null,null,0,null,null,null,0,0,"","",""]
[null,null,"",null,null,null,0,null,null,null,0,null,null,null,0,null,null,null,0,0,"","",""]
[null,null,"",null,null,null,0,null,null,null,0,null,null,null,0,null,null,null,0,0,"","",""]
[null,null,"",null,null,null,0,null,null,null,0,null,null,null,0,null,null,null,0,0,"","",""]
[null,null,"",null,null,null,0,null,null,null,0,null,null,null,0,null,null,null,0,0,"","",""]
[null,null,"",null,null,null,0,null,null,null,0,null,null,null,0,null,null,null,0,0,"","",""]
[null,null,"",null,null,null,0,null,null,null,0,null,null,null,0,null,null,null,0,0,"","",""]
[null,null,"",null,null,null,0,null,null,null,0,null,null,null,0,null,null,null,0,0,"","",""]
[null,null,"",null,null,null,0,null,null,null,0,null,null,null,0,null,null,null,0,0,"","",""]
[null,null,"",null,null,null,0,null,null,null,0,null,null,null,0,null,null,null,0,0,"","",""]
[null,null,"",null,null,null,0,null,null,null,0,null,null,null,0,null,null,null,0,0,"","",""]
[null,null,"",null,null,null,0,null,null,null,0,null,null,null,0,null,null,null,0,0,"","",""]
[null,null,"",null,null,null,0,null,null,null,0,null,null,null,0,null,null,null,0,0,"","",""]
[null,null,"",null,null,null,0,null,null,null,0,null,null,null,0,null,null,null,0,0,"","",""]
[null,null,"",null,null,null,0,null,null,null,0,null,null,null,0,null,null,null,0,0,"","",""]
[null,null,"",null,null,null,0,null,null,null,0,null,null,null,0,null,null,null,0,0,"","",""]
[null,null,"",null,null,null,0,null,null,null,0,null,null,null,0,null,null,null,0,0,"","",""]
[null,null,"",null,null,null,0,null,null,null,0,null,null,null,0,null,null,null,0,0,"","",""]
[null,null,"",null,null,null,0,null,null,null,0,null,null,null,0,null,null,null,0,0,"","",""]
[null,null,"",null,null,null,0,null,null,null,0,null,null,null,0,null,null,null,0,0,"","",""]
[null,null,"",null,null,null,0,null,null,null,0,null,null,null,0,null,null,null,0,0,"","",""]
[null,null,"",null,null,null,0,null,null,null,0,null,null,null,0,null,null,null,0,0,"","",""]
[null,null,"",null,null,null,0,null,null,null,0,null,null,null,0,null,null,null,0,0,"","",""]
[null,null,"",null,null,null,0,null,null,null,0,null,null,null,0,null,null,null,0,0,"","",""]
[null,null,"",null,null,null,0,null,null,null,0,null,null,null,0,null,null,null,0,0,"","",""]
[null,null,"",null,null,null,0,null,null,null,0,null,null,null,0,null,null,null,0,0,"","",""]
[null,null,"",null,null,null,0,null,null,null,0,null,null,null,0,null,null,null,0,0,"","",""]
[null,null,"",null,null,null,0,null,null,null,0,null,null,null,0,null,null,null,0,0,"","",""]
[null,null,"",null,null,null,0,null,null,null,0,null,null,null,0,null,null,null,0,0,"","",""]
[null,null,"",null,null,null,0,null,null,null,0,null,null,null,0,null,null,null,0,0,"","",""]
[null,null,"",null,null,null,0,null,null,null,0,null,null,null,0,null,null,null,0,0,"","",""]
[null,null,"",null,null,null,0,null,null,null,0,null,null,null,0,null,null,null,0,0,"","",""]
[null,null,"",null,null,null,0,null,null,null,0,null,null,null,0,null,null,null,0,0,"","",""]
[null,null,"",null,null,null,0,null,null,null,0,null,null,null,0,null,null,null,0,0,"","",""]
[null,null,"",null,null,null,0,null,null,null,0,null,null,null,0,null,null,null,0,0,"","",""]
[null,null,"",null,null,null,0,null,null,null,0,null,null,null,0,null,null,null,0,0,"","",""]
[null,null,"",null,null,null,0,null,null,null,0,null,null,null,0,null,null,null,0,0,"","",""]
[null,null,"",null,null,null,0,null,null,null,0,null,null,null,0,null,null,null,0,0,"","",""]
[null,null,"",null,null,null,0,null,null,null,0,null,null,null,0,null,null,null,0,0,"","",""]
[null,null,"",null,null,null,0,null,null,null,0,null,null,null,0,null,null,null,0,0,"","",""]
[null,null,"",null,null,null,0,null,null,null,0,null,null,null,0,null,null,null,0,0,"","",""]
[null,null,"",null,null,null,0,null,null,null,0,null,null,null,0,null,null,null,0,0,"","",""]
[null,null,"",null,null,null,0,null,null,null,0,null,null,null,0,null,null,null,0,0,"","",""]
[null,null,"",null,null,null,0,null,null,null,0,null,null,null,0,null,null,null,0,0,"","",""]
[null,null,"",null,null,null,0,null,null,null,0,null,null,null,0,null,null,null,0,0,"","",""]
[null,null,"",null,null,null,0,null,null,null,0,null,null,null,0,null,null,null,0,0,"","",""]
[null,null,"",null,null,null,0,null,null,null,0,null,null,null,0,null,null,null,0,0,"","",""]
[null,null,"",null,null,null,0,null,null,null,0,null,null,null,0,null,null,null,0,0,"","",""]
[null,null,"",null,null,null,0,null,null,null,0,null,null,null,0,null,null,null,0,0,"","",""]
[null,null,"",null,null,null,0,null,null,null,0,null,null,null,0,null,null,null,0,0,"","",""]
[null,null,"",null,null,null,0,null,null,null,0,null,null,null,0,null,null,null,0,0,"","",""]
[null,null,"",null,null,null,0,null,null,null,0,null,null,null,0,null,null,null,0,0,"","",""]
[null,null,"",null,null,null,0,null,null,null,0,null,null,null,0,null,null,null,0,0,"","",""]
[null,null,"",null,null,null,0,null,null,null,0,null,null,null,0,null,null,null,0,0,"","",""]
[null,null,"",null,null,null,0,null,null,null,0,null,null,null,0,null,null,null,0,0,"","",""]
[null,null,"",null,null,null,0,null,null,null,0,null,null,null,0,null,null,null,0,0,"","",""]
[null,null,{"$f":"IF($B9927<>\"\",VLOOKUP($B9927,Tbl_Reference,2,0),\"\")","v":""},null,null,null,0,null,null,null,0,null,null,null,0,null,null,null,0,0,{"$f":"IF($B9927<>\"\",VLOOKUP($B9927,Tbl_Reference,3,0),\"\")","v":""},{"$f":"IF($B9927<>\"\",VLOOKUP($B9927,Tbl_Reference,4,0),\"\")","v":""},""]
[null,null,"",null,null,null,{"$f":"SUM(D9928:F9928)","v":0},null,null,null,{"$f":"SUM(H9928:J9928)","v":0},null,null,null,{"$f":"SUM(L9928:N9928)","v":0},null,null,null,{"$f":"SUM(P9928:R9928)","v":0},{"$f":"G9928+K9928+O9928+S9928","v":0},"","",{"$f":"IF(B9928<>\"\",IF(V9928<>0,ROUND(T9928*V9928,2),ROUND(T9928*U9928,2)),\"\")","v":""}]
[null,null,"",null,null,null,0,null,null,null,0,null,null,null,0,null,null,null,0,0,"","",""]
[null,null,"",null,null,null,0,null,null,null,0,null,null,null,0,null,null,null,0,0,"","",""]
[null,null,"",null,null,null,0,null,null,null,0,null,null,null,0,null,null,null,0,0,"","",""]
[null,null,"",null,null,null,0,null,null,null,0,null,null,null,0,null,null,null,0,0,"","",""]
[null,null,"",null,null,null,0,null,null,null,0,null,null,null,0,null,null,null,0,0,"","",""]
[null,null,"",null,null,null,0,null,null,null,0,null,null,null,0,null,null,null,0,0,"","",""]
[null,null,"",null,null,null,0,null,null,null,0,null,null,null,0,null,null,null,0,0,"","",""]
[null,null,"",null,null,null,0,null,null,null,0,null,null,null,0,null,null,null,0,0,"","",""]
[null,null,"",null,null,null,0,null,null,null,0,null,null,null,0,null,null,null,0,0,"","",""]
[null,null,"",null,null,null,0,null,null,null,0,null,null,null,0,null,null,null,0,0,"","",""]
[null,null,"",null,null,null,0,null,null,null,0,null,null,null,0,null,null,null,0,0,"","",""]
[null,null,"",null,null,null,0,null,null,null,0,null,null,null,0,null,null,null,0,0,"","",""]
[null,null,"",null,null,null,0,null,null,null,0,null,null,null,0,null,null,null,0,0,"","",""]
[null,null,"",null,null,null,0,null,null,null,0,null,null,null,0,null,null,null,0,0,"","",""]
[null,null,"",null,null,null,0,null,null,null,0,null,null,null,0,null,null,null,0,0,"","",""]
[null,null,"",null,null,null,0,null,null,null,0,null,null,null,0,null,null,null,0,0,"","",""]
[null,null,"",null,null,null,0,null,null,null,0,null,null,null,0,null,null,null,0,0,"","",""]
[null,null,"",null,null,null,0,null,null,null,0,null,null,null,0,null,null,null,0,0,"","",""]
[null,null,"",null,null,null,0,null,null,null,0,null,null,null,0,null,null,null,0,0,"","",""]
[null,null,"",null,null,null,0,null,null,null,0,null,null,null,0,null,null,null,0,0,"","",""]
[null,null,"",null,null,null,0,null,null,null,0,null,null,null,0,null,null,null,0,0,"","",""]
[null,null,"",null,null,null,0,null,null,null,0,null,null,null,0,null,null,null,0,0,"","",""]
[null,null,"",null,null,null,0,null,null,null,0,null,null,null,0,null,null,null,0,0,"","",""]
[null,null,"",null,null,null,0,null,null,null,0,null,null,null,0,null,null,null,0,0,"","",""]
[null,null,"",null,null,null,0,null,null,null,0,null,null,null,0,null,null,null,0,0,"","",""]
[null,null,"",null,null,null,0,null,null,null,0,null,null,null,0,null,null,null,0,0,"","",""]
[null,null,"",null,null,null,0,null,null,null,0,null,null,null,0,null,null,null,0,0,"","",""]
[null,null,"",null,null,null,0,null,null,null,0,null,null,null,0,null,null,null,0,0,"","",""]
[null,null,"",null,null,null,0,null,null,null,0,null,null,null,0,null,null,null,0,0,"","",""]
[null,null,"",null,null,null,0,null,null,null,0,null,null,null,0,null,null,null,0,0,"","",""]
[null,null,"",null,null,null,0,null,null,null,0,null,null,null,0,null,null,null,0,0,"","",""]
[null,null,"",null,null,null,0,null,null,null,0,null,null,null,0,null,null,null,0,0,"","",""]
[null,null,"",null,null,null,0,null,null,null,0,null,null,null,0,null,null,null,0,0,"","",""]
[null,null,"",null,null,null,0,null,null,null,0,null,null,null,0,null,null,null,0,0,"","",""]
[null,null,"",null,null,null,0,null,null,null,0,null,null,null,0,null,null,null,0,0,"","",""]
[null,null,"",null,null,null,0,null,null,null,0,null,null,null,0,null,null,null,0,0,"","",""]
[null,null,"",null,null,null,0,null,null,null,0,null,null,null,0,null,null,null,0,0,"","",""]
[null,null,"",null,null,null,0,null,null,null,0,null,null,null,0,null,null,null,0,0,"","",""]
[null,null,"",null,null,null,0,null,null,null,0,null,null,null,0,null,null,null,0,0,"","",""]
[null,null,"",null,null,null,0,null,null,null,0,null,null,null,0,null,null,null,0,0,"","",""]
[null,null,"",null,null,null,0,null,null,null,0,null,null,null,0,null,null,null,0,0,"","",""]
[null,null,"",null,null,null,0,null,null,null,0,null,null,null,0,null,null,null,0,0,"","",""]
[null,null,"",null,null,null,0,null,null,null,0,null,null,null,0,null,null,null,0,0,"","",""]
[null,null,"",null,null,null,0,null,null,null,0,null,null,null,0,null,null,null,0,0,"","",""]
[null,null,"",null,null,null,0,null,null,null,0,null,null,null,0,null,null,null,0,0,"","",""]
[null,null,"",null,null,null,0,null,null,null,0,null,null,null,0,null,null,null,0,0,"","",""]
[null,null,"",null,null,null,0,null,null,null,0,null,null,null,0,null,null,null,0,0,"","",""]
[null,null,"",null,null,null,0,null,null,null,0,null,null,null,0,null,null,null,0,0,"","",""]
[null,null,"",null,null,null,0,null,null,null,0,null,null,null,0,null,null,null,0,0,"","",""]
[null,null,"",null,null,null,0,null,null,null,0,null,null,null,0,null,null,null,0,0,"","",""]
[null,null,"",null,null,null,0,null,null,null,0,null,null,null,0,null,null,null,0,0,"","",""]
[null,null,"",null,null,null,0,null,null,null,0,null,null,null,0,null,null,null,0,0,"","",""]
[null,null,"",null,null,null,0,null,null,null,0,null,null,null,0,null,null,null,0,0,"","",""]
[null,null,"",null,null,null,0,null,null,null,0,null,null,null,0,null,null,null,0,0,"","",""]
[null,null,"",null,null,null,0,null,null,null,0,null,null,null,0,null,null,null,0,0,"","",""]
[null,null,"",null,null,null,0,null,null,null,0,null,null,null,0,null,null,null,0,0,"","",""]
[null,null,"",null,null,null,0,null,null,null,0,null,null,null,0,null,null,null,0,0,"","",""]
[null,null,"",null,null,null,0,null,null,null,0,null,null,null,0,null,null,null,0,0,"","",""]
[null,null,"",null,null,null,0,null,null,null,0,null,null,null,0,null,null,null,0,0,"","",""]
[null,null,"",null,null,null,0,null,null,null,0,null,null,null,0,null,null,null,0,0,"","",""]
[null,null,"",null,null,null,0,null,null,null,0,null,null,null,0,null,null,null,0,0,"","",""]
[null,null,"",null,null,null,0,null,null,null,0,null,null,null,0,null,null,null,0,0,"","",""]
[null,null,{"$f":"IF($B9991<>\"\",VLOOKUP($B9991,Tbl_Reference,2,0),\"\")","v":""},null,null,null,0,null,null,null,0,null,null,null,0,null,null,null,0,0,{"$f":"IF($B9991<>\"\",VLOOKUP($B9991,Tbl_Reference,3,0),\"\")","v":""},{"$f":"IF($B9991<>\"\",VLOOKUP($B9991,Tbl_Reference,4,0),\"\")","v":""},""]
[null,null,"",null,null,null,{"$f":"SUM(D9992:F9992)","v":0},null,null,null,{"$f":"SUM(H9992:J9992)","v":0},null,null,null,{"$f":"SUM(L9992:N9992)","v":0},null,null,null,{"$f":"SUM(P9992:R9992)","v":0},{"$f":"G9992+K9992+O9992+S9992","v":0},"","",{"$f":"IF(B9992<>\"\",IF(V9992<>0,ROUND(T9992*V9992,2),ROUND(T9992*U9992,2)),\"\")","v":""}]
[null,null,"",null,null,null,0,null,null,null,0,null,null,null,0,null,null,null,0,0,"","",""]
[null,null,"",null,null,null,0,null,null,null,0,null,null,null,0,null,null,null,0,0,"","",""]
[null,null,"",null,null,null,0,null,null,null,0,null,null,null,0,null,null,null,0,0,"","",""]
[null,null,"",null,null,null,0,null,null,null,0,null,null,null,0,null,null,null,0,0,"","",""]
[null,null,"",null,null,null,0,null,null,null,0,null,null,null,0,null,null,null,0,0,"","",""]
[null,null,"",null,null,null,0,null,null,null,0,null,null,null,0,null,null,null,0,0,"","",""]
[null,null,"",null,null,null,0,null,null,null,0,null,null,null,0,null,null,null,0,0,"","",""]
[null,null,"",null,null,null,0,null,null,null,0,null,null,null,0,null,null,null,0,0,"","",""]
[null,null,"",null,null,null,0,null,null,null,0,null,null,null,0,null,null,null,0,0,"","",""]
[null,null,"",null,null,null,0,null,null,null,0,null,null,null,0,null,null,null,0,0,"","",""]
[null,null,"",null,null,null,0,null,null,null,0,null,null,null,0,null,null,null,0,0,"","",""]
[null,null,"",null,null,null,0,null,null,null,0,null,null,null,0,null,null,null,0,0,"","",""]

{"sheet":"Reference","index":1,"n_rows":761,"n_cols":10,"rows_kept":761,"cut":false,"hidden":false,"merged":[]}
["CATEGORY LIST","CATEGORYLOOKUP","CATEGORY","ITEM","UNIT OF MEASURE","UNIT PRICE","MARKED UP PRICE"]
["Common Electrical Supplies","Lst_Electrical","Common Electrical Supplies","BALLAST, 18 watts","piece",103.5,108.68,null,"count all rows - filled up",{"$f":"COUNTA(Input!B7:B10004)","v":0}]
["Common Computer Supplies","Lst_CompSupplies","Common Electrical Supplies","BALLAST, 36 watts","piece",103.5,108.68,null,"count all rows - ppmp filled up",{"$f":"COUNTA(PPMP!B13:B14)","v":0}]
["Common Office Supplies","Lst_OfficeSupplies","Common Electrical Supplies","BATTERY, dry cell, AA, 1.5 volts, alkaline","pack",50,52.5]
["Common Office Devices","Lst_OfficeDevices","Common Electrical Supplies","BATTERY, size AAA, alkaline, 2 pcs./packet","packet",50,52.5]
["Common Janitorial Supplies","Lst_JanSupplies","Common Electrical Supplies","BATTERY, size C, 1.5 volts","piece",28,29.4]
["Legal Size Paper","Lst_LegalPaper","Common Electrical Supplies","BATTERY, size D, alkaline, 2 pcs./packet","packet",32,33.6]
["Common Office Equipment","Lst_OfficeEquip","Common Electrical Supplies","COMPACT FLUORESCENT LIGHT, 16 watts","piece",160,168]
["Medical Supplies","Lst_Medical","Common Electrical Supplies","COMPACT FLUORESCENT LIGHT, 18 watts","piece",168.5,176.93]
["Seminars and Trainings","Lst_Seminars","Common Electrical Supplies","COMPACT FLUORESCENT LIGHT, 22 watts","piece",160,168]
["Tarpaulin With Layout","Lst_TarpLayout","Common Electrical Supplies","EXTENSION WIRE, 5 meters with 4 socket outlet","set",245,257.25]
["Tarpaulin Without Layout","Lst_Tarp","Common Electrical Supplies","FLAT CORD WIRE, no. 16","meter",26,27.3]
[null,null,"Common Electrical Supplies","FLUORESCENT LAMP, tubular, 18 watts","piece",75,78.75]
[null,null,"Common Electrical Supplies","FLUORESCENT LAMP, tubular, 20 watts","piece",92.5,97.13]
[null,null,"Common Electrical Supplies","FLUORESCENT LAMP, tubular, 36 watts","piece",75,78.75]
[null,null,"Common Electrical Supplies","FLUORESCENT LAMP, tubular, 110 watts","piece",103,108.15]
[null,null,"Common Electrical Supplies","FLUORESCENT LIGHTING FIXTURE, 1 x 18W","set",490,514.5]
[null,null,"Common Electrical Supplies","FLUORESCENT LIGHTING FIXTURE, 1 x 36W","set",655,687.75]
[null,null,"Common Electrical Supplies","FUSE, 30 amperes","piece",33,34.65]
[null,null,"Common Electrical Supplies","FUSE, 60 amperes","piece",50,52.5]
[null,null,"Common Electrical Supplies","OUTLET, 4 gangs, heavy duty","piece",71.5,75.08]
[null,null,"Common Electrical Supplies","STARTER, 4-40 watts","piece",11.5,12.08]
[null,null,"Common Electrical Supplies","TAPE, ELECTRICAL, 18mm x 16M min","roll",31,32.549999999999997]
[null,null,"Common Electrical Supplies","UNINTERRUPTIBLE POWER SUPPLY, 600 VA","unit",2300,2325]
[null,null,"Common Electrical Supplies","UNINTERRUPTIBLE POWER SUPPLY, 1500 VA","unit",6450,6475]
[null,null,"Common Computer Supplies","COMPACT DISK RECORDABLE, min. of 700MB, 1x - 52x minimum speed, 80 min recording time with plastic case","piece",15,15.75]
[null,null,"Common Computer Supplies","COMPACT DISK REWRITABLE, 700MB min. capacity, 80 minutes recording time, 4x - 10x min speed with plastic case","piece",30,31.5]
[null,null,"Common Computer Supplies","COMPACT DISK STORAGE CASE, 50 CDs capacity, min, made of durable plastic or nylon fabric, double sided sleeves, with closure","piece",15,15.75]
[null,null,"Common Computer Supplies","CONTINUOUS FORMS, CARBONLESS, 1 ply, 11\" x 14-7/8\", 2000 sheets/box","box",890.35,900]
[null,null,"Common Computer Supplies","CONTINUOUS FORMS, CARBONLESS, 1 ply, 11\" x 9-1/2\", 2000 sheets/box","box",600,630]
[null,null,"Common Computer Supplies","CONTINUOUS FORMS, CARBONLESS, 2 ply, 11\" x 14-7/8\", 1000 sets/box","box",1400,1425]
[null,null,"Common Computer Supplies","CONTINUOUS FORMS, CARBONLESS, 2 ply, 11\" x 9-1/2\", 1000 sets/box","box",685.15,725]
[null,null,"Common Computer Supplies","CONTINUOUS FORMS, CARBONLESS, 3 ply,  11\" x 14-7/8\", 500 sets/box","box",950,975]
[null,null,"Common Computer Supplies","CONTINUOUS FORMS, CARBONLESS, 3 ply, 11\" x 9-1/2\", 500 sets/box","box",725,761.25]
[null,null,"Common Computer Supplies","COOLER, Netbook","piece",370,388.5]
[null,null,"Common Computer Supplies","DISKETTE, floppy disk, 3.5\", double sided, high density, formatted 10s/pack","pack",250,262.5]
[null,null,"Common Computer Supplies","DRUM UNIT, Brother DR3000","cart",9750,9775]
[null,null,"Common Computer Supplies","DRUM UNIT, Brother DR3115","cart",8500,8525]
[null,null,"Common Computer Supplies","DRUM UNIT, Brother DR4000","cart",8250,8275]
[null,null,"Common Computer Supplies","DRUM UNIT, Brother DR7000","cart",9100,9125]
[null,null,"Common Computer Supplies","DVD RECORDABLE, 16x speed, 4.7GB capacity with plastic case","piece",20,21]
[null,null,"Common Computer Supplies","DVD REWRITABLE, 4x speed, 4.7GB capacity with plastic case","piece",20,21]
[null,null,"Common Computer Supplies","ENCLOSURE, for hard drive 3.5\"","piece",640,672]
[null,null,"Common Computer Supplies","EXTERNAL HARD DRIVE, 1 TB, 2.5\" HDD, USB 3.0","piece",3759,3775]
[null,null,"Common Computer Supplies","EXTERNAL HARD DRIVE, 500GB, 2.5\"HDD, USB 3.0","piece",2770,2785]
[null,null,"Common Computer Supplies","FLASH DRIVE, 16 GB capacity","piece",320,336]
[null,null,"Common Computer Supplies","FLASH DRIVE, 4 GB capacity","piece",250,262.5]
[null,null,"Common Computer Supplies","FLASH DRIVE, 8 GB capacity","piece",250,262.5]
[null,null,"Common Computer Supplies","HDMI, Type D, Micro, for Acer Laptop","piece",700,735]
[null,null,"Common Computer Supplies","INK CART, Brother LC39BK, black","cart",810,850.5]
[null,null,"Common Computer Supplies","INK CART, Brother LC39C, cyan","cart",540,567]
[null,null,"Common Computer Supplies","INK CART, Brother LC39M, magenta","cart",540,567]
[null,null,"Common Computer Supplies","INK CART, Brother LC39Y, yellow","cart",540,567]
[null,null,"Common Computer Supplies","INK CART, Brother LC67B, black","cart",1050,1075]
[null,null,"Common Computer Supplies","INK CART, Brother LC67HYBK, black","cart",1730,1755]
[null,null,"Common Computer Supplies","INK CART, Brother LC67HYC, cyan","cart",1060,1085]
[null,null,"Common Computer Supplies","INK CART, Brother LC67HYM, magenta","cart",1060,1085]
[null,null,"Common Computer Supplies","INK CART, Brother LC67HYY, yellow","cart",1060,1085]
[null,null,"Common Computer Supplies","INK CART, Brother LC67M, magenta","cart",660,693]
[null,null,"Common Computer Supplies","INK CART, Brother LC67Y, yellow","cart",660,693]
[null,null,"Common Computer Supplies","INK CART, Brother Part No. LC38B, black","cart",790,829.5]
[null,null,"Common Computer Supplies","INK CART, Brother Part No. LC38C, cyan","cart",550,577.5]
[null,null,"Common Computer Supplies","INK CART, Brother Part No. LC38M, magenta","cart",550,577.5]
[null,null,"Common Computer Supplies","INK CART, Brother Part No. LC38Y, yellow","cart",550,577.5]
[null,null,"Common Computer Supplies","INK CART, Brother Part No. LC40BK, black","cart",750,787.5]
[null,null,"Common Computer Supplies","INK CART, Brother Part No. LC40C, cyan","cart",450,472.5]
[null,null,"Common Computer Supplies","INK CART, Brother Part No. LC40M, magenta","cart",450,472.5]
[null,null,"Common Computer Supplies","INK CART, Brother Part No. LC40Y, yellow","cart",450,472.5]
[null,null,"Common Computer Supplies","INK CART, Brother Part No. LC67C, cyan","cart",660,693]
[null,null,"Common Computer Supplies","INK CART, Canon Part No. CL-741, colored","cart",1250,1265]
[null,null,"Common Computer Supplies","INK CART, Canon Part No. CL-811, colored","cart",1050,1065]
[null,null,"Common Computer Supplies","INK CART, Canon Part No. CL-98, colored","cart",925,971.25]
[null,null,"Common Computer Supplies","INK CART, Canon Part No. CLI-726, black","cart",745,782.25]
[null,null,"Common Computer Supplies","INK CART, Canon Part No. CLI-726, cyan","cart",745,782.25]
[null,null,"Common Computer Supplies","INK CART, Canon Part No. CLI-726, magenta","cart",745,782.25]
[null,null,"Common Computer Supplies","INK CART, Canon Part No. CLI-726, yellow","cart",745,782.25]
[null,null,"Common Computer Supplies","INK CART, Canon Part No. PG-740, black","cart",945,992.25]
[null,null,"Common Computer Supplies","INK CART, Canon Part No. PG-810, black","cart",830,850]
[null,null,"Common Computer Supplies","INK CART, Canon Part No. PG-830, black","cart",830,850]
[null,null,"Common Computer Supplies","INK CART, Canon Part No. PGI-725, black","cart",780,819]
[null,null,"Common Computer Supplies","INK CART, Epson C13T028091, black, for printer Stylus C60/CX3100 ","cart",1495,1525]
[null,null,"Common Computer Supplies","INK CART, Epson C13T029091, color, for printer Stylus C60/ C50/ CX3100 ","cart",1330,1350]
[null,null,"Common Computer Supplies","INK CART, Epson C13T032190, black, for printer Stylus C80/C82/ CX5100 ","cart",1610,1625]
[null,null,"Common Computer Supplies","INK CART, Epson C13T042290, cyan, for printer Stylus C82/CX5100 ","cart",765,803.25]
[null,null,"Common Computer Supplies","INK CART, Epson C13T042390, magenta, for printer Stylus C82/CX5100 ","cart",765,803.25]
[null,null,"Common Computer Supplies","INK CART, Epson C13T042490, yellow, for printer Stylus C82/CX5100 ","cart",765,803.25]
[null,null,"Common Computer Supplies","INK CART, Epson C13T046190, black, for printer Stylus C63/C83 ","cart",865,908.25]
[null,null,"Common Computer Supplies","INK CART, Epson C13T047290, cyan, for printer Stylus C63/C83 ","cart",600,630]
[null,null,"Common Computer Supplies","INK CART, Epson C13T047390, magenta, for printer Stylus C63/C83 ","cart",600,630]
[null,null,"Common Computer Supplies","INK CART, Epson C13T047490, yellow, for printer Stylus C63/C83 ","cart",600,630]
[null,null,"Common Computer Supplies","INK CART, Epson C13T062190, black, High Cap, for printer Stylus CX3700/4700/C67","cart",886,930.3]
[null,null,"Common Computer Supplies","INK CART, Epson C13T063190, black, Std Cap, for printer Stylus CX3700/4700/C67","cart",700,735]
[null,null,"Common Computer Supplies","INK CART, Epson C13T063290, cyan, Std Cap, for printer Stylus CX3700/4700/C67","cart",700,735]
[null,null,"Common Computer Supplies","INK CART, Epson C13T063390, magenta, Std Cap, for printer Stylus CX3700/4700/C67","cart",700,735]
[null,null,"Common Computer Supplies","INK CART, Epson C13T063490, yellow, Std Cap, for printer Stylus CX3700/4700/C67","cart",700,735]
[null,null,"Common Computer Supplies","INK CART, Epson C13T103190, black, for printer Stylus T40W/TX600FW","cart",1230,1250]
[null,null,"Common Computer Supplies","INK CART, Epson C13T103290, cyan, for printer StylusT40W/TX600FW","cart",785,824.25]
[null,null,"Common Computer Supplies","INK CART, Epson C13T103390, magenta, for printer Stylus T40W/TX600FW","cart",785,824.25]
[null,null,"Common Computer Supplies","INK CART, Epson C13T103490, yellow, for printer Stylus T40W/TX600FW","cart",785,824.25]
[null,null,"Common Computer Supplies","INK CART, Epson C13T111190, black, for printer Stylus Photo R270/ 290/390/RX590, High Cap","cart",1220,1250]
[null,null,"Common Computer Supplies","INK CART, Epson C13T111290, cyan, for printer Stylus Photo R270/ 290/390/RX590, High Cap","cart",1220,1250]
[null,null,"Common Computer Supplies","INK CART, Epson C13T111390, magenta, for printer Stylus Photo R270/ 290/390/RX590, High Cap","cart",1220,1250]
[null,null,"Common Computer Supplies","INK CART, Epson C13T111490, yellow, for printer Stylus Photo R270/ 290/390/RX590, High Cap","cart",1220,1250]
[null,null,"Common Computer Supplies","INK CART, Epson C13T111590, Light cyan, for printer Stylus Photo R270/ 290/390/RX590, High Cap","cart",1220,1250]
[null,null,"Common Computer Supplies","INK CART, Epson C13T111690, Light magenta, for printer Stylus Photo R270/ 290/390/RX590, High Cap","cart",1220,1250]
[null,null,"Common Computer Supplies","INK CART, Epson C13T112190, black,  for printer Stylus Photo R270/290/390, RX590, Std Cap","cart",878,921.9]
[null,null,"Common Computer Supplies","INK CART, Epson C13T112290, cyan,  for printer Stylus Photo R270/290/390, RX590, Std Cap","cart",878,921.9]
[null,null,"Common Computer Supplies","INK CART, Epson C13T112390, magenta,  for printer Stylus Photo R270/290/390, RX590, Std Cap","cart",878,921.9]
[null,null,"Common Computer Supplies","INK CART, Epson C13T112490, yellow,  for printer Stylus Photo R270/290/390, RX590, Std Cap","cart",878,921.9]
[null,null,"Common Computer Supplies","INK CART, Epson C13T112590, Light cyan,  for printer Stylus Photo R270/290/390, RX590, Std Cap","cart",878,921.9]
[null,null,"Common Computer Supplies","INK CART, Epson C13T112690, Light magenta, for printer Stylus Photo R270/290/390, RX590, Std Cap","cart",878,921.9]
[null,null,"Common Computer Supplies","INK CART, Epson C13T141190, black, for ME 32/320/620F - 141","cart",450,472.5]
[null,null,"Common Computer Supplies","INK CART, Epson C13T141290, cyan, for ME 32/320/620F - 141","cart",480,504]
[null,null,"Common Computer Supplies","INK CART, HP  C4937A (HP 18) , cyan,  for HP Officejet Pro K5300, K5400dn, K5400dtn, K8600, K8600dn, L7380, L7580, L7590","cart",1100,1125]
[null,null,"Common Computer Supplies","INK CART, HP 51645A (HP 45), black, for HP Deskjet 710c, 720c, 820cxi, 830c, 850c, 870cxi, 880c, 890c, 895cxi, 930c, 950c, 960c, 970cxi, 990cxi, 1000cxi, 1120c, 1125c, 1180c, 1220c, 1600c, 1600cm, 6122, 9300, HP Officejet G55, G85, G95, K60, K80, r45, r65, t45, t65 All-in-One  HP Officejet Pro 1150c, 1170c, 1175c All-in-One, HP Photosmart P1000, P1100, P1215, P1218","cart",1780,1805]
[null,null,"Common Computer Supplies","INK CART, HP C4836A (HP 11), cyan  28 ml, HP Officejet 9110, 9120, 9130 All-in-One, HP Business Inkjet 1100 printer series, 1200 printer series,  2230, 2280 printer series, 2300 printer series, 2600 printer series, HP Colour Printer cp1700 series","cart",1950,1975]
[null,null,"Common Computer Supplies","INK CART, HP C4837A (HP 11), magenta, 28 ml, for HP Officejet 9110, 9120, 9130 All-in-One, HP Business Inkjet 1100 printer series, 1200 printer series,  2230, 2280 printer series, 2300 printer series, 2600 printer series, HP Colour Printer cp1700 series ","cart",1950,1975]
[null,null,"Common Computer Supplies","INK CART, HP C4838A, (HP11), yellow, for HP: Business Inkjet: 1000, 1100d, 1100dtn, 1200, 1200d, 1200dn, 1200dtn, 1200dtwn, 1700d, 1700ps, 2200, 2200se, 2200xi, 2230, 2250, 2250tn, 2280, 2280tn, 2300, 2300dtn, 2300n, 2600, 2600dn, 2800, 2800dt, 2800dtn; Color Inkjet: CP1700, CP1700d, CP1700ps; Color LaserJet: 2600dn, 2600dtn; Designjet: 10ps, 20ps, 50ps, 70, 100, 100 Plus, 110, 110 Plus, 110 Plus NR, 110 Plus R, 111, 120, 120nr, 500, 500 Plus, 500ps, 500ps Plus, 510ps, 800, 800ps, 815; Officejet: 9110, 9120, 9130; Officejet Pro: K8 ","cart",1950,1975]
[null,null,"Common Computer Supplies","INK CART, HP C4844A (HP 10), black, 69mL, for HP Officejet 9110, 9120, 9130 All-in-One, HP Business Inkjet 1100+ printer series, 1200+ printer series, 2000 printer series, 2230+, 2280+ printer series, 2300+ printer series, 2500 printer series, 2600+ printer series, HP Colour Printer cp1700 series","cart",1950,1975]
[null,null,"Common Computer Supplies","INK CART, HP C4906AA (HP 940XL), black, HP Officejet Pro 8000, 8500","cart",2300,2325]
[null,null,"Common Computer Supplies","INK CART, HP C4908AA (HP 940XL), magenta, for HP Officejet Pro 8000, 8500","cart",1800,1825]
[null,null,"Common Computer Supplies","INK CART, HP C6578A/D (HP 78), tricolor, for HP Deskjet 920c, 930c, 948c, 950c, 960c, 970cxi, 990cxi, 1180c, 1220c, 3820, 6122, 9300 HP Officejet 5110, G55, G85, G95, K60, K80, v40 All-in-One, HP PSC 750, 950 All-in-One, HP Photosmart P1000, P1100, P1215, P1218","cart",1800,1825]
[null,null,"Common Computer Supplies","INK CART, HP C6615DA (HP 15), black, for HP Deskjet 810c, 840c, 845c, 920c, 948c, 3820, HP Officejet 5110, v40 All-in-One, HP PSC 500, 750, 950 All-in-One","cart",1800,1825]
[null,null,"Common Computer Supplies","INK CART, HP C6656AA (HP 56), black, for HP Deskjet 840c, 845c","cart",1500,1515]
[null,null,"Common Computer Supplies","INK CART, HP C6657AA (HP 57), tri-color, for HP Deskjet 450 printer series, 5160, 5550, 5650, 5652, 9650, 9680, HP Officejet 4110, 4255, 5510, 6110 All-in-One, HP PSC 1110, 1210, 1315, 1350, 2110, 2210, 2310 All-in-One, HP PSC 2410, 2510, Photosmart All-in-One, HP Photosmart 7150, 7260, 7268, 7450, 7550, 7660, 7760, 7960","cart",1750,1765]
[null,null,"Common Computer Supplies","INK CART, HP C8727AA (HP 27), black, 10mL, for HP Deskjet 3320, 3325, 3420, 3535, 3550, 3650, 3744, 3745, 3845, HP PSC 1110, 1210, 1315 All-in-One","cart",1150,1175]
[null,null,"Common Computer Supplies","INK CART, HP C8765WA (HP 94), black, 11 mL, for HP Deskjet 3320, 3325, 3420, 3535, 3550, 3650, 3744, 3745, 3845, HP Officejet 4110, 4255 All-in-One, HP PSC 1110, 1210, 1315 All-in-One","cart",1305,1330]
[null,null,"Common Computer Supplies","INK CART, HP C8766WA (HP 95), tri-color, for HP Deskjet 460, 5740, 6540, 6840, HP Officejet 7410 All-in-One, HP PSC 2355 All-in-One, HP Photosmart 325, 375, 2610, 2710, 8150, 8450","cart",1565,1580]
[null,null,"Common Computer Supplies","INK CART, HP C8767WA(HP 96), black , 21 ml, for HP Deskjet 5740, 6540, 6840, 9800, 9860, 9808, HP Photosmart 8030, 8150, 8450, 875,  HP Officejet K7100, 7210, 7410 All-in-One","cart",1950,1975]
[null,null,"Common Computer Supplies","INK CART, HP C9351AA (HP 21), black, for HP Deskjet 3920, 3940, HP PSC 1410, 1402","cart",790,829.5]
[null,null,"Common Computer Supplies","INK CART, HP C9352AA (HP 22), tri-color, for HP Deskjet 3920, 3940, HP Officejet 5610, HP PSC 1410, 1402","cart",890,934.5]
[null,null,"Common Computer Supplies","INK CART, HP C9363WA (HP 97), tricolor , 14 ml, for HP Deskjet 5740, 6540, 6840, 9800, 9860, 9808, HP Photosmart 2575, 2610, 2710 All-in-On,  HP PSC 1610, 2355 All-in-One","cart",2400,2425]
[null,null,"Common Computer Supplies","INK CART, HP CB314A (HP 900), black, for HP Deskjet 900, 910, 915","cart",390,409.5]
[null,null,"Common Computer Supplies","INK CART, HP CB315A (HP 900), tri-color, for HP Deskjet 900, 910, 915","cart",490,514.5]
[null,null,"Common Computer Supplies","INK CART, HP CB318WA(HP 564), cyan, for HP Photosmart D5400, C5380, C6380, Photosmart Pro B8550","cart",700,735]
[null,null,"Common Computer Supplies","INK CART, HP CB335WA(HP74 ), black , 4.5 ml, for HP Deskjet D4260, D4360, HP Photosmart C4280, C4380, C4480, C5280 All-in-One, HP Officejet J5780, J6480 All-in-One","cart",1000,1050]
[null,null,"Common Computer Supplies","INK CART, HP CB337WA (HP75),tricolor, 3.5 ml,  for HP Deskjet D4260, D4360, HP Photosmart C4280, C4380, C4480, C5280 All-in-One, HP Officejet J5780, J6480 All-in-One","cart",1100,1125]
[null,null,"Common Computer Supplies","INK CART, HP CC640WA, (HP60), black","cart",750,787.5]
[null,null,"Common Computer Supplies","INK CART, HP CC643WA, (HP60), Tri-color","cart",850,892.5]
[null,null,"Common Computer Supplies","INK CART, HP CC641WA (HP60XL), black  12 ml, for HP Deskjet D2560, F4230, F4250, F4280 All-in-One","cart",900,945]
[null,null,"Common Computer Supplies","INK CART, HP CC660AA(HP702), black, 20 ml, for HP Officejet J3508, J3608, J5508 All-in-One","cart",1250,1275]
[null,null,"Common Computer Supplies","INK CART, HP CD887AA (HP703), black deskjet, for HP Deskjet D730, F735 All-in-One","cart",400,420]
[null,null,"Common Computer Supplies","INK CART, HP CD888AA(HP 703), tricolor deskjet, for HP Deskjet D730, F735 All-in-One","cart",400,420]
[null,null,"Common Computer Supplies","INK CART, HP CD971AA (HP 920), black, for HP Officejet 6000, 7000","cart",1350,1375]
[null,null,"Common Computer Supplies","INK CART, HP CD972AA (HP920XL), cyan, for HP Officejet 6000, 7000","cart",830,871.5]
[null,null,"Common Computer Supplies","INK CART, HP CD973AA (HP920XL), magenta, for HP Officejet 6000, 7000","cart",830,871.5]
[null,null,"Common Computer Supplies","INK CART, HP CD974AA (HP 920XL), yellow, for HP Officejet 6000, 7000","cart",830,871.5]
[null,null,"Common Computer Supplies","INK CART, HP CD975AA (HP920XL), black, for HP Officejet 6000, 7000","cart",1350,1375]
[null,null,"Common Computer Supplies","INK CART, HP CH561WA (HP 61), black","cart",720,756]
[null,null,"Common Computer Supplies","INK CART, HP CH562WA (HP 61), color ink","cart",790,829.5]
[null,null,"Common Computer Supplies","INK CART, HP CN 639WA, black, for HP Deskjet D2650","cart",850,892.5]
[null,null,"Common Computer Supplies","INK CART, HP CN 640WA, color, for HP Deskjet D2650","cart",950,997.5]
[null,null,"Common Computer Supplies","INK CART, HP CN045AA (950XL), black","cart",1850,1875]
[null,null,"Common Computer Supplies","INK CART, HP CN046AA (951XL), cyan","cart",1450,1475]
[null,null,"Common Computer Supplies","INK CART, HP CN047AA (951XL), magenta","cart",1450,1475]
[null,null,"Common Computer Supplies","INK CART, HP CN048AA (950XL), yellow","cart",1450,1475]
[null,null,"Common Computer Supplies","INK CART, HP CN692AA (HP 704), black","cart",400,420]
[null,null,"Common Computer Supplies","INK CART, HP CN693AA (HP704), tri-color","cart",400,420]
[null,null,"Common Computer Supplies","INK CART, HP CZ107AA (HP 678), black","cart",400,420]
[null,null,"Common Computer Supplies","INK CART, HP CZ108AA (HP 678), tricolor","cart",400,420]
[null,null,"Common Computer Supplies","INK CART, HP CZ121A (HP 685A), black","cart",460,483]
[null,null,"Common Computer Supplies","INK CART, HP CZ121A (HP 685A), cyan","cart",350,367.5]
[null,null,"Common Computer Supplies","INK CART, HP CZ121A (HP 685A), magenta","cart",350,367.5]
[null,null,"Common Computer Supplies","INK CART, HP CZ121A (HP 685A), yellow","cart",350,367.5]
[null,null,"Common Computer Supplies","INK CART, HP Q8893AA (C8728AA) (HP 28), tri-color, for HP Deskjet 3320, 3325, 3420, 3535, 3550, 3650, 3744, 3745, 3845, HP Officejet 4110, 4255 All-in-One, HP PSC 1110, 1210, 1315 All-in-One","cart",1350,1375]
[null,null,"Common Computer Supplies","INK CART, Lexmark # 17, black, PN 10N0217","cart",1280,1305]
[null,null,"Common Computer Supplies","INK CART, Lexmark # 27, colored, PN 10N0227","cart",1550,1575]
[null,null,"Common Computer Supplies","INK CART, Lexmark black #14, PN 18C2090A","cart",1280,1305]
[null,null,"Common Computer Supplies","INK CART, Lexmark black #34, PN 18C0034A","cart",2100,2125]
[null,null,"Common Computer Supplies","INK CART, Lexmark Color #15, PN 18C2110A","cart",1550,1575]
[null,null,"Common Computer Supplies","INK CART, Lexmark Color #35, PN 18C0035A","cart",2500,2525]
[null,null,"Common Computer Supplies","INK REFILL, Brother MFC-J220, black, 100ml","bottle",500,525]
[null,null,"Common Computer Supplies","INK REFILL, Brother MFC-J220, cyan, 100ml","bottle",500,525]
[null,null,"Common Computer Supplies","INK REFILL, Brother MFC-J220, magenta 100ml","bottle",500,525]
[null,null,"Common Computer Supplies","INK REFILL, Brother MFC-J220, yellow, 100ml","bottle",500,525]
[null,null,"Common Computer Supplies","INK REFILL, EPSON T6641, black, for Epson L100, L110, L120, L200, L210, L300, L350, L355","bottle",315,330]
[null,null,"Common Computer Supplies","INK REFILL, EPSON T6642, cyan, for Epson L100, L110, L120, L200, L210, L300, L350, L355","bottle",315,330]
[null,null,"Common Computer Supplies","INK REFILL, EPSON T6643, magenta, for Epson L100, L110, L120, L200, L210, L300, L350, L355","bottle",315,330]
[null,null,"Common Computer Supplies","INK REFILL, EPSON T6644, yellow, for Epson L100, L110, L120, L200, L210, L300, L350, L355","bottle",315,330]
[null,null,"Common Computer Supplies","INK, black for Brother DCP J100","cart",460,483]
[null,null,"Common Computer Supplies","INK, Colored for Brother DCP J100","cart",460,483]
[null,null,"Common Computer Supplies","INTERNAL HARD DRIVE, 500gb capacity, desktop computer","piece",2250,2275]
[null,null,"Common Computer Supplies","INTERNAL HARD DRIVE, 500gb capacity, laptop","piece",2250,2275]
[null,null,"Common Computer Supplies","MOUSE, optical, USB connection type","piece",215,225.75]
[null,null,"Common Computer Supplies","NETWORK SWITCH, 8 port","piece",650,682.5]
[null,null,"Common Computer Supplies","PHOTOCONDUCTOR KIT, Lexmark PN 12A8302","cart",5450,5475]
[null,null,"Common Computer Supplies","PHOTOCONDUCTOR KIT, Lexmark PN E250X22G","cart",3050,3075]
[null,null,"Common Computer Supplies","PHOTOCONDUCTOR KIT, Lexmark PN E260X22G","cart",2800,2825]
[null,null,"Common Computer Supplies","RAM, 2 GB, DDR3, desktop computer","piece",730,766.5]
[null,null,"Common Computer Supplies","RIBBON CART, Epson C13SO15506(7753) Fabric, for printer LQ 300/300+II & 580","cart",170,178.5]
[null,null,"Common Computer Supplies","RIBBON CART, Epson C13SO15568, Color, for printer LX-300","cart",160,168]
[null,null,"Common Computer Supplies","RIBBON CART, Epson Part No. C13SO15632, black for printer LX310","cart",150,157.5]
[null,null,"Common Computer Supplies","RIBBON CART, Lexmark 11A3550 for Printer Models 23xx series","cart",600,630]
[null,null,"Common Computer Supplies","RIBBON, Epson RN 8750","cart",160,168]
[null,null,"Common Computer Supplies","RIBBON, Epson RN 8755","cart",190,199.5]
[null,null,"Common Computer Supplies","RIBBON, Epson RN SO 15083/SO 15086","cart",950,997.5]
[null,null,"Common Computer Supplies","RIBBON, Epson RN SO 15327","cart",590,619.5]
[null,null,"Common Computer Supplies","RIBBON, Refill","piece",35,36.75]
[null,null,"Common Computer Supplies","TONER CART, Brother Part No. TN-150BK, black","cart",3300,3325]
[null,null,"Common Computer Supplies","TONER CART, Brother Part No. TN-150C, cyan","cart",3300,3325]
[null,null,"Common Computer Supplies","TONER CART, Brother Part No. TN-150M, magenta","cart",3300,3325]
[null,null,"Common Computer Supplies","TONER CART, Brother Part No. TN-150Y, yellow","cart",3300,3325]
[null,null,"Common Computer Supplies","TONER CART, Brother Part No. TN3030","cart",3950,3975]
[null,null,"Common Computer Supplies","TONER CART, Brother Part No. TN3145, black","cart",3490,3515]
[null,null,"Common Computer Supplies","TONER CART, Brother Part No. TN3290, black","cart",5750,5775]
[null,null,"Common Computer Supplies","TONER CART, Brother Part No. TN3350, black","cart",5790,5815]
[null,null,"Common Computer Supplies","TONER CART, Brother Part No. TN4100, black","cart",5500,5525]
[null,null,"Common Computer Supplies","TONER CART, Brother TN-155BK, black","cart",5250,5275]
[null,null,"Common Computer Supplies","TONER CART, Brother TN-155C, cyan","cart",6950,6975]
[null,null,"Common Computer Supplies","TONER CART, Brother TN-155M, magenta","cart",6950,6975]
[null,null,"Common Computer Supplies","TONER CART, Brother TN-155Y, yellow","cart",3450,3475]
[null,null,"Common Computer Supplies","TONER CART, Brother TN-2025","cart",2400,2425]
[null,null,"Common Computer Supplies","TONER CART, Brother TN-2130","cart",2190,2215]
[null,null,"Common Computer Supplies","TONER CART, Brother TN-2150","cart",3000,3025]
[null,null,"Common Computer Supplies","TONER CART, Brother TN-2260, black, original, for HL2240D, 2270DW, DCP7065, MFC7360, 7470D, 7860DW","cart",2150,2175]
[null,null,"Common Computer Supplies","TONER CART, Brother TN3060","cart",5630,5655]
[null,null,"Common Computer Supplies","TONER CART, HP C7115A, black, for HP Laserjet 1000, 1200 printer series, 3300 mfp printer series, 3380 All-in-One","cart",2590,2615]
[null,null,"Common Computer Supplies","TONER CART, HP CB381A, cyan, for HP Color LaserJet CP6015 printer series  ","cart",18500,18525]
[null,null,"Common Computer Supplies","TONER CART, HP CB382A, yellow, for HP Color LaserJet CP6015 printer series  ","cart",18500,18525]
[null,null,"Common Computer Supplies","TONER CART, HP CB383A, magenta, for HP Color LaserJet CP6015 printer series  ","cart",18500,18525]
[null,null,"Common Computer Supplies","TONER CART, HP CB390A, black, for HP Color LaserJet CM6030/CM6040 MFP ","cart",3490,3515]
[null,null,"Common Computer Supplies","TONER CART, HP CB435A, black, for HP Laserjet P1005, P1006 printer series","cart",2205,2230]
[null,null,"Common Computer Supplies","TONER CART, HP CB436A, black, for HP Laserjet P1505 printer series","cart",2000,2025]
[null,null,"Common Computer Supplies","TONER CART, HP CB540A, black, for HP Color LaserJet CP1215, CP1510 printer series, CM1312 MFP  ","cart",3300,3325]
[null,null,"Common Computer Supplies","TONER CART, HP CB541A, cyan, for HP Color LaserJet CP1215, CP1510 printer series, CM1312 MFP  ","cart",3300,3325]
[null,null,"Common Computer Supplies","TONER CART, HP CB542A, yellow, for HP Color LaserJet CP1215, CP1510 printer series, CM1312 MFP  ","cart",3300,3325]
[null,null,"Common Computer Supplies","TONER CART, HP CB543A, magenta, for HP Color LaserJet CP1215, CP1510 printer series, CM1312 MFP  ","cart",3390,3415]
[null,null,"Common Computer Supplies","TONER CART, HP CC364A, black, for HP LaserJet P4014, P4015, P4515 printer series ","cart",8950,8975]
[null,null,"Common Computer Supplies","TONER CART, HP CC530A, black, for HP Color LaserJet CP2025 printer series  ","cart",6900,6925]
[null,null,"Common Computer Supplies","TONER CART, HP CC531A, cyan, for HP Color LaserJet CP2025 printer series  ","cart",6350,6375]
[null,null,"Common Computer Supplies","TONER CART, HP CC532A, yellow, for HP Color LaserJet CP2025 printer series  ","cart",6350,6375]
[null,null,"Common Computer Supplies","TONER CART, HP CC533A, magenta, for HP Color LaserJet CP2025 printer series  ","cart",6350,6375]
[null,null,"Common Computer Supplies","TONER CART, HP CE250A, black, for HP Color LaserJet CP3520 printer series  ","cart",6900,6925]
[null,null,"Common Computer Supplies","TONER CART, HP CE251A, cyan, for HP Color LaserJet CP3520 printer series  ","cart",13600,13625]
[null,null,"Common Computer Supplies","TONER CART, HP CE252A, yellow, for HP Color LaserJet CP3520 printer series  ","cart",13600,13625]
[null,null,"Common Computer Supplies","TONER CART, HP CE253A, magenta, for HP Color LaserJet CP3520 printer series   ","cart",13600,13625]
[null,null,"Common Computer Supplies","TONER CART, HP CE255A, black, for HP LaserJet P3010  printer series","cart",8500,8525]
[null,null,"Common Computer Supplies","TONER CART, HP CE260A, black, for HP Color LaserJet Enterprise CP4020 Printer Series ","cart",8500,8525]
[null,null,"Common Computer Supplies","TONER CART, HP CE261A, cyan, for HP Color LaserJet Enterprise CP4020 Printer Series ","cart",15650,15675]
[null,null,"Common Computer Supplies","TONER CART, HP CE262A, yellow, for HP Color LaserJet Enterprise CP4020 Printer Series ","cart",15650,15675]
[null,null,"Common Computer Supplies","TONER CART, HP CE263A, magenta, for HP Color LaserJet Enterprise CP4020 Printer Series ","cart",15650,15675]
[null,null,"Common Computer Supplies","TONER CART, HP CE270A, black, for HP Color LaserJet Enterprise CP5520 Printer Series","cart",13780,13805]
[null,null,"Common Computer Supplies","TONER CART, HP CE271A, cyan, for HP Color LaserJet Enterprise CP5520 Printer Series","cart",21500,21525]
[null,null,"Common Computer Supplies","TONER CART, HP CE272A, yellow, for HP Color LaserJet Enterprise CP5520 Printer Series","cart",21500,21525]
[null,null,"Common Computer Supplies","TONER CART, HP CE273A, magenta, for HP Color LaserJet Enterprise CP5520 Printer Series","cart",21500,21525]
[null,null,"Common Computer Supplies","TONER CART, HP CE278A, black, for HP LaserJet P1566, P1606dn, M1536dnf printer ","cart",3450,3475]
[null,null,"Common Computer Supplies","TONER CART, HP CE285A, black, for HP LaserJet P1102, P1102w,  printer ","cart",2275,2300]
[null,null,"Common Computer Supplies","TONER CART, HP CE310A, black, for HP Color LaserJet Pro CP1020 Printer Series","cart",2665,2680]
[null,null,"Common Computer Supplies","TONER CART, HP CE311A, cyan, for HP Color LaserJet Pro CP1020 Printer Series","cart",2665,2680]
[null,null,"Common Computer Supplies","TONER CART, HP CE312A, yellow, for HP Color LaserJet Pro CP1020 Printer Series","cart",2665,2680]
[null,null,"Common Computer Supplies","TONER CART, HP CE313A, magenta, for HP Color LaserJet Pro CP1020 Printer Series","cart",2665,2680]
[null,null,"Common Computer Supplies","TONER CART, HP CE320A, black, for HP Color LaserJet Pro CP1520, CM1415 Color MFP Printer Series","cart",2665,2680]
[null,null,"Common Computer Supplies","TONER CART, HP CE321A, cyan, for HP Color LaserJet Pro CP1520, CM1415 Color MFP Printer Series","cart",2795,2815]
[null,null,"Common Computer Supplies","TONER CART, HP CE322A, yellow, for HP Color LaserJet Pro CP1520, CM1415 Color MFP Printer Series","cart",2795,2815]
[null,null,"Common Computer Supplies","TONER CART, HP CE323A, magenta, for HP Color LaserJet Pro CP1520, CM1415 Color MFP Printer Series","cart",2795,2815]
[null,null,"Common Computer Supplies","TONER CART, HP CE390A, black, for HP  Laserjet Enterprise 600, M601, 600, M602, 600, M603, M4555 MFP Series","cart",6975,7000]
[null,null,"Common Computer Supplies","TONER CART, HP CE400A, black, for HP Laserjet Enterprise 500 Color M551 Series","cart",7900,7925]
[null,null,"Common Computer Supplies","TONER CART, HP CE401A, cyan, for HP Laserjet Enterprise 500 Color M551 Series","cart",12900,12925]
[null,null,"Common Computer Supplies","TONER CART, HP CE402A, yellow, for HP Laserjet Enterprise 500 Color M551 Series","cart",12900,12925]
[null,null,"Common Computer Supplies","TONER CART, HP CE403A, magenta, for HP Laserjet Enterprise 500 Color M551 Series","cart",12900,12925]
[null,null,"Common Computer Supplies","TONER CART, HP CE410A (HP #305), black","cart",4350,4375]
[null,null,"Common Computer Supplies","TONER CART, HP CE411A (HP #305), cyan","cart",5460,5475]
[null,null,"Common Computer Supplies","TONER CART, HP CE412A (HP #305), yellow","cart",5460,5475]
[null,null,"Common Computer Supplies","TONER CART, HP CE413A (HP #305), magenta","cart",5460,5475]
[null,null,"Common Computer Supplies","TONER CART, HP CE505A, black, for HP LaserJet P2035, P2055  printer series ","cart",2800,2825]
[null,null,"Common Computer Supplies","TONER CART, HP CE740A, black, for HP Color Laserjet Professional CP5220,  Printer Series","cart",7620,7645]
[null,null,"Common Computer Supplies","TONER CART, HP CE741A, cyan, for HP Color Laserjet Professional CP5220,  Printer Series","cart",14600,14625]
[null,null,"Common Computer Supplies","TONER CART, HP CE742A, yellow, for HP Color Laserjet Professional CP5220,  Printer Series","cart",14600,14625]
[null,null,"Common Computer Supplies","TONER CART, HP CE743A, magenta, for HP Color Laserjet Professional CP5220,  Printer Series","cart",14600,14625]
[null,null,"Common Computer Supplies","TONER CART, HP CF210A, (#131), black","cart",3650,3675]
[null,null,"Common Computer Supplies","TONER CART, HP CF211A, (#131), cyan","cart",4500,4525]
[null,null,"Common Computer Supplies","TONER CART, HP CF212A, (#131), yellow","cart",4500,4525]
[null,null,"Common Computer Supplies","TONER CART, HP CF213A, (#131), magenta","cart",4500,4525]
[null,null,"Common Computer Supplies","TONER CART, HP Q1338A, black, for HP Laserjet 4200 printer series","cart",11500,11525]
[null,null,"Common Computer Supplies","TONER CART, HP Q1339A, black, HP Laserjet 4300 printer series","cart",14990,15015]
[null,null,"Common Computer Supplies","TONER CART, HP Q2612A, black, for HP Laserjet 1010, 1012, 1015, 1018, 1020, 1022, 3015, 3020, 3030, 3050, 3052, 3055, M1005, M1319f MFP Printer","cart",3420,3445]
[null,null,"Common Computer Supplies","TONER CART, HP Q3960A, black, for HP Color Laserjet 2550 printer series, 2820, 2840 All-in-One","cart",5950,5975]
[null,null,"Common Computer Supplies","TONER CART, HP Q3961A, cyan, for HP Color Laserjet 2550 printer series, 2820, 2840 All-in-One","cart",6850,6875]
[null,null,"Common Computer Supplies","TONER CART, HP Q3962A, yellow, for HP Color Laserjet 2550 printer series, 2820, 2840 All-in-One","cart",6850,6875]
[null,null,"Common Computer Supplies","TONER CART, HP Q3963A, magenta, for HP Color Laserjet 2550 printer series, 2820, 2840 All-in-One","cart",6850,6875]
[null,null,"Common Computer Supplies","TONER CART, HP Q5942A, black, for HP Laserjet 4250, 4350 printer series","cart",9450,9475]
[null,null,"Common Computer Supplies","TONER CART, HP Q5942A, original black, for HP Laserjet 4250/4350 printer series","cart",9450,9475]
[null,null,"Common Computer Supplies","TONER CART, HP Q5949A, black, for HP Laserjet 1160, 1320 printer series, 3390, 3392 All-in-One","cart",5890,5915]
[null,null,"Common Computer Supplies","TONER CART, HP Q5950A, black, for HP Color LaserJet 4700 Printer Series","cart",11500,11525]
[null,null,"Common Computer Supplies","TONER CART, HP Q5951A, cyan, for HP Color LaserJet 4700 Printer Series","cart",16500,16525]
[null,null,"Common Computer Supplies","TONER CART, HP Q5952A, yellow, for HP Color LaserJet 4700 Printer Series","cart",16500,16525]
[null,null,"Common Computer Supplies","TONER CART, HP Q5953A, magenta, for HP Color LaserJet 4700 Printer Series","cart",16500,16525]
[null,null,"Common Computer Supplies","TONER CART, HP Q6000A, black, for HP Color LaserJet 1600, 2600n, 2605, CM1015MFP, CM1017MFP   Printer","cart",5750,5775]
[null,null,"Common Computer Supplies","TONER CART, HP Q6001A, cyan, for HP Color LaserJet 1600, 2600n, 2605, CM1015MFP, CM1017MFP   Printer","cart",6200,6225]
[null,null,"Common Computer Supplies","TONER CART, HP Q6002A, yellow, for HP Color LaserJet 1600, 2600n, 2605, CM1015MFP, CM1017MFP   Printer","cart",6200,6225]
[null,null,"Common Computer Supplies","TONER CART, HP Q6003A, magenta, for HP Color LaserJet 1600, 2600n, 2605, CM1015MFP, CM1017MFP   Printer","cart",6200,6225]
[null,null,"Common Computer Supplies","TONER CART, HP Q6511A","cart",5000,5025]
[null,null,"Common Computer Supplies","TONER CART, HP Q7551A, black, for HP Laserjet P3005, M3027, M3035 MFP Printer Series","cart",5300,5325]
[null,null,"Common Computer Supplies","TONER CART, HP Q7553A, black, for HP Laserjet P3005, M3027, M3035 MFP Printer Series","cart",2965,2980]
[null,null,"Common Computer Supplies","TONER CART, Lexmark 34217HR(12A8400)","cart",6150,6175]
[null,null,"Common Computer Supplies","TONER CART, Lexmark E360H11P","cart",13800,13825]
[null,null,"Common Computer Supplies","TONER CART, Lexmark E450A11P","cart",8650,8675]
[null,null,"Common Computer Supplies","TONER CART, Lexmark T650A11P","cart",11350,11375]
[null,null,"Common Computer Supplies","TONER CART, Samsung CLT-K508L, magenta, original, for CLP-620ND, CLP-620ND, CLP-670N","cart",6350,6375]
[null,null,"Common Computer Supplies","TONER CART, Samsung CLT-M508L, black, original, for CLP-620ND, CLP-670N, CLP-670ND","cart",7600,7625]
[null,null,"Common Computer Supplies","TONER CART, Samsung CLT-Y508L, yellow, original, for CLP-620ND, CLP-670N, CLP-670ND","cart",7600,7625]
[null,null,"Common Computer Supplies","TONER CART, Samsung ML-2010D3","cart",2950,2975]
[null,null,"Common Computer Supplies","TONER CART, Samsung MLTD101S","cart",10700,10725]
[null,null,"Common Computer Supplies","TONER CART, Samsung MLT-D205E, black, original, for ML-3310ND, ML-3710ND, SCX-4833FR, SCX-5637FR, SCX-5737FW","cart",3450,3475]
[null,null,"Common Computer Supplies","TONER CART, Samsung MLTD205L","cart",6400,6425]
[null,null,"Common Computer Supplies","TONER CART, Samsung Part No. ML D2850B, for printer ML D2851ND","cart",5950,5975]
[null,null,"Common Computer Supplies","TONER CART, Samsung Part No. MLTD103-S","cart",3350,3375]
[null,null,"Common Computer Supplies","TONER CART, Samsung Part No. MLTD104-S, for Samsung ML 1660","cart",2840,2860]
[null,null,"Common Computer Supplies","TONER CART, Samsung Part No. MLTD105L, for printer ML 2580n","cart",2840,2860]
[null,null,"Common Computer Supplies","TONER CART, TN-3250, low yield, for Brother HL5350DN","cart",4050,4075]
[null,null,"Common Computer Supplies","TONER CART, TN-3320, for printer 5450DN","cart",3990,4015]
[null,null,"Common Computer Supplies","TONER REFILL, Xerox Phaser 3124","piece",2480,2500]
[null,null,"Common Computer Supplies","UNIVERSAL INK, black, 100 ml","bottle",85,89.25]
[null,null,"Common Computer Supplies","UNIVERSAL INK, cyan, 100 ml","bottle",85,89.25]
[null,null,"Common Computer Supplies","UNIVERSAL INK, magenta, 100 ml","bottle",85,89.25]
[null,null,"Common Computer Supplies","UNIVERSAL INK, yellow, 100 ml","bottle",85,89.25]
[null,null,"Common Computer Supplies","USB EXTENSION, 3 - 5 meters approx.","piece",250,262.5]
[null,null,"Common Computer Supplies","WIFI ADAPTER, USB","piece",780,819]
[null,null,"Common Office Supplies","ACETATE, gauge #3, 50m in length","roll",750,787.5]
[null,null,"Common Office Supplies","ACETATE, gauge #4, 50m in length","roll",1170,1195]
[null,null,"Common Office Supplies","AIR FRESHENER, 280mL/can","can",210,220.5]
[null,null,"Common Office Supplies","AIR FRESHENER, non-spray type, 80grams","can",130,136.5]
[null,null,"Common Office Supplies","ALCOHOL, 70%, ethyl, 250ml","bottle",43,45.15]
[null,null,"Common Office Supplies","ALCOHOL, 70%, ethyl, 500ml","bottle",77,80.849999999999994]
[null,null,"Common Office Supplies","AUDIO CASSETTE TAPE, 90min. recording time","piece",65,68.25]
[null,null,"Common Office Supplies","AUTOMATIC NUMBER STAMP, with 7 digits","unit",2300,2325]
[null,null,"Common Office Supplies","BALLPEN, black","piece",8,8.5]
[null,null,"Common Office Supplies","BALLPEN, blue","piece",8,8.5]
[null,null,"Common Office Supplies","BALLPEN, red","piece",8,8.5]
[null,null,"Common Office Supplies","BINDER, 3-ring, D-type, A4, 64mm(2.5\"), with insert clear-view pocket on front, back and spine for label","pair",210,220.5]
[null,null,"Common Office Supplies","BINDER, 3-ring, D-type, legal, 64mm(2.5\"), with insert clear-view pocket on front, back and spine for label","pair",250,262.5]
[null,null,"Common Office Supplies","CARBON FILM, polyehtylene, 216mm x 330mm, 100s/box","box",165,173.25]
[null,null,"Common Office Supplies","CARBON FILM, polyethylene, 210mm x 297mm(A4), 100s/box","box",165,173.25]
[null,null,"Common Office Supplies","CARTOLINA, assorted color, 20s per bundle","bundle",125,131.25]
[null,null,"Common Office Supplies","CARTOLINA, assorted neon type colors","piece",6.25,6.56]
[null,null,"Common Office Supplies","CARTOLINA, white, 20s per bundle","bundle",100,105]
[null,null,"Common Office Supplies","CARTOLINA, white in pieces","piece",5,5.25]
[null,null,"Common Office Supplies","CERTIFICATE FRAME, A4 size","piece",85,89.25]
[null,null,"Common Office Supplies","CERTIFICATE FRAME, legal size","piece",90,94.5]
[null,null,null,"CERTIFICATE HOLDER, plastic, A4 size","piece",46,48.3]
[null,null,"Common Office Supplies","CERTIFICATE HOLDER, plastic, legal size","piece",48,50.4]
[null,null,"Common Office Supplies","CHALK, white, dustless, 100 pcs/box","box",48,50.4]
[null,null,"Common Office Supplies","CLEARBOOK, A4 SIZE, for 210mm x 297mm (A4 size) documents, refillable, plastic, assorted colors (black, blue, red, yellow), with twenty(20) clear transparent plastic pockets","piece",80,84]
[null,null,"Common Office Supplies","CLEARBOOK, LEGAL SIZE, for 216mm x 330mm (legal size) documents, refillable, plastic, assorted colors (black, blue, red, yellow), with twenty(20) clear transparent plastic pocket","piece",48,50.4]
[null,null,"Common Office Supplies","CLIP, backfold, all metal, clamping: 19mm, 12 pcs per box","box",20,21]
[null,null,"Common Office Supplies","CLIP, backfold, all metal, clamping: 25mm, 12 pcs per box","box",50,52.5]
[null,null,"Common Office Supplies","CLIP, backfold, all metal, clamping: 32mm, 12 pcs per box","box",70,73.5]
[null,null,"Common Office Supplies","CLIP, backfold, all metal, clamping: 41mm, 12 pcs per box","box",75,78.75]
[null,null,"Common Office Supplies","CLIP, backfold, all metal, clamping: 50mm, 12 pcs per box","box",85,89.25]
[null,null,"Common Office Supplies","CLIP, bulldog, 73mm (3\")","piece",100,105]
[null,null,"Common Office Supplies","COLUMNAR NOTEBOOK, 12 cols","piece",24,25.2]
[null,null,"Common Office Supplies","COLUMNAR PAD, 14 cols, 50 gsm min.","pad",60,63]
[null,null,"Common Office Supplies","COLUMNAR PAD, 16 cols, 50 gsm min. ","pad",75,78.75]
[null,null,"Common Office Supplies","COLUMNAR PAD, 18 cols, 50 gsm min.","pad",130,136.5]
[null,null,"Common Office Supplies","CONSTRUCTION PAPER, multicolored, legal","ream",180,189]
[null,null,"Common Office Supplies","CONSTRUCTION PAPER, multicolored, letter","ream",150,157.5]
[null,null,"Common Office Supplies","CORKBOARD, size: 1 x 1 sq. ft. ","piece",230,241.5]
[null,null,"Common Office Supplies","CORKBOARD, size: 2 x 3 sq. ft.","piece",720,756]
[null,null,"Common Office Supplies","CORRECTION FLUID, water based","bottle",18,18.899999999999999]
[null,null,"Common Office Supplies","CORRECTION PEN","piece",25,26.25]
[null,null,"Common Office Supplies","CORRECTION TAPE, disposable, usable length of 6 meters(min), 5mm width","piece",45,47.25]
[null,null,"Common Office Supplies","CRAYONS, 8 pieces per box","box",12,12.6]
[null,null,"Common Office Supplies","CRAYONS,12 pieces per box","box",28,29.4]
[null,null,"Common Office Supplies","CRAYONS,16 pieces per box","box",28,29.4]
[null,null,"Common Office Supplies","DATA FILE BOX, (5\"x9\"x15-3/4\")","box",110,115.5]
[null,null,"Common Office Supplies","DATA FOLDER, made of chipboard, taglia lock","piece",100,105]
[null,null,"Common Office Supplies","EDP BINDER, TB, for 11\" X 14-7/8\" CCF, plastic, spring rod type, assorted colors","piece",200,210]
[null,null,"Common Office Supplies","EDP BINDER, TB, for 11\" X 9-1/2\" CCF","piece",160,168]
[null,null,"Common Office Supplies","ENVELOPE, DOCUMENTARY, for A4 size document, 500 per box","box",637,668.85]
[null,null,"Common Office Supplies","ENVELOPE, DOCUMENTARY, for legal size document, 500 per box","box",833,874.65]
[null,null,"Common Office Supplies","ENVELOPE, DOCUMENTARY, for A4 size document","piece",3,3.15]
[null,null,"Common Office Supplies","ENVELOPE, DOCUMENTARY, for legal size document","piece",5,5.25]
[null,null,"Common Office Supplies","ENVELOPE, expanding, A4 size","piece",12.5,13.13]
[null,null,"Common Office Supplies","ENVELOPE, expanding, legal size","piece",12.5,13.13]
[null,null,"Common Office Supplies","ENVELOPE, expanding, plastic, A4 size","piece",84,88.2]
[null,null,"Common Office Supplies","ENVELOPE, expanding, plastic, legal size","piece",80,84]
[null,null,"Common Office Supplies","ENVELOPE, expanding, kraft, legal size","piece",12.5,13.13]
[null,null,"Common Office Supplies","ENVELOPE, expanding, kraft, legal size, 100s/box","box",200,210]
[null,null,"Common Office Supplies","ENVELOPE, expanding, plastic, 0.50mm, min. plastic thickness with elastic strap, 380mm x 260mm min, expansion, assorted colors","piece",80,84]
[null,null,"Common Office Supplies","ENVELOPE, mailing white with window, 500s","box",405,425.25]
[null,null,"Common Office Supplies","ENVELOPE, mailing white, 500s/box","box",270,283.5]
[null,null,"Common Office Supplies","ENVELOPE, pay, kraft, (4\"x7-1/2\"), 500s/box","box",450,472.5]
[null,null,"Common Office Supplies","ERASER, felt, for blackboard/whiteboard","piece",19,19.95]
[null,null,"Common Office Supplies","ERASER, rubber, for pencil","piece",3,3.15]
[null,null,"Common Office Supplies","FILE ORGANIZER, expanding, plastic, 12 pockets","piece",480,504]
[null,null,"Common Office Supplies","FOLDER, clear plastic, L-type, A4 size, 50s/pack","pack",850,892.5]
[null,null,"Common Office Supplies","FOLDER, clear plastic, L-type, legal size, 50s/pack","pack",650,682.5]
[null,null,"Common Office Supplies","FOLDER, expanding, A4 size","piece",5,5.25]
[null,null,"Common Office Supplies","FOLDER, expanding, legal size","piece",6,6.3]
[null,null,"Common Office Supplies","FOLDER, morocco/fancy, legal size, 50s/pack","pack",750,787.5]
[null,null,"Common Office Supplies","FOLDER, pressboard, plain, legal, 50s/pack","pack",650,682.5]
[null,null,"Common Office Supplies","FOLDER, pressboard, plain, legal, 100s/pack","pack",500,525]
[null,null,"Common Office Supplies","FOLDER, tagboard, legal size, 100s/box","pack",500,525]
[null,null,"Common Office Supplies","FOLDER, transparent, assorted colors","piece",6,6.3]
[null,null,"Common Office Supplies","GLUE, all purpose, 40 grams","bottle",10,10.5]
[null,null,"Common Office Supplies","GLUE, all purpose, 120 grams","bottle",39,40.950000000000003]
[null,null,"Common Office Supplies","GLUE, all purpose, 130 grams","bottle",45,47.25]
[null,null,"Common Office Supplies","GLUE, all purpose, 200 grams","jar",125,131.25]
[null,null,"Common Office Supplies","GLUE, all purpose, 300 grams","jar",125,131.25]
[null,null,"Common Office Supplies","ID HOLDER, plastic ","piece",6,6.3]
[null,null,"Common Office Supplies","ILLUSTRATION BOARD, 1/4 size","piece",13,13.65]
[null,null,"Common Office Supplies","ILLUSTRATION BOARD, (30\"x40\"), 2 ply","piece",55,57.75]
[null,null,"Common Office Supplies","INDEX CARD, 3\" x 5\",ruled both sides, 500s/pack","pack",250,262.5]
[null,null,"Common Office Supplies","INDEX CARD, 5\" x 8\",ruled both sides, 500s/pack","pack",290,304.5]
[null,null,"Common Office Supplies","INDEX TAB, self-adhesive, 5 set/box, assorted colors","box",100,105]
[null,null,"Common Office Supplies","INK, Risograph CZ180, black","tube",1350,1375]
[null,null,"Common Office Supplies","INK REFILL, permanent marker, black","bottle",78,81.900000000000006]
[null,null,"Common Office Supplies","INK REFILL, parker pen, fine 0.5","piece",250,262.5]
[null,null,"Common Office Supplies","LEAD, for mechanical pencil, 0.5mm, 12 pcs per tube","tube",36,37.799999999999997]
[null,null,"Common Office Supplies","LINEN PAPER, 8.5\" x 13\", 10 sheets","pack",35,36.75]
[null,null,"Common Office Supplies","LINEN PAPER, 8.5\" x 13\", 20 sheets","pack",18,18.899999999999999]
[null,null,"Common Office Supplies","LINEN BOARD, 8.5\" x 13\", 10 sheets","pack",23,24.15]
[null,null,"Common Office Supplies","LINEN BOARD, 8.5\" x 13\", 20 sheets","pack",50,52.5]
[null,null,"Common Office Supplies","MAGAZINE FILE BOX, 110mm x 220mm x 265mm, with open end","piece",295,309.75]
[null,null,"Common Office Supplies","MAGAZINE FILE BOX, 112mm x 200mm x 240mm, with open end","piece",195,204.75]
[null,null,"Common Office Supplies","MANILA PAPER, 1200mm x 900mm, 60gsm., 0.14mm thickness, pale yellow","piece",2.5,2.63]
[null,null,"Common Office Supplies","MANILA PAPER, 1200mm x 900mm, 60gsm., 0.14mm thickness, pale yellow, 10 sheets per sleeves","sleeve",25,26.25]
[null,null,"Common Office Supplies","MAP PIN, round head, 100s per case","case",45,47.25]
[null,null,"Common Office Supplies","MARKER, fluorescent, 3 colors per set","set",60,63]
[null,null,"Common Office Supplies","MARKER, fluorescent, any color (blue, orange, green, yellow)","piece",20,21]
[null,null,"Common Office Supplies","MARKER, permanent, bullet type, black, refillable","piece",35,36.75]
[null,null,"Common Office Supplies","MARKER, permanent, bullet type, blue, refillable","piece",35,36.75]
[null,null,"Common Office Supplies","MARKER, permanent, bullet type, red, refillable","piece",35,36.75]
[null,null,"Common Office Supplies","MARKER, permanent, chisel type, black, refillable","piece",38,39.9]
[null,null,"Common Office Supplies","MARKER, permanent, chisel type, blue, refillable","piece",38,39.9]
[null,null,"Common Office Supplies","MARKER, permanent, chisel type, red, refillable","piece",38,39.9]
[null,null,"Common Office Supplies","MARKER, whiteboard, bullet type, black","piece",25,26.25]
[null,null,"Common Office Supplies","MARKER, whiteboard, bullet type, blue","piece",25,26.25]
[null,null,"Common Office Supplies","MARKER, whiteboard, bullet type, red","piece",25,26.25]
[null,null,"Common Office Supplies","MARKER, whiteboard, chisel type, black","piece",35,36.75]
[null,null,"Common Office Supplies","MARKER, whiteboard, chisel type, blue","piece",35,36.75]
[null,null,"Common Office Supplies","MARKER, whiteboard, chisel type, red","piece",35,36.75]
[null,null,"Common Office Supplies","MASTER ROLL, Risograph CZ180","roll",2800,2825]
[null,null,"Common Office Supplies","NOTE BOOK, composition, 80 leaves","piece",10,10.5]
[null,null,"Common Office Supplies","NOTE BOOK, stenographer's, 40 leaves, ruled both sides","piece",14,15.4]
[null,null,"Common Office Supplies","NOTE BOOK, spring, 80 leaves","piece",10,10.5]
[null,null,"Common Office Supplies","NOTE PAD, stick on, 50mm x 50mm (2\" x 2\") min,100 sheets","pad",14,14.7]
[null,null,"Common Office Supplies","NOTE PAD, stick on, 50mm x 76mm (2\" x 3\") min, 100 sheets","pad",24,25.2]
[null,null,"Common Office Supplies","NOTE PAD, stick on, 76mm x 76mm (3\" x 3\") min, 100 sheets","pad",30,31.5]
[null,null,"Common Office Supplies","NOTE PAD, stick on, 76mm x 100mm (3\" x 4\") min, 100 sheets","pad",40,42]
[null,null,"Common Office Supplies","OIL, for general purpose, 120 mL ","bottle",60,63]
[null,null,"Common Office Supplies","PAPER CLIP, vinyl/plastic coat, length: 32mm min","box",10,10.5]
[null,null,"Common Office Supplies","PAPER CLIP, vinyl/plastic coat, length: 48mm min","box",20,21]
[null,null,"Common Office Supplies","PAPER FASTENER, for paper, metal, 50 sets/box","box",40,42]
[null,null,"Common Office Supplies","PAPER FASTENER, plastic coated, 50s/box cortan long","box",40,42]
[null,null,"Common Office Supplies","PAPER, mimeograph, groundwood, 210mm x 297mm (A4), 60gsm","ream",160,168]
[null,null,"Common Office Supplies","PAPER, mimeograph, whitewove, 210mm x 297mm (A4), 70 gsm","ream",160,168]
[null,null,"Common Office Supplies","PAPER, MULTIPURPOSE, 70gsm, size: 210mm x 297mm (A4)","ream",153,160.65]
[null,null,"Common Office Supplies","PAPER, MULTICOPY, 80gsm, size: 210mm x 297mm (A4)","ream",220,231]
[null,null,"Common Office Supplies","PAPER, ruled pad,216mmx330mm, 90 sheets/pad","pad",20,21]
[null,null,"Common Office Supplies","PAPER, thermal, 216mmx30M, 1/2\" core","roll",70,73.5]
[null,null,"Common Office Supplies","PAPER, thermal, 210mmx30M, 1/2\" core","roll",80,84]
[null,null,"Common Office Supplies","PARCHMENT PAPER, A4 size, 80 gsm,100sheets/pack","ream",350,367.5]
[null,null,"Common Office Supplies","PENCIL, No. 2, lead, with eraser","piece",5,5.25]
[null,null,"Common Office Supplies","PENCIL, No. 2, lead, with eraser, one dozen per box","box",60,63]
[null,null,"Common Office Supplies","PENCIL, mechanical, for 0.5mm lead","piece",60,63]
[null,null,"Common Office Supplies","PHILIPPINE NATIONAL FLAG, type I, 1828mm x 914.4mm, 100% cotton","piece",338,354.9]
[null,null,"Common Office Supplies","PHILIPPINE NATIONAL FLAG, 3 x 5, 100% cotton","piece",165,173.25]
[null,null,"Common Office Supplies","PHOTO PAPER, A4, 20s per ream","ream",90,94.5]
[null,null,"Common Office Supplies","PUSH PIN, flat head type, assorted colors, 100s/case","case",30,31.5]
[null,null,"Common Office Supplies","RECORD BOOK, 300 pages, smythe sewn, high quality","book",58,60.9]
[null,null,"Common Office Supplies","RECORD BOOK, 500 pages, smythe sewn, high quality","book",83,87.15]
[null,null,"Common Office Supplies","RIBBON, nylon, manual typewriter","spool",37,38.85]
[null,null,"Common Office Supplies","RING BINDER, 10mm x 1.12m,  plastic, 10 pcs/bundle","bundle",100,105]
[null,null,"Common Office Supplies","RING BINDER, 11mm x 1.12m,  plastic, 10 pcs/bundle","bundle",150,157.5]
[null,null,"Common Office Supplies","RING BINDER, 12.7mm x 1.12m (1/2\"x44\"), plastic","piece",15,15.75]
[null,null,"Common Office Supplies","RING BINDER, 14mm x 1.12m,  plastic, 10 pcs/bundle","bundle",200,210]
[null,null,"Common Office Supplies","RING BINDER, 16mm x 1.12m,  plastic, 10 pcs/bundle","bundle",250,262.5]
[null,null,"Common Office Supplies","RING BINDER, 19mm x 1.12m(3/4\"x44\"), plastic, 10 pcs/ bundle","bundle",25,26.25]
[null,null,"Common Office Supplies","RING BINDER, 22mm x 1.12m, plastic, 10 pcs/bundle","bundle",35,36.75]
[null,null,"Common Office Supplies","RING BINDER, 25mm x 1.12m (1\"x44\"), plastic, 10 pcs/bundle","bundle",45,47.25]
[null,null,"Common Office Supplies","RING BINDER, 28mm x 1.12m,  plastic, 10 pcs/bundle","piece",400,420]
[null,null,"Common Office Supplies","RING BINDER, 32mm x 1.12m,  plastic, 10 pcs/bundle","piece",450,472.5]
[null,null,"Common Office Supplies","RING BINDER, 50mm x 1.12m(2\" x 44\"), plastic, 10 pcs/bundle","piece",970,1018.5]
[null,null,"Common Office Supplies","RING BINDER, 6mm x 1.12m,  plastic, 10 pcs/bundle","bundle",80,84]
[null,null,"Common Office Supplies","RING BINDER, 8mm x 1.12m,  plastic, 10 pcs/bundle","bundle",100,105]
[null,null,"Common Office Supplies","RUBBER BAND, 1.0mm min thickness, min. 350grams/box or approx 220pcs","box",208,218.4]
[null,null,"Common Office Supplies","RULER, plastic, 300mm","piece",65,68.25]
[null,null,"Common Office Supplies","RULER, plastic, 450mm","piece",85,89.25]
[null,null,"Common Office Supplies","SIGN PEN, black","piece",50,52.5]
[null,null,"Common Office Supplies","SIGN PEN, blue","piece",50,52.5]
[null,null,"Common Office Supplies","SIGN PEN, green","piece",50,52.5]
[null,null,"Common Office Supplies","SIGN PEN, red","piece",50,52.5]
[null,null,"Common Office Supplies","SPECIAL PAPER, 8.27\" x 11.69\" or A4 size, assorted colors, 20 pcs per pack","pack",23,24.15]
[null,null,"Common Office Supplies","SPECIAL PAPER, 8.5\" x 11\" or short size, assorted colors, 20 pcs per pack","pack",28,29.4]
[null,null,"Common Office Supplies","SPECIAL PAPER, 8.5\" x 13\" or long size, assorted colors, 20 pcs per pack","pack",39,40.950000000000003]
[null,null,"Common Office Supplies","STAMP PAD INK, violet, 30ml","bottle",18,18.899999999999999]
[null,null,"Common Office Supplies","STAMP PAD, felt pad, min 60mm x 100mm ","piece",54,56.7]
[null,null,"Common Office Supplies","STAPLE WIRE, (26/6)standard, 5000 pcs/box","box",30,31.5]
[null,null,"Common Office Supplies","STAPLE WIRE, HEAVY DUTY, 23/13, for use with heavy duty staplers, metal, non-rust, chisel point. 0.60mm thickness, 13mm width, 13mm leg length, 100 staples per strip, 1,000 staples per box, 40-90 sheets of 70gsm bond paper","box",90,94.5]
[null,null,"Common Office Supplies","STAPLE WIRE, HEAVY DUTY, 23/17, for heavy duty staplers, metal, non-rust, chisel point, 0.60mm thickness, 13mm width, 17mm Leg Length, 100 staples per trip, 1,000 staples per box, 90-135 sheets of 70 gsm bond paper ","box",98,102.9]
[null,null,"Common Office Supplies","STEEL TRAY, three levels / layers","piece",540,567]
[null,null,"Common Office Supplies","STENCIL PAPER, ordinary, universal, 24 pcs/quire","quire",360,378]
[null,null,"Common Office Supplies","STORAGE BOX, plastic, with rollers","piece",850,892.5]
[null,null,"Common Office Supplies","TAPE, adding machine, GSP bond","roll",55,57.75]
[null,null,"Common Office Supplies","TAPE, double adhesive, 24mm, 50 meters length","roll",20,21]
[null,null,"Common Office Supplies","TAPE, duct, 48mm, 50 meters length","roll",104,109.2]
[null,null,"Common Office Supplies","TAPE, masking, 24mm, 50 meters length","roll",20,21]
[null,null,"Common Office Supplies","TAPE, masking, 48mm, 50 meters length","roll",60,63]
[null,null,"Common Office Supplies","TAPE, packaging, 48mm, 50 meters length","roll",40,42]
[null,null,"Common Office Supplies","TAPE, transparent, 24mm, 50 meters length","roll",20,21]
[null,null,"Common Office Supplies","TAPE, transparent, 48mm, 50 meters length","roll",23,24.15]
[null,null,"Common Office Supplies","THUMB TACKS, 100 pcs per box","box",9,9.4499999999999993]
[null,null,"Common Office Supplies","TOILET TISSUE, 12 rolls/pack","pack",110,115.5]
[null,null,"Common Office Supplies","TONER, Develop INEO 164 Copier (TN116)","piece",3450,3475]
[null,null,"Common Office Supplies","TONER, Develop TN113","piece",3450,3475]
[null,null,"Common Office Supplies","TWINE, plastic, one kilo per roll","roll",65,68.25]
[null,null,"Common Office Supplies","WHITEBOARD, 2 x 4 sq. ft.","piece",650,682.5]
[null,null,"Common Office Supplies","WRAPPING PAPER, kraft, 65gsm, approx. 40m, 100s","roll",300,315]
[null,null,"Common Office Devices","CUTTER BLADE, for heavy duty cutter, 10 pieces per tube","tube",35,36.75]
[null,null,"Common Office Devices","CUTTER, for general purpose, plastic molded body","piece",20,21]
[null,null,"Common Office Devices","DATE STAMP, medium sized","piece",75,78.75]
[null,null,"Common Office Devices","LASER POINTER, PEN TYPE, for presentation","piece",2500,2525]
[null,null,"Common Office Devices","PEA WHISTLE, STAINLESS STEEL, 40mm (min) length, sound ball made of plastic material, with attachment ring","piece",159,166.95000000000002]
[null,null,"Common Office Devices","PENCIL SHARPENER, manual, single cutter head","piece",10,10.5]
[null,null,"Common Office Devices","PUNCHER, paper, heavy duty, with two hole guide","piece",168,176.4]
[null,null,"Common Office Devices","SCISSORS, symmetrical, blade length: 65mm min","pair",350,367.5]
[null,null,"Common Office Devices","STAPLER, heavy duty, standard, with staple remover","piece",145,152.25]
[null,null,"Common Office Devices","STAPLER, binder type, heavy duty for high volume stapling, 25-153 sheets of 70gsm bond paper with adjustable stapler guide","piece",4500,4525]
[null,null,"Common Office Devices","STAPLE REMOVER, plier type","piece",15,15.75]
[null,null,"Common Office Devices","TAPE DISPENSER, handheld, for 48mm width packaging tape","piece",100,105]
[null,null,"Common Office Devices","TAPE DISPENSER, table top, for 24mm width tape","piece",90,94.5]
[null,null,"Common Office Devices","WASTE BASKET, big, plastic","piece",160,168]
[null,null,"Common Janitorial Supplies","BATHROOM SOAP, 20 grams","piece",25,26.25]
[null,null,"Common Janitorial Supplies","BATHROOM SOAP, 90 grams","piece",20,21]
[null,null,"Common Janitorial Supplies","BOLO, for gardening purposes","piece",180,189]
[null,null,"Common Janitorial Supplies","BROOM, SOFT (tambo)","piece",40,42]
[null,null,"Common Janitorial Supplies","BROOM, STICK (tingting)","piece",15,15.75]
[null,null,"Common Janitorial Supplies","BRUSH, multipurpose","piece",45,47.25]
[null,null,"Common Janitorial Supplies","CLEANSER, scouring powder, 350gms.","canister",30,31.5]
[null,null,"Common Janitorial Supplies","CLEANSER, scouring powder, 500gms.","canister",56,58.8]
[null,null,"Common Janitorial Supplies","DETERGENT BAR, min 392 grams net mass, four pcs per bar","bar",23,24.15]
[null,null,"Common Janitorial Supplies","DETERGENT LIQUID, 500 ml","bottle",300,315]
[null,null,"Common Janitorial Supplies","DETERGENT POWDER, all purpose, 100 gms","pack",65,68.25]
[null,null,"Common Janitorial Supplies","DETERGENT POWDER, all purpose, 300 gms","pack",65,68.25]
[null,null,"Common Janitorial Supplies","DETERGENT POWDER, all purpose, 500 gms.","pouch",65,68.25]
[null,null,"Common Janitorial Supplies","DISHWASHING LIQUID, 250ml","bottle",45,47.25]
[null,null,"Common Janitorial Supplies","DISHWASHING LIQUID, 500ml","bottle",90,94.5]
[null,null,"Common Janitorial Supplies","DISHWASHING PASTE, 200g","box",30,31.5]
[null,null,"Common Janitorial Supplies","DISHWASHING PASTE, 500g","box",70,73.5]
[null,null,"Common Janitorial Supplies","DISINFECTANT, bleaching solution, 1 liter","container",100,105]
[null,null,"Common Janitorial Supplies","DISINFECTANT SPRAY, aerosol type, 400-550 grams","can",500,525]
[null,null,"Common Janitorial Supplies","DOOR MAT, big size, hand woven","piece",50,55]
[null,null,"Common Janitorial Supplies","DUST PAN, non-rigid plastic, with detachable handle","piece",55,57.75]
[null,null,"Common Janitorial Supplies","FEATHER DUSTER","piece",38,39.9]
[null,null,"Common Janitorial Supplies","FLOOR WAX, paste, natural, 2kgs.","can",465,488.25]
[null,null,"Common Janitorial Supplies","FLOOR WAX, paste, red, 2kgs.","can",465,488.25]
[null,null,"Common Janitorial Supplies","FURNITURE CLEANER, 300ml/can min","can",350,367.5]
[null,null,"Common Janitorial Supplies","GARBAGE BIN, plastic, with swing cover, colored 20 liters capacity","piece",160,168]
[null,null,"Common Janitorial Supplies","GLASS CLEANER, spray type, 1 liter","bottle",150,157.5]
[null,null,"Common Janitorial Supplies","GLOVES, disposable, transparent, 100 pcs per pack","pack",50,60]
[null,null,"Common Janitorial Supplies","GLOVES, multipurpose","set",98,102.9]
[null,null,"Common Janitorial Supplies","HAND SOAP, family size","piece",56,58.8]
[null,null,"Common Janitorial Supplies","INSECTICIDE, aerosol type, net content: 600ml min","can",500,525]
[null,null,"Common Janitorial Supplies","LIQUID CLEANER, tiles, 1000 ml","bottle",250,262.5]
[null,null,"Common Janitorial Supplies","LIQUID HAND SOAP, 500ml","bottle",200,210]
[null,null,"Common Janitorial Supplies","MOP BUCKET, heavy duty, hard plastic, min: 370mm(L),  475mm(W), 245mm(H); 30L capacity, with 4 wheel ball caster, with squeezer, with precautionary markings","piece",54,56.7]
[null,null,"Common Janitorial Supplies","MOPHANDLE, screw type, aluminum handle","piece",300,315]
[null,null,"Common Janitorial Supplies","MOPHANDLE, screw type, wooden handle","piece",295,309.75]
[null,null,"Common Janitorial Supplies","MOPHEAD, 100% rayon, 400g","piece",120,126]
[null,null,"Common Janitorial Supplies","MURIATIC ACID, 500ml","bottle",68,71.400000000000006]
[null,null,"Common Janitorial Supplies","MURIATIC ACID, 1000ml","bottle",85,89.25]
[null,null,"Common Janitorial Supplies","NYLON, monofinament, LBS (thickness): 260, 300 meters per roll","roll",380,390]
[null,null,"Common Janitorial Supplies","RAG, COTTON, (7\") in diameter, assorted colors, 32 pieces per kilo","kilo",210,220.5]
[null,null,"Common Janitorial Supplies","SCOURING PAD, economy size","pack",76,79.8]
[null,null,"Common Janitorial Supplies","SHOELACE, white color","pair",20,21]
[null,null,"Common Janitorial Supplies","TOILET BOWL & URINAL CLEANER, 900ml","bottle",99,103.95]
[null,null,"Common Janitorial Supplies","TOILET BRUSH, with handle, durable","piece",75,78.75]
[null,null,"Common Janitorial Supplies","TOILET DEODORANT CAKE, deoderizer/moth proofer","pack",40,42]
[null,null,"Common Janitorial Supplies","TOILET DEODORANT SPRAY, 220ml","bottle",250,262.5]
[null,null,"Common Janitorial Supplies","TRASHBAG, plastic, black, (XL), 10 pcs per pack per roll","roll",70,73.5]
[null,null,"Common Janitorial Supplies","TRASHBAG, plastic, black, small","roll",50,52.5]
[null,null,"Common Janitorial Supplies","TRASHCAN, small to medium size, with cover, pedal type","piece",70,73.5]
[null,null,"Legal Size Paper","PAPER, mimeo, groundwood, 216mm x 330mm, legal, 60 gsm.","ream",122,128.1]
[null,null,"Legal Size Paper","PAPER, mimeo, whitewove, 216mm x 330mm, legal, 70 gsm.","ream",160,168]
[null,null,"Legal Size Paper","PAPER, multicopy, 80gsm, size: 216mm x 330mm","ream",225,236.25]
[null,null,"Legal Size Paper","PAPER, multi-purpose(copy), legal, 70gsm","ream",160,168]
[null,null,"Common Office Equipment","CALCULATOR, COMPACT, electronic, 12 digits cap","unit",395,414.75]
[null,null,"Common Office Equipment","CALCULATOR, scientific, 10 digits, casedot matirx, solar/ cell type power source","unit",860,900]
[null,null,"Common Office Equipment","CHAIR, monobloc, without armrest, beige","unit",495,519.75]
[null,null,"Common Office Equipment","CHAIR, monobloc, without armrest, white","unit",495,519.75]
[null,null,"Common Office Equipment","FIRE EXTINGUISHER, dry chemical, for ABC class, of fire, stored pressure type,non-electrical conductor,non-toxic, non-corrosive, 4.5kg (10lbs.), brand new","unit",2800,2825]
[null,null,"Common Office Equipment","FIRE EXTINGUISHER, pure HCFC 123, with fire rating of 1A, 1BC for ABC class of fire, stored pressure type, non-electrical conductor, 4.5kg (10 lbs), brand new","unit",3500,3525]
[null,null,"Medical Supplies ","Absorbent Cotton Balls 200s/pack","pack",64,67.2]
[null,null,"Medical Supplies ","Amoxycillin 250mgs 100/box","box",250,262.5]
[null,null,"Medical Supplies ","Aneroid BP Apparatus with Stethoscope","piece",600,630]
[null,null,"Medical Supplies ","Blood Glucose Testing Strips 100/box","box",250,262.5]
[null,null,"Medical Supplies ","Chlorphenamine Tabs","tab",1,1.05]
[null,null,"Medical Supplies ","Delousing Shampoo","piece",13,13.65]
[null,null,"Medical Supplies ","Diclofenac Sodium Cream","tube",96.75,101.59]
[null,null,"Medical Supplies ","Digital Thermometer","piece",89,93.45]
[null,null,"Medical Supplies ","Elastic Bandage 4 x 5","roll",22,23.1]
[null,null,"Medical Supplies ","Elastic Bandage 6 x 5","roll",36,37.799999999999997]
[null,null,"Medical Supplies ","Ferrous Sulfate Chocolate Coated for Kids 100 tabs/bottle","bottle",88,92.4]
[null,null,"Medical Supplies ","Gauze Pad 2 x 10","sheet",17,17.850000000000001]
[null,null,"Medical Supplies ","Gauze Pad 2 x 2","sheet",2,2.1]
[null,null,"Medical Supplies ","Gauze Pad 3 x 3","sheet",3,3.15]
[null,null,"Medical Supplies ","Germicidal Bath Soap 60grams","piece",14.75,15.49]
[null,null,"Medical Supplies ","Hot H2O Bag 1 liter capacity","piece",47,49.35]
[null,null,"Medical Supplies ","Hot H2O Bag 500ml capacity","piece",32,33.6]
[null,null,"Medical Supplies ","Ibuprofen 400mg","tab",2,2.1]
[null,null,"Medical Supplies ","Ice Cap 6 inches","piece",118,123.9]
[null,null,"Medical Supplies ","Ice Cap 9 inches","piece",130,136.5]
[null,null,"Medical Supplies ","Iron Tablet","tab",1.2,1.26]
[null,null,"Medical Supplies ","Lancet 30g 100/box","box",530,556.5]
[null,null,"Medical Supplies ","Mefenamic Acid 250mgs 100/box","box",150,157.5]
[null,null,"Medical Supplies ","Mefenamic SF 250mg","capsule",17,17.850000000000001]
[null,null,"Medical Supplies ","Mefenamic SF 500mg","capsule",35.6,37.380000000000003]
[null,null,"Medical Supplies ","Metoprolol 100mg","tab",3.25,3.41]
[null,null,"Medical Supplies ","Metoprolol 50mg","tab",1.75,1.84]
[null,null,"Medical Supplies ","Paper Hand Towel","piece",90,94.5]
[null,null,"Medical Supplies ","Paracetamol 500mgs 100/box","box",150,157.5]
[null,null,"Medical Supplies ","Plaster 0.5 inch","roll",18.75,19.690000000000001]
[null,null,"Medical Supplies ","Plaster 1 inch","roll",37.5,39.380000000000003]
[null,null,"Medical Supplies ","Povidone Iodine Solution 120ml","bottle",188,197.4]
[null,null,"Medical Supplies ","Syringes 3cc","piece",5,5.25]
[null,null,"Medical Supplies ","Toothache Drops","piece",10,10.5]
[null,null,"Medical Supplies ","Toothbrush, Classic, Deep Clean Multilevel Bristle","piece",12.75,13.39]
[null,null,"Medical Supplies ","Toothpaste twin packs","piece",6.75,7.09]
[null,null,"Medical Supplies ","Tranexamic Acid 250mgs","piece",21.5,22.58]
[null,null,"Medical Supplies ","Vitamin C Tabs 100mgs 100/box","box",140,147]
[null,null,"Seminars and Trainings","HONORARIA, per hour","hour"]
[null,null,"Seminars and Trainings","BOARD AND LODGING, per head","head"]
[null,null,"Seminars and Trainings","MEALS, breakfast","pax",100]
[null,null,"Seminars and Trainings","MEALS, lunch","pax",150]
[null,null,"Seminars and Trainings","MEALS, dinner","pax",150]
[null,null,"Seminars and Trainings","POLO SHIRT PRINTING, various sizes (polo shirt included)","piece",250]
[null,null,"Seminars and Trainings","SNACKS, am","pax",50]
[null,null,"Seminars and Trainings","SNACKS, pm","pax",50]
[null,null,"Seminars and Trainings","SNACKS, am and pm","pax",100]
[null,null,"Seminars and Trainings","T-SHIRT PRINTING, various sizes (t-shirt included)","piece",175]
[null,null,"Tarpaulin With Layout","TARPAULIN, 2\" x 3\", with layout","piece",104]
[null,null,"Tarpaulin With Layout","TARPAULIN, 2\" x 4\", with layout","piece",125]
[null,null,"Tarpaulin With Layout","TARPAULIN, 2\" x 5\", with layout","piece",140]
[null,null,"Tarpaulin With Layout","TARPAULIN, 2\" x 6\", with layout","piece",160]
[null,null,"Tarpaulin With Layout","TARPAULIN, 2\" x 7\", with layout","piece",180]
[null,null,"Tarpaulin With Layout","TARPAULIN, 2\" x 8\", with layout","piece",195]
[null,null,"Tarpaulin With Layout","TARPAULIN, 2\" x 9\", with layout","piece",215]
[null,null,"Tarpaulin With Layout","TARPAULIN, 2\" x 10\", with layout","piece",230]
[null,null,"Tarpaulin With Layout","TARPAULIN, 2\" x 11\", with layout","piece",250]
[null,null,"Tarpaulin With Layout","TARPAULIN, 2\" x 12\", with layout","piece",270]
[null,null,"Tarpaulin With Layout","TARPAULIN, 3\" x 3\", with layout","piece",135]
[null,null,"Tarpaulin With Layout","TARPAULIN, 3\" x 4\", with layout","piece",160]
[null,null,"Tarpaulin With Layout","TARPAULIN, 3\" x 5\", with layout","piece",185]
[null,null,"Tarpaulin With Layout","TARPAULIN, 3\" x 6\", with layout","piece",215]
[null,null,"Tarpaulin With Layout","TARPAULIN, 3\" x 7\", with layout","piece",240]
[null,null,"Tarpaulin With Layout","TARPAULIN, 3\" x 8\", with layout","piece",270]
[null,null,"Tarpaulin With Layout","TARPAULIN, 3\" x 9\", with layout","piece",295]
[null,null,"Tarpaulin With Layout","TARPAULIN, 3\" x 10\", with layout","piece",320]
[null,null,"Tarpaulin With Layout","TARPAULIN, 3\" x 11\", with layout","piece",350]
[null,null,"Tarpaulin With Layout","TARPAULIN, 3\" x 12\", with layout","piece",375]
[null,null,"Tarpaulin With Layout","TARPAULIN, 4\" x 4\", with layout","piece",195]
[null,null,"Tarpaulin With Layout","TARPAULIN, 4\" x 5\", with layout","piece",230]
[null,null,"Tarpaulin With Layout","TARPAULIN, 4\" x 6\", with layout","piece",270]
[null,null,"Tarpaulin With Layout","TARPAULIN, 4\" x 7\", with layout","piece",305]
[null,null,"Tarpaulin With Layout","TARPAULIN, 4\" x 8\", with layout","piece",340]
[null,null,"Tarpaulin With Layout","TARPAULIN, 4\" x 9\", with layout","piece",375]
[null,null,"Tarpaulin With Layout","TARPAULIN, 4\" x 10\", with layout","piece",410]
[null,null,"Tarpaulin With Layout","TARPAULIN, 4\" x 11\", with layout","piece",450]
[null,null,"Tarpaulin With Layout","TARPAULIN, 4\" x 12\", with layout","piece",485]
[null,null,"Tarpaulin With Layout","TARPAULIN, 5\" x 5\", with layout","piece",275]
[null,null,"Tarpaulin With Layout","TARPAULIN, 5\" x 6\", with layout","piece",320]
[null,null,"Tarpaulin With Layout","TARPAULIN, 5\" x 7\", with layout","piece",365]
[null,null,"Tarpaulin With Layout","TARPAULIN, 5\" x 8\", with layout","piece",410]
[null,null,"Tarpaulin With Layout","TARPAULIN, 5\" x 9\", with layout","piece",455]
[null,null,"Tarpaulin With Layout","TARPAULIN, 5\" x 10\", with layout","piece",500]
[null,null,"Tarpaulin With Layout","TARPAULIN, 5\" x 11\", with layout","piece",545]
[null,null,"Tarpaulin With Layout","TARPAULIN, 5\" x 12\", with layout","piece",590]
[null,null,"Tarpaulin With Layout","TARPAULIN, 6\" x 6\", with layout","piece",375]
[null,null,"Tarpaulin With Layout","TARPAULIN, 6\" x 7\", with layout","piece",430]
[null,null,"Tarpaulin With Layout","TARPAULIN, 6\" x 8\", with layout","piece",485]
[null,null,"Tarpaulin With Layout","TARPAULIN, 6\" x 9\", with layout","piece",540]
[null,null,"Tarpaulin With Layout","TARPAULIN, 6\" x 10\", with layout","piece",590]
[null,null,"Tarpaulin With Layout","TARPAULIN, 6\" x 11\", with layout","piece",645]
[null,null,"Tarpaulin With Layout","TARPAULIN, 6\" x 12\", with layout","piece",700]
[null,null,"Tarpaulin With Layout","TARPAULIN, 7\" x 7\", with layout","piece",495]
[null,null,"Tarpaulin With Layout","TARPAULIN, 7\" x 8\", with layout","piece",555]
[null,null,"Tarpaulin With Layout","TARPAULIN, 7\" x 9\", with layout","piece",620]
[null,null,"Tarpaulin With Layout","TARPAULIN, 7\" x 10\", with layout","piece",680]
[null,null,"Tarpaulin With Layout","TARPAULIN, 7\" x 11\", with layout","piece",745]
[null,null,"Tarpaulin With Layout","TARPAULIN, 7\" x 12\", with layout","piece",810]
[null,null,"Tarpaulin With Layout","TARPAULIN, 8\" x 8\", with layout","piece",630]
[null,null,"Tarpaulin With Layout","TARPAULIN, 8\" x 9\", with layout","piece",700]
[null,null,"Tarpaulin With Layout","TARPAULIN, 8\" x 10\", with layout","piece",770]
[null,null,"Tarpaulin With Layout","TARPAULIN, 8\" x 11\", with layout","piece",845]
[null,null,"Tarpaulin With Layout","TARPAULIN, 8\" x 12\", with layout","piece",915]
[null,null,"Tarpaulin With Layout","TARPAULIN, 9\" x 9\", with layout","piece",780]
[null,null,"Tarpaulin With Layout","TARPAULIN, 9\" x 10\", with layout","piece",860]
[null,null,"Tarpaulin With Layout","TARPAULIN, 9\" x 11\", with layout","piece",945]
[null,null,"Tarpaulin With Layout","TARPAULIN, 9\" x 12\", with layout","piece",1025]
[null,null,"Tarpaulin With Layout","TARPAULIN, 10\" x 10\", with layout","piece",950]
[null,null,"Tarpaulin With Layout","TARPAULIN, 10\" x 11\", with layout","piece",1040]
[null,null,"Tarpaulin With Layout","TARPAULIN, 10\" x 12\", with layout","piece",1130]
[null,null,"Tarpaulin With Layout","TARPAULIN, 11\" x 11\", with layout","piece",1140]
[null,null,"Tarpaulin With Layout","TARPAULIN, 11\" x 12\", with layout","piece",1240]
[null,null,"Tarpaulin With Layout","TARPAULIN, 12\" x 12\", with layout","piece",1350]
[null,null,"Tarpaulin Without Layout","TARPAULIN, 2\" x 3\", without layout","piece",55]
[null,null,"Tarpaulin Without Layout","TARPAULIN, 2\" x 4\", without layout","piece",75]
[null,null,"Tarpaulin Without Layout","TARPAULIN, 2\" x 5\", without layout","piece",90]
[null,null,"Tarpaulin Without Layout","TARPAULIN, 2\" x 6\", without layout","piece",110]
[null,null,"Tarpaulin Without Layout","TARPAULIN, 2\" x 7\", without layout","piece",130]
[null,null,"Tarpaulin Without Layout","TARPAULIN, 2\" x 8\", without layout","piece",145]
[null,null,"Tarpaulin Without Layout","TARPAULIN, 2\" x 9\", without layout","piece",165]
[null,null,"Tarpaulin Without Layout","TARPAULIN, 2\" x 10\", without layout","piece",180]
[null,null,"Tarpaulin Without Layout","TARPAULIN, 2\" x 11\", without layout","piece",200]
[null,null,"Tarpaulin Without Layout","TARPAULIN, 2\" x 12\", without layout","piece",220]
[null,null,"Tarpaulin Without Layout","TARPAULIN, 3\" x 3\", without layout","piece",85]
[null,null,"Tarpaulin Without Layout","TARPAULIN, 3\" x 4\", without layout","piece",110]
[null,null,"Tarpaulin Without Layout","TARPAULIN, 3\" x 5\", without layout","piece",135]
[null,null,"Tarpaulin Without Layout","TARPAULIN, 3\" x 6\", without layout","piece",165]
[null,null,"Tarpaulin Without Layout","TARPAULIN, 3\" x 7\", without layout","piece",190]
[null,null,"Tarpaulin Without Layout","TARPAULIN, 3\" x 8\", without layout","piece",220]
[null,null,"Tarpaulin Without Layout","TARPAULIN, 3\" x 9\", without layout","piece",245]
[null,null,"Tarpaulin Without Layout","TARPAULIN, 3\" x 10\", without layout","piece",270]
[null,null,"Tarpaulin Without Layout","TARPAULIN, 3\" x 11\", without layout","piece",300]
[null,null,"Tarpaulin Without Layout","TARPAULIN, 3\" x 12\", without layout","piece",325]
[null,null,"Tarpaulin Without Layout","TARPAULIN, 4\" x 4\", without layout","piece",145]
[null,null,"Tarpaulin Without Layout","TARPAULIN, 4\" x 5\", without layout","piece",180]
[null,null,"Tarpaulin Without Layout","TARPAULIN, 4\" x 6\", without layout","piece",220]
[null,null,"Tarpaulin Without Layout","TARPAULIN, 4\" x 7\", without layout","piece",255]
[null,null,"Tarpaulin Without Layout","TARPAULIN, 4\" x 8\", without layout","piece",290]
[null,null,"Tarpaulin Without Layout","TARPAULIN, 4\" x 9\", without layout","piece",325]
[null,null,"Tarpaulin Without Layout","TARPAULIN, 4\" x 10\", without layout","piece",360]
[null,null,"Tarpaulin Without Layout","TARPAULIN, 4\" x 11\", without layout","piece",400]
[null,null,"Tarpaulin Without Layout","TARPAULIN, 4\" x 12\", without layout","piece",435]
[null,null,"Tarpaulin Without Layout","TARPAULIN, 5\" x 5\", without layout","piece",225]
[null,null,"Tarpaulin Without Layout","TARPAULIN, 5\" x 6\", without layout","piece",270]
[null,null,"Tarpaulin Without Layout","TARPAULIN, 5\" x 7\", without layout","piece",315]
[null,null,"Tarpaulin Without Layout","TARPAULIN, 5\" x 8\", without layout","piece",360]
[null,null,"Tarpaulin Without Layout","TARPAULIN, 5\" x 9\", without layout","piece",405]
[null,null,"Tarpaulin Without Layout","TARPAULIN, 5\" x 10\", without layout","piece",450]
[null,null,"Tarpaulin Without Layout","TARPAULIN, 5\" x 11\", without layout","piece",495]
[null,null,"Tarpaulin Without Layout","TARPAULIN, 5\" x 12\", without layout","piece",540]
[null,null,"Tarpaulin Without Layout","TARPAULIN, 6\" x 6\", without layout","piece",325]
[null,null,"Tarpaulin Without Layout","TARPAULIN, 6\" x 7\", without layout","piece",380]
[null,null,"Tarpaulin Without Layout","TARPAULIN, 6\" x 8\", without layout","piece",435]
[null,null,"Tarpaulin Without Layout","TARPAULIN, 6\" x 9\", without layout","piece",490]
[null,null,"Tarpaulin Without Layout","TARPAULIN, 6\" x 10\", without layout","piece",540]
[null,null,"Tarpaulin Without Layout","TARPAULIN, 6\" x 11\", without layout","piece",595]
[null,null,"Tarpaulin Without Layout","TARPAULIN, 6\" x 12\", without layout","piece",650]
[null,null,"Tarpaulin Without Layout","TARPAULIN, 7\" x 7\", without layout","piece",445]
[null,null,"Tarpaulin Without Layout","TARPAULIN, 7\" x 8\", without layout","piece",505]
[null,null,"Tarpaulin Without Layout","TARPAULIN, 7\" x 9\", without layout","piece",570]
[null,null,"Tarpaulin Without Layout","TARPAULIN, 7\" x 10\", without layout","piece",630]
[null,null,"Tarpaulin Without Layout","TARPAULIN, 7\" x 11\", without layout","piece",695]
[null,null,"Tarpaulin Without Layout","TARPAULIN, 7\" x 12\", without layout","piece",760]
[null,null,"Tarpaulin Without Layout","TARPAULIN, 8\" x 8\", without layout","piece",580]
[null,null,"Tarpaulin Without Layout","TARPAULIN, 8\" x 9\", without layout","piece",650]
[null,null,"Tarpaulin Without Layout","TARPAULIN, 8\" x 10\", without layout","piece",720]
[null,null,"Tarpaulin Without Layout","TARPAULIN, 8\" x 11\", without layout","piece",795]
[null,null,"Tarpaulin Without Layout","TARPAULIN, 8\" x 12\", without layout","piece",865]
[null,null,"Tarpaulin Without Layout","TARPAULIN, 9\" x 9\", without layout","piece",730]
[null,null,"Tarpaulin Without Layout","TARPAULIN, 9\" x 10\", without layout","piece",810]
[null,null,"Tarpaulin Without Layout","TARPAULIN, 9\" x 11\", without layout","piece",895]
[null,null,"Tarpaulin Without Layout","TARPAULIN, 9\" x 12\", without layout","piece",975]
[null,null,"Tarpaulin Without Layout","TARPAULIN, 10\" x 10\", without layout","piece",900]
[null,null,"Tarpaulin Without Layout","TARPAULIN, 10\" x 11\", without layout","piece",990]
[null,null,"Tarpaulin Without Layout","TARPAULIN, 10\" x 12\", without layout","piece",1080]
[null,null,"Tarpaulin Without Layout","TARPAULIN, 11\" x 11\", without layout","piece",1090]
[null,null,"Tarpaulin Without Layout","TARPAULIN, 11\" x 12\", without layout","piece",1190]
[null,null,"Tarpaulin Without Layout","TARPAULIN, 12\" x 12\", without layout","piece",1300]

{"sheet":"PPMP","index":2,"n_rows":22,"n_cols":23,"rows_kept":22,"cut":false,"hidden":false,"merged":[[20,14,20,19],[21,14,21,19],[17,4,17,9],[20,4,20,10],[21,4,21,10],[8,2,8,11],[0,0,0,22],[1,0,1,22],[2,0,2,22],[3,0,3,22],[5,0,5,22],[6,1,6,22],[10,21,11,21],[10,22,11,22],[10,20,11,20],[10,0,11,0],[10,2,11,2],[10,3,10,18],[10,19,11,19],[10,1,11,1]]}
["DEPARTMENT OF EDUCATION"]
["REGION X - NORTHERN MINDANAO"]
["DIVISION OF MALAYBALAY CITY"]
["P-6, Casisang, Malaybalay City"]
[]
["REVISED PROJECT PROCUREMENT MANAGEMENT PLAN"]
["for CY",{"$f":"\"FOR CY \" & CONCATENATE(Input!B3)","v":"FOR CY "}]
[]
[null,"SECTION / UNIT:",{"$f":"UPPER(Input!H1)","v":""}]
[]
["Category","ITEM AND SPECIFICATIONS","Unit","QUANTITY REQUIREMENT",null,null,null,null,null,null,null,null,null,null,null,null,null,null,null,"TOTAL QUANTITY","UNIT PRICE","MARKED UP PRICE","TOTAL AMOUNT"]
[null,null,null,"Jan","Feb","Mar","Q1","Apr","May ","June","Q2","Jul","Aug","Sept","Q3","Oct","Nov","Dec","Q4"]
[" ",null,""]
[" ",null,""]
[null,"TOTAL","",null,null,null,null,null,null,null,null,null,null,null,null,null,null,null,null,null,null,null,{"$f":"ROUND(SUM(W13:W14),2)","v":0}]
[]
[]
[null,"Prepared by:",null,null,"Reviewed by:",null,null,null,null,null,null,null,null,null,"Approved by:"]
[]
[]
[null,{"$f":"UPPER(Input!B1)","v":""},null,null,{"$f":"UPPER(Input!H2)","v":""},null,null,null,null,null,null,null,{"$f":"UPPER(Input!G2)","v":""},null,{"$f":"UPPER(Input!T1)","v":""}]
[null,{"$f":"IF(Input!B2=\"\",\"\",IF(Input!B2<>\"\",Input!B2))","v":""},null,null,{"$f":"IF(Input!H3=\"\",\"\",IF(Input!H3<>\"\",Input!H3))","v":""},null,null,null,null,null,null,null,{"$f":"UPPER(Input!G3)","v":""},null,{"$f":"IF(Input!T2=\"\",\"\",IF(Input!T2<>\"\",Input!T2))","v":""}]